{"text_format":"1","workbook":"xlsx","n_sheets":2,"sheets":["Railing","Lookups"],"not_rendered":{"charts":0,"images":0,"macros":1,"external_links":0,"defined_names":47,"comments":0,"pivot_tables":0},"unopened":[],"bounds":{"document_bytes":16777216,"sheet_cells":100000,"rows_first":2000,"rows_last":500,"rows_between":2000,"halvings":0,"cell_chars":16384,"cell_head_chars":4096},"cells_cut":0,"cells_raw":0,"read":"whole","date_system":"1900"}

{"sheet":"Railing","index":0,"n_rows":98,"n_cols":65,"rows_kept":98,"cut":false,"hidden":false,"merged":[]}
["15f221f1-c15e-4d8e-a679-81fade5c4405_road_id","ba4adf1f-d64b-4d2c-a600-a59acebf3405_road_id","sh-rs-d","15f221f1-c15e-4d8e-a679-81fade5c4404_start_m","ba4adf1f-d64b-4d2c-a600-a59acebf3404_end_m","22268ab3-8051-4768-9eed-84c4c8313bf4_rail_id","ad9f2495-fddc-4306-bd34-168a65f2601f_railing_type_desc","ad9f2495-fddc-4306-bd34-168a65f2601f_railing_type","4949e73b-52f8-4d7e-83f1-68d9a2583d57_railing_material_desc","4949e73b-52f8-4d7e-83f1-68d9a2583d57_railing_material","5d6aa871-4489-4ce6-a551-59068bd29ba2_railing_make_desc","5d6aa871-4489-4ce6-a551-59068bd29ba2_railing_make","443d5a24-06a0-468f-9c79-2e83f563968a_shape_desc","443d5a24-06a0-468f-9c79-2e83f563968a_shape","d8cfe0a2-d246-4882-a0d2-30ee49b7a85f_railing_colour_desc","d8cfe0a2-d246-4882-a0d2-30ee49b7a85f_railing_colour","b3ce0e97-3686-4d65-a145-682de3754dd5_railing_attach_desc","b3ce0e97-3686-4d65-a145-682de3754dd5_railing_attach","bdd97669-57c4-468b-81f1-510b14f55174_railing_ground_fix_desc","bdd97669-57c4-468b-81f1-510b14f55174_railing_ground_fix","e7b89398-e052-46a5-ab20-3ec4d8c537ee_rail_start_style_desc","e7b89398-e052-46a5-ab20-3ec4d8c537ee_rail_start_style","02fc6f2c-8902-4fb3-b496-70b3a9b63739_Not_RAMMfield_terminal_ends_start_name","c597dd26-bbba-4b79-bf0c-adf540919a08_rail_end_style_desc","c597dd26-bbba-4b79-bf0c-adf540919a08_rail_end_style","99d18a35-6247-4df3-8797-452e4e43fe36_Not_RAMMfield_terminal_ends_end_name","2e8b6c83-607c-4667-853b-f7da37d0a935_post_count","944e3ad8-3697-4d60-96f8-b149ee1619da_post_condition_desc","944e3ad8-3697-4d60-96f8-b149ee1619da_post_condition","2ea2daee-5a5a-4e19-b841-9cd86995643a_post_material_desc","2ea2daee-5a5a-4e19-b841-9cd86995643a_post_material","8da041d5-bf00-46d5-b314-66e801cfec39_length_adjust_m","e86aff1e-c70d-42b2-886e-d2b940a36794_len_adjust_rsn_desc","e86aff1e-c70d-42b2-886e-d2b940a36794_len_adjust_rsn","d7879408-190c-45f0-89d3-09cd35643ce5_length_m","9eac95c6-4fa9-4bf9-b032-73386c8aac6c_railing_width","5426d6b0-4b34-4063-8da5-c94da1a9b277_side_desc","5426d6b0-4b34-4063-8da5-c94da1a9b277_side","f1d18d89-3387-4fde-a07c-f5e7785e2c42_ground_height","77cbc051-6f58-4d5e-a4c4-379b560163c9_offset","0e5d0465-e830-4605-a238-50da1265f993_install_date","8d509353-46b8-4137-87db-2f3119e28c14_in_replace_reason_desc","8d509353-46b8-4137-87db-2f3119e28c14_in_replace_reason","982ffb16-a17a-4df0-968a-e254cc158736_asset_owner_desc","982ffb16-a17a-4df0-968a-e254cc158736_asset_owner","043b5a7a-c4f9-4bb2-adb6-028bae4afcf0_risk_likelihood_desc","043b5a7a-c4f9-4bb2-adb6-028bae4afcf0_risk_likelihood","2c4a159d-8f3e-4a2a-a089-81cf97c2e828_risk_consequence_desc","2c4a159d-8f3e-4a2a-a089-81cf97c2e828_risk_consequence","02c82356-fc75-4eac-ade3-0674bde8e4aa_risk_desc","02c82356-fc75-4eac-ade3-0674bde8e4aa_risk","1c44534d-d90a-4f95-bfcc-511907634812_rul_reset_desc","1c44534d-d90a-4f95-bfcc-511907634812_rul_reset","c8fa108e-b586-497d-8a93-61be532c769b_use_default_rc_desc","c8fa108e-b586-497d-8a93-61be532c769b_use_default_rc","ae62e5a0-0d31-4896-80b1-724f24d24647_condition_desc","ae62e5a0-0d31-4896-80b1-724f24d24647_condition","05287e30-6c18-4e6e-bda3-4746a30870a2_condition_date","a5e6ec24-2d4e-4fa1-b5c7-b4037b1df70f_collect_name_desc","a5e6ec24-2d4e-4fa1-b5c7-b4037b1df70f_collect_name","4442ad50-acd6-477e-a3d7-6da5b7a97c88_notes","a6362354-3f7e-4727-880d-63040695baeb_Not_RAMMfield_prior_id","e8de4d3d-cbbf-433a-a4cf-a577169be359_Not_RAMMfield_replace_date","fff012dd-bf4a-4083-82a3-2528c1ed6086_Not_RAMMfield_rep_replace_reason_desc","fff012dd-bf4a-4083-82a3-2528c1ed6086_Not_RAMMfield_rep_replace_reason"]
["road_id","road_id","sh-rs-d","start_m","end_m","rail_id","railing_type_desc","railing_type","railing_material_desc","railing_material","railing_make_desc","railing_make","shape_desc","shape","railing_colour_desc","railing_colour","railing_attach_desc","railing_attach","railing_ground_fix_desc","railing_ground_fix","rail_start_style_desc","rail_start_style","Not_RAMMfield_terminal_ends_start_name","rail_end_style_desc","rail_end_style","Not_RAMMfield_terminal_ends_end_name","post_count","post_condition_desc","post_condition","post_material_desc","post_material","length_adjust_m","len_adjust_rsn_desc","len_adjust_rsn","length_m","railing_width","side_desc","side","ground_height","offset","install_date","in_replace_reason_desc","in_replace_reason","asset_owner_desc","asset_owner","risk_likelihood_desc","risk_likelihood","risk_consequence_desc","risk_consequence","risk_desc","risk","rul_reset_desc","rul_reset","use_default_rc_desc","use_default_rc","condition_desc","condition","condition_date","collect_name_desc","collect_name","notes","Not_RAMMfield_prior_id","Not_RAMMfield_replace_date","Not_RAMMfield_rep_replace_reason_desc","Not_RAMMfield_rep_replace_reason"]
["Start Road Id ","End Road Id ","SH-RS-D  (e.g. 016-0000-B) letter must be uppercase and include leading 0","RP Start (m)","RP End (m)","Rail ID (must set to 0 for new asset)","Rail Type Description","Rail Type","Material Description","Material","Railing Make Description","Railing Make","Shape Description","Shape","Rail Colour Description","Rail Colour","Rail Attach Description","Railing Attach","Ground Fix Description","Ground Fix","Start Style Description","Start Style Code"," Start Style (free text field)","End Style Description","End Style Code","End Style (free text field)","Number of Posts","Post Condition Description","Post Condition","Post Material Description","Post Material","Extra Length (m) must set to 0 if no extra length","Extra Length Reason Description","Extra Length Reason","Rail Length (m) ","Width (m)","Side Description","Side","Ground Height (m)","Offset","Install Date (dd/mm/yyyy) Must include leading 0","Install Reason Description","Install Reason","Asset Owner Description","Asset Owner","Risk Likelihood Description","Risk Likelihood","Risk Consequence Description","Risk Consequence","Risk Description","Risk","RUL Reset Description","RUL Reset","Use Default RC Description","Use Default RC","Condition Description","condition","condition date (dd/mm/yyyy) Must include leading 0","Organisation Description","Organisation","Comments (If Required)","Prior asset id","Existing asset - Replace Date (dd/mm/yyyy) Must include leading 0","Existing asset - Replace Reason Description","Existing asset - Replace Reason"]
[{"$f":"_xlfn.FILTERXML(_xlfn.WEBSERVICE(\"https://nds-beta.mobileroad.org/xy_sh?rp=\"&C4&\"/\"&D4&\"&xml=true\"),\"/lrms/id_road\")","v":"null"},{"$f":"_xlfn.FILTERXML(_xlfn.WEBSERVICE(\"https://nds-beta.mobileroad.org/xy_sh?rp=\"&C4&\"/\"&E4&\"&xml=true\"),\"/lrms/id_road\")","v":"null"},null,null,null,null,null,{"$f":"IF(G4=\"\",\"\",VLOOKUP(G4,type[],2,FALSE))","v":""},null,{"$f":"IF(I4=\"\",\"\",VLOOKUP(I4,material[],2,FALSE))","v":""},null,{"$f":"IF(K4=\"\",\"\",VLOOKUP(K4,make[],2,FALSE))","v":""},null,{"$f":"IF(M4=\"\",\"\",VLOOKUP(M4,shape[],2,FALSE))","v":""},null,{"$f":"IF(O4=\"\",\"\",VLOOKUP(O4,colour[],2,FALSE))","v":""},null,{"$f":"IF(Q4=\"\",\"\",VLOOKUP(Q4,attachment[],2,FALSE))","v":""},null,{"$f":"IF(S4=\"\",\"\",VLOOKUP(S4,ground_fix[],2,FALSE))","v":""},null,{"$f":"IF(U4=\"\",\"\",VLOOKUP(U4,starting_style[],2,FALSE))","v":""},null,null,{"$f":"IF(X4=\"\",\"\",VLOOKUP(X4,ending_style[],2,FALSE))","v":""},null,null,null,{"$f":"IF(AB4=\"\",\"\",VLOOKUP(AB4,post_condition[],2,FALSE))","v":""},null,{"$f":"IF(AD4=\"\",\"\",VLOOKUP(AD4,post_material[],2,FALSE))","v":""},null,null,{"$f":"IF(AG4=\"\",\"\",VLOOKUP(AG4,extra_length_reason[],2,FALSE))","v":""},null,null,null,{"$f":"IF(AK4=\"\",\"\",VLOOKUP(AK4,side[],2,FALSE))","v":""},null,null,null,null,{"$f":"IF(AP4=\"\",\"\",VLOOKUP(AP4,install_reason[],2,FALSE))","v":""},null,{"$f":"IF(AR4=\"\",\"\",VLOOKUP(AR4,asset_owner[],2,FALSE))","v":""},null,{"$f":"IF(AT4=\"\",\"\",VLOOKUP(AT4,likelihood[],2,FALSE))","v":""},null,{"$f":"IF(AV4=\"\",\"\",VLOOKUP(AV4,consequence[],2,FALSE))","v":""},null,{"$f":"IF(AX4=\"\",\"\",VLOOKUP(AX4,risk[],2,FALSE))","v":""},null,{"$f":"IF(AZ4=\"\",\"\",VLOOKUP(AZ4,rul_reset[],2,FALSE))","v":""},null,{"$f":"IF(BB4=\"\",\"\",VLOOKUP(BB4,use_default[],2,FALSE))","v":""},null,{"$f":"IF(BD4=\"\",\"\",VLOOKUP(BD4,railing_condition[],2,FALSE))","v":""},null,null,{"$f":"IF(BG4=\"\",\"\",VLOOKUP(BG4,organisation[],2,FALSE))","v":""},null,null,null,null,{"$f":"IF(BL4=\"\",\"\",VLOOKUP(BL4,replace_reason[],2,FALSE))","v":""}]
[{"$f":"_xlfn.FILTERXML(_xlfn.WEBSERVICE(\"https://nds-beta.mobileroad.org/xy_sh?rp=\"&C5&\"/\"&D5&\"&xml=true\"),\"/lrms/id_road\")","v":"null"},{"$f":"_xlfn.FILTERXML(_xlfn.WEBSERVICE(\"https://nds-beta.mobileroad.org/xy_sh?rp=\"&C5&\"/\"&E5&\"&xml=true\"),\"/lrms/id_road\")","v":"null"},null,null,null,null,null,{"$f":"IF(G5=\"\",\"\",VLOOKUP(G5,type[],2,FALSE))","v":""},null,{"$f":"IF(I5=\"\",\"\",VLOOKUP(I5,material[],2,FALSE))","v":""},null,{"$f":"IF(K5=\"\",\"\",VLOOKUP(K5,make[],2,FALSE))","v":""},null,{"$f":"IF(M5=\"\",\"\",VLOOKUP(M5,shape[],2,FALSE))","v":""},null,{"$f":"IF(O5=\"\",\"\",VLOOKUP(O5,colour[],2,FALSE))","v":""},null,{"$f":"IF(Q5=\"\",\"\",VLOOKUP(Q5,attachment[],2,FALSE))","v":""},null,{"$f":"IF(S5=\"\",\"\",VLOOKUP(S5,ground_fix[],2,FALSE))","v":""},null,{"$f":"IF(U5=\"\",\"\",VLOOKUP(U5,starting_style[],2,FALSE))","v":""},null,null,{"$f":"IF(X5=\"\",\"\",VLOOKUP(X5,ending_style[],2,FALSE))","v":""},null,null,null,{"$f":"IF(AB5=\"\",\"\",VLOOKUP(AB5,post_condition[],2,FALSE))","v":""},null,{"$f":"IF(AD5=\"\",\"\",VLOOKUP(AD5,post_material[],2,FALSE))","v":""},null,null,{"$f":"IF(AG5=\"\",\"\",VLOOKUP(AG5,extra_length_reason[],2,FALSE))","v":""},null,null,null,{"$f":"IF(AK5=\"\",\"\",VLOOKUP(AK5,side[],2,FALSE))","v":""},null,null,null,null,{"$f":"IF(AP5=\"\",\"\",VLOOKUP(AP5,install_reason[],2,FALSE))","v":""},null,{"$f":"IF(AR5=\"\",\"\",VLOOKUP(AR5,asset_owner[],2,FALSE))","v":""},null,{"$f":"IF(AT5=\"\",\"\",VLOOKUP(AT5,likelihood[],2,FALSE))","v":""},null,{"$f":"IF(AV5=\"\",\"\",VLOOKUP(AV5,consequence[],2,FALSE))","v":""},null,{"$f":"IF(AX5=\"\",\"\",VLOOKUP(AX5,risk[],2,FALSE))","v":""},null,{"$f":"IF(AZ5=\"\",\"\",VLOOKUP(AZ5,rul_reset[],2,FALSE))","v":""},null,{"$f":"IF(BB5=\"\",\"\",VLOOKUP(BB5,use_default[],2,FALSE))","v":""},null,{"$f":"IF(BD5=\"\",\"\",VLOOKUP(BD5,railing_condition[],2,FALSE))","v":""},null,null,{"$f":"IF(BG5=\"\",\"\",VLOOKUP(BG5,organisation[],2,FALSE))","v":""},null,null,null,null,{"$f":"IF(BL5=\"\",\"\",VLOOKUP(BL5,replace_reason[],2,FALSE))","v":""}]
["null","null",null,null,null,null,null,{"$f":"IF(G6=\"\",\"\",VLOOKUP(G6,type[],2,FALSE))","v":""},null,{"$f":"IF(I6=\"\",\"\",VLOOKUP(I6,material[],2,FALSE))","v":""},null,{"$f":"IF(K6=\"\",\"\",VLOOKUP(K6,make[],2,FALSE))","v":""},null,{"$f":"IF(M6=\"\",\"\",VLOOKUP(M6,shape[],2,FALSE))","v":""},null,{"$f":"IF(O6=\"\",\"\",VLOOKUP(O6,colour[],2,FALSE))","v":""},null,{"$f":"IF(Q6=\"\",\"\",VLOOKUP(Q6,attachment[],2,FALSE))","v":""},null,{"$f":"IF(S6=\"\",\"\",VLOOKUP(S6,ground_fix[],2,FALSE))","v":""},null,{"$f":"IF(U6=\"\",\"\",VLOOKUP(U6,starting_style[],2,FALSE))","v":""},null,null,{"$f":"IF(X6=\"\",\"\",VLOOKUP(X6,ending_style[],2,FALSE))","v":""},null,null,null,{"$f":"IF(AB6=\"\",\"\",VLOOKUP(AB6,post_condition[],2,FALSE))","v":""},null,{"$f":"IF(AD6=\"\",\"\",VLOOKUP(AD6,post_material[],2,FALSE))","v":""},null,null,{"$f":"IF(AG6=\"\",\"\",VLOOKUP(AG6,extra_length_reason[],2,FALSE))","v":""},null,null,null,{"$f":"IF(AK6=\"\",\"\",VLOOKUP(AK6,side[],2,FALSE))","v":""},null,null,null,null,{"$f":"IF(AP6=\"\",\"\",VLOOKUP(AP6,install_reason[],2,FALSE))","v":""},null,{"$f":"IF(AR6=\"\",\"\",VLOOKUP(AR6,asset_owner[],2,FALSE))","v":""},null,{"$f":"IF(AT6=\"\",\"\",VLOOKUP(AT6,likelihood[],2,FALSE))","v":""},null,{"$f":"IF(AV6=\"\",\"\",VLOOKUP(AV6,consequence[],2,FALSE))","v":""},null,{"$f":"IF(AX6=\"\",\"\",VLOOKUP(AX6,risk[],2,FALSE))","v":""},null,{"$f":"IF(AZ6=\"\",\"\",VLOOKUP(AZ6,rul_reset[],2,FALSE))","v":""},null,{"$f":"IF(BB6=\"\",\"\",VLOOKUP(BB6,use_default[],2,FALSE))","v":""},null,{"$f":"IF(BD6=\"\",\"\",VLOOKUP(BD6,railing_condition[],2,FALSE))","v":""},null,null,{"$f":"IF(BG6=\"\",\"\",VLOOKUP(BG6,organisation[],2,FALSE))","v":""},null,null,null,null,{"$f":"IF(BL6=\"\",\"\",VLOOKUP(BL6,replace_reason[],2,FALSE))","v":""}]
["null","null",null,null,null,null,null,{"$f":"IF(G7=\"\",\"\",VLOOKUP(G7,type[],2,FALSE))","v":""},null,{"$f":"IF(I7=\"\",\"\",VLOOKUP(I7,material[],2,FALSE))","v":""},null,{"$f":"IF(K7=\"\",\"\",VLOOKUP(K7,make[],2,FALSE))","v":""},null,{"$f":"IF(M7=\"\",\"\",VLOOKUP(M7,shape[],2,FALSE))","v":""},null,{"$f":"IF(O7=\"\",\"\",VLOOKUP(O7,colour[],2,FALSE))","v":""},null,{"$f":"IF(Q7=\"\",\"\",VLOOKUP(Q7,attachment[],2,FALSE))","v":""},null,{"$f":"IF(S7=\"\",\"\",VLOOKUP(S7,ground_fix[],2,FALSE))","v":""},null,{"$f":"IF(U7=\"\",\"\",VLOOKUP(U7,starting_style[],2,FALSE))","v":""},null,null,{"$f":"IF(X7=\"\",\"\",VLOOKUP(X7,ending_style[],2,FALSE))","v":""},null,null,null,{"$f":"IF(AB7=\"\",\"\",VLOOKUP(AB7,post_condition[],2,FALSE))","v":""},null,{"$f":"IF(AD7=\"\",\"\",VLOOKUP(AD7,post_material[],2,FALSE))","v":""},null,null,{"$f":"IF(AG7=\"\",\"\",VLOOKUP(AG7,extra_length_reason[],2,FALSE))","v":""},null,null,null,{"$f":"IF(AK7=\"\",\"\",VLOOKUP(AK7,side[],2,FALSE))","v":""},null,null,null,null,{"$f":"IF(AP7=\"\",\"\",VLOOKUP(AP7,install_reason[],2,FALSE))","v":""},null,{"$f":"IF(AR7=\"\",\"\",VLOOKUP(AR7,asset_owner[],2,FALSE))","v":""},null,{"$f":"IF(AT7=\"\",\"\",VLOOKUP(AT7,likelihood[],2,FALSE))","v":""},null,{"$f":"IF(AV7=\"\",\"\",VLOOKUP(AV7,consequence[],2,FALSE))","v":""},null,{"$f":"IF(AX7=\"\",\"\",VLOOKUP(AX7,risk[],2,FALSE))","v":""},null,{"$f":"IF(AZ7=\"\",\"\",VLOOKUP(AZ7,rul_reset[],2,FALSE))","v":""},null,{"$f":"IF(BB7=\"\",\"\",VLOOKUP(BB7,use_default[],2,FALSE))","v":""},null,{"$f":"IF(BD7=\"\",\"\",VLOOKUP(BD7,railing_condition[],2,FALSE))","v":""},null,null,{"$f":"IF(BG7=\"\",\"\",VLOOKUP(BG7,organisation[],2,FALSE))","v":""},null,null,null,null,{"$f":"IF(BL7=\"\",\"\",VLOOKUP(BL7,replace_reason[],2,FALSE))","v":""}]
["null","null",null,null,null,null,null,{"$f":"IF(G8=\"\",\"\",VLOOKUP(G8,type[],2,FALSE))","v":""},null,{"$f":"IF(I8=\"\",\"\",VLOOKUP(I8,material[],2,FALSE))","v":""},null,{"$f":"IF(K8=\"\",\"\",VLOOKUP(K8,make[],2,FALSE))","v":""},null,{"$f":"IF(M8=\"\",\"\",VLOOKUP(M8,shape[],2,FALSE))","v":""},null,{"$f":"IF(O8=\"\",\"\",VLOOKUP(O8,colour[],2,FALSE))","v":""},null,{"$f":"IF(Q8=\"\",\"\",VLOOKUP(Q8,attachment[],2,FALSE))","v":""},null,{"$f":"IF(S8=\"\",\"\",VLOOKUP(S8,ground_fix[],2,FALSE))","v":""},null,{"$f":"IF(U8=\"\",\"\",VLOOKUP(U8,starting_style[],2,FALSE))","v":""},null,null,{"$f":"IF(X8=\"\",\"\",VLOOKUP(X8,ending_style[],2,FALSE))","v":""},null,null,null,{"$f":"IF(AB8=\"\",\"\",VLOOKUP(AB8,post_condition[],2,FALSE))","v":""},null,{"$f":"IF(AD8=\"\",\"\",VLOOKUP(AD8,post_material[],2,FALSE))","v":""},null,null,{"$f":"IF(AG8=\"\",\"\",VLOOKUP(AG8,extra_length_reason[],2,FALSE))","v":""},null,null,null,{"$f":"IF(AK8=\"\",\"\",VLOOKUP(AK8,side[],2,FALSE))","v":""},null,null,null,null,{"$f":"IF(AP8=\"\",\"\",VLOOKUP(AP8,install_reason[],2,FALSE))","v":""},null,{"$f":"IF(AR8=\"\",\"\",VLOOKUP(AR8,asset_owner[],2,FALSE))","v":""},null,{"$f":"IF(AT8=\"\",\"\",VLOOKUP(AT8,likelihood[],2,FALSE))","v":""},null,{"$f":"IF(AV8=\"\",\"\",VLOOKUP(AV8,consequence[],2,FALSE))","v":""},null,{"$f":"IF(AX8=\"\",\"\",VLOOKUP(AX8,risk[],2,FALSE))","v":""},null,{"$f":"IF(AZ8=\"\",\"\",VLOOKUP(AZ8,rul_reset[],2,FALSE))","v":""},null,{"$f":"IF(BB8=\"\",\"\",VLOOKUP(BB8,use_default[],2,FALSE))","v":""},null,{"$f":"IF(BD8=\"\",\"\",VLOOKUP(BD8,railing_condition[],2,FALSE))","v":""},null,null,{"$f":"IF(BG8=\"\",\"\",VLOOKUP(BG8,organisation[],2,FALSE))","v":""},null,null,null,null,{"$f":"IF(BL8=\"\",\"\",VLOOKUP(BL8,replace_reason[],2,FALSE))","v":""}]
["null","null",null,null,null,null,null,{"$f":"IF(G9=\"\",\"\",VLOOKUP(G9,type[],2,FALSE))","v":""},null,{"$f":"IF(I9=\"\",\"\",VLOOKUP(I9,material[],2,FALSE))","v":""},null,{"$f":"IF(K9=\"\",\"\",VLOOKUP(K9,make[],2,FALSE))","v":""},null,{"$f":"IF(M9=\"\",\"\",VLOOKUP(M9,shape[],2,FALSE))","v":""},null,{"$f":"IF(O9=\"\",\"\",VLOOKUP(O9,colour[],2,FALSE))","v":""},null,{"$f":"IF(Q9=\"\",\"\",VLOOKUP(Q9,attachment[],2,FALSE))","v":""},null,{"$f":"IF(S9=\"\",\"\",VLOOKUP(S9,ground_fix[],2,FALSE))","v":""},null,{"$f":"IF(U9=\"\",\"\",VLOOKUP(U9,starting_style[],2,FALSE))","v":""},null,null,{"$f":"IF(X9=\"\",\"\",VLOOKUP(X9,ending_style[],2,FALSE))","v":""},null,null,null,{"$f":"IF(AB9=\"\",\"\",VLOOKUP(AB9,post_condition[],2,FALSE))","v":""},null,{"$f":"IF(AD9=\"\",\"\",VLOOKUP(AD9,post_material[],2,FALSE))","v":""},null,null,{"$f":"IF(AG9=\"\",\"\",VLOOKUP(AG9,extra_length_reason[],2,FALSE))","v":""},null,null,null,{"$f":"IF(AK9=\"\",\"\",VLOOKUP(AK9,side[],2,FALSE))","v":""},null,null,null,null,{"$f":"IF(AP9=\"\",\"\",VLOOKUP(AP9,install_reason[],2,FALSE))","v":""},null,{"$f":"IF(AR9=\"\",\"\",VLOOKUP(AR9,asset_owner[],2,FALSE))","v":""},null,{"$f":"IF(AT9=\"\",\"\",VLOOKUP(AT9,likelihood[],2,FALSE))","v":""},null,{"$f":"IF(AV9=\"\",\"\",VLOOKUP(AV9,consequence[],2,FALSE))","v":""},null,{"$f":"IF(AX9=\"\",\"\",VLOOKUP(AX9,risk[],2,FALSE))","v":""},null,{"$f":"IF(AZ9=\"\",\"\",VLOOKUP(AZ9,rul_reset[],2,FALSE))","v":""},null,{"$f":"IF(BB9=\"\",\"\",VLOOKUP(BB9,use_default[],2,FALSE))","v":""},null,{"$f":"IF(BD9=\"\",\"\",VLOOKUP(BD9,railing_condition[],2,FALSE))","v":""},null,null,{"$f":"IF(BG9=\"\",\"\",VLOOKUP(BG9,organisation[],2,FALSE))","v":""},null,null,null,null,{"$f":"IF(BL9=\"\",\"\",VLOOKUP(BL9,replace_reason[],2,FALSE))","v":""}]
["null","null",null,null,null,null,null,{"$f":"IF(G10=\"\",\"\",VLOOKUP(G10,type[],2,FALSE))","v":""},null,{"$f":"IF(I10=\"\",\"\",VLOOKUP(I10,material[],2,FALSE))","v":""},null,{"$f":"IF(K10=\"\",\"\",VLOOKUP(K10,make[],2,FALSE))","v":""},null,{"$f":"IF(M10=\"\",\"\",VLOOKUP(M10,shape[],2,FALSE))","v":""},null,{"$f":"IF(O10=\"\",\"\",VLOOKUP(O10,colour[],2,FALSE))","v":""},null,{"$f":"IF(Q10=\"\",\"\",VLOOKUP(Q10,attachment[],2,FALSE))","v":""},null,{"$f":"IF(S10=\"\",\"\",VLOOKUP(S10,ground_fix[],2,FALSE))","v":""},null,{"$f":"IF(U10=\"\",\"\",VLOOKUP(U10,starting_style[],2,FALSE))","v":""},null,null,{"$f":"IF(X10=\"\",\"\",VLOOKUP(X10,ending_style[],2,FALSE))","v":""},null,null,null,{"$f":"IF(AB10=\"\",\"\",VLOOKUP(AB10,post_condition[],2,FALSE))","v":""},null,{"$f":"IF(AD10=\"\",\"\",VLOOKUP(AD10,post_material[],2,FALSE))","v":""},null,null,{"$f":"IF(AG10=\"\",\"\",VLOOKUP(AG10,extra_length_reason[],2,FALSE))","v":""},null,null,null,{"$f":"IF(AK10=\"\",\"\",VLOOKUP(AK10,side[],2,FALSE))","v":""},null,null,null,null,{"$f":"IF(AP10=\"\",\"\",VLOOKUP(AP10,install_reason[],2,FALSE))","v":""},null,{"$f":"IF(AR10=\"\",\"\",VLOOKUP(AR10,asset_owner[],2,FALSE))","v":""},null,{"$f":"IF(AT10=\"\",\"\",VLOOKUP(AT10,likelihood[],2,FALSE))","v":""},null,{"$f":"IF(AV10=\"\",\"\",VLOOKUP(AV10,consequence[],2,FALSE))","v":""},null,{"$f":"IF(AX10=\"\",\"\",VLOOKUP(AX10,risk[],2,FALSE))","v":""},null,{"$f":"IF(AZ10=\"\",\"\",VLOOKUP(AZ10,rul_reset[],2,FALSE))","v":""},null,{"$f":"IF(BB10=\"\",\"\",VLOOKUP(BB10,use_default[],2,FALSE))","v":""},null,{"$f":"IF(BD10=\"\",\"\",VLOOKUP(BD10,railing_condition[],2,FALSE))","v":""},null,null,{"$f":"IF(BG10=\"\",\"\",VLOOKUP(BG10,organisation[],2,FALSE))","v":""},null,null,null,null,{"$f":"IF(BL10=\"\",\"\",VLOOKUP(BL10,replace_reason[],2,FALSE))","v":""}]
["null","null",null,null,null,null,null,{"$f":"IF(G11=\"\",\"\",VLOOKUP(G11,type[],2,FALSE))","v":""},null,{"$f":"IF(I11=\"\",\"\",VLOOKUP(I11,material[],2,FALSE))","v":""},null,{"$f":"IF(K11=\"\",\"\",VLOOKUP(K11,make[],2,FALSE))","v":""},null,{"$f":"IF(M11=\"\",\"\",VLOOKUP(M11,shape[],2,FALSE))","v":""},null,{"$f":"IF(O11=\"\",\"\",VLOOKUP(O11,colour[],2,FALSE))","v":""},null,{"$f":"IF(Q11=\"\",\"\",VLOOKUP(Q11,attachment[],2,FALSE))","v":""},null,{"$f":"IF(S11=\"\",\"\",VLOOKUP(S11,ground_fix[],2,FALSE))","v":""},null,{"$f":"IF(U11=\"\",\"\",VLOOKUP(U11,starting_style[],2,FALSE))","v":""},null,null,{"$f":"IF(X11=\"\",\"\",VLOOKUP(X11,ending_style[],2,FALSE))","v":""},null,null,null,{"$f":"IF(AB11=\"\",\"\",VLOOKUP(AB11,post_condition[],2,FALSE))","v":""},null,{"$f":"IF(AD11=\"\",\"\",VLOOKUP(AD11,post_material[],2,FALSE))","v":""},null,null,{"$f":"IF(AG11=\"\",\"\",VLOOKUP(AG11,extra_length_reason[],2,FALSE))","v":""},null,null,null,{"$f":"IF(AK11=\"\",\"\",VLOOKUP(AK11,side[],2,FALSE))","v":""},null,null,null,null,{"$f":"IF(AP11=\"\",\"\",VLOOKUP(AP11,install_reason[],2,FALSE))","v":""},null,{"$f":"IF(AR11=\"\",\"\",VLOOKUP(AR11,asset_owner[],2,FALSE))","v":""},null,{"$f":"IF(AT11=\"\",\"\",VLOOKUP(AT11,likelihood[],2,FALSE))","v":""},null,{"$f":"IF(AV11=\"\",\"\",VLOOKUP(AV11,consequence[],2,FALSE))","v":""},null,{"$f":"IF(AX11=\"\",\"\",VLOOKUP(AX11,risk[],2,FALSE))","v":""},null,{"$f":"IF(AZ11=\"\",\"\",VLOOKUP(AZ11,rul_reset[],2,FALSE))","v":""},null,{"$f":"IF(BB11=\"\",\"\",VLOOKUP(BB11,use_default[],2,FALSE))","v":""},null,{"$f":"IF(BD11=\"\",\"\",VLOOKUP(BD11,railing_condition[],2,FALSE))","v":""},null,null,{"$f":"IF(BG11=\"\",\"\",VLOOKUP(BG11,organisation[],2,FALSE))","v":""},null,null,null,null,{"$f":"IF(BL11=\"\",\"\",VLOOKUP(BL11,replace_reason[],2,FALSE))","v":""}]
["null","null",null,null,null,null,null,{"$f":"IF(G12=\"\",\"\",VLOOKUP(G12,type[],2,FALSE))","v":""},null,{"$f":"IF(I12=\"\",\"\",VLOOKUP(I12,material[],2,FALSE))","v":""},null,{"$f":"IF(K12=\"\",\"\",VLOOKUP(K12,make[],2,FALSE))","v":""},null,{"$f":"IF(M12=\"\",\"\",VLOOKUP(M12,shape[],2,FALSE))","v":""},null,{"$f":"IF(O12=\"\",\"\",VLOOKUP(O12,colour[],2,FALSE))","v":""},null,{"$f":"IF(Q12=\"\",\"\",VLOOKUP(Q12,attachment[],2,FALSE))","v":""},null,{"$f":"IF(S12=\"\",\"\",VLOOKUP(S12,ground_fix[],2,FALSE))","v":""},null,{"$f":"IF(U12=\"\",\"\",VLOOKUP(U12,starting_style[],2,FALSE))","v":""},null,null,{"$f":"IF(X12=\"\",\"\",VLOOKUP(X12,ending_style[],2,FALSE))","v":""},null,null,null,{"$f":"IF(AB12=\"\",\"\",VLOOKUP(AB12,post_condition[],2,FALSE))","v":""},null,{"$f":"IF(AD12=\"\",\"\",VLOOKUP(AD12,post_material[],2,FALSE))","v":""},null,null,{"$f":"IF(AG12=\"\",\"\",VLOOKUP(AG12,extra_length_reason[],2,FALSE))","v":""},null,null,null,{"$f":"IF(AK12=\"\",\"\",VLOOKUP(AK12,side[],2,FALSE))","v":""},null,null,null,null,{"$f":"IF(AP12=\"\",\"\",VLOOKUP(AP12,install_reason[],2,FALSE))","v":""},null,{"$f":"IF(AR12=\"\",\"\",VLOOKUP(AR12,asset_owner[],2,FALSE))","v":""},null,{"$f":"IF(AT12=\"\",\"\",VLOOKUP(AT12,likelihood[],2,FALSE))","v":""},null,{"$f":"IF(AV12=\"\",\"\",VLOOKUP(AV12,consequence[],2,FALSE))","v":""},null,{"$f":"IF(AX12=\"\",\"\",VLOOKUP(AX12,risk[],2,FALSE))","v":""},null,{"$f":"IF(AZ12=\"\",\"\",VLOOKUP(AZ12,rul_reset[],2,FALSE))","v":""},null,{"$f":"IF(BB12=\"\",\"\",VLOOKUP(BB12,use_default[],2,FALSE))","v":""},null,{"$f":"IF(BD12=\"\",\"\",VLOOKUP(BD12,railing_condition[],2,FALSE))","v":""},null,null,{"$f":"IF(BG12=\"\",\"\",VLOOKUP(BG12,organisation[],2,FALSE))","v":""},null,null,null,null,{"$f":"IF(BL12=\"\",\"\",VLOOKUP(BL12,replace_reason[],2,FALSE))","v":""}]
["null","null",null,null,null,null,null,{"$f":"IF(G13=\"\",\"\",VLOOKUP(G13,type[],2,FALSE))","v":""},null,{"$f":"IF(I13=\"\",\"\",VLOOKUP(I13,material[],2,FALSE))","v":""},null,{"$f":"IF(K13=\"\",\"\",VLOOKUP(K13,make[],2,FALSE))","v":""},null,{"$f":"IF(M13=\"\",\"\",VLOOKUP(M13,shape[],2,FALSE))","v":""},null,{"$f":"IF(O13=\"\",\"\",VLOOKUP(O13,colour[],2,FALSE))","v":""},null,{"$f":"IF(Q13=\"\",\"\",VLOOKUP(Q13,attachment[],2,FALSE))","v":""},null,{"$f":"IF(S13=\"\",\"\",VLOOKUP(S13,ground_fix[],2,FALSE))","v":""},null,{"$f":"IF(U13=\"\",\"\",VLOOKUP(U13,starting_style[],2,FALSE))","v":""},null,null,{"$f":"IF(X13=\"\",\"\",VLOOKUP(X13,ending_style[],2,FALSE))","v":""},null,null,null,{"$f":"IF(AB13=\"\",\"\",VLOOKUP(AB13,post_condition[],2,FALSE))","v":""},null,{"$f":"IF(AD13=\"\",\"\",VLOOKUP(AD13,post_material[],2,FALSE))","v":""},null,null,{"$f":"IF(AG13=\"\",\"\",VLOOKUP(AG13,extra_length_reason[],2,FALSE))","v":""},null,null,null,{"$f":"IF(AK13=\"\",\"\",VLOOKUP(AK13,side[],2,FALSE))","v":""},null,null,null,null,{"$f":"IF(AP13=\"\",\"\",VLOOKUP(AP13,install_reason[],2,FALSE))","v":""},null,{"$f":"IF(AR13=\"\",\"\",VLOOKUP(AR13,asset_owner[],2,FALSE))","v":""},null,{"$f":"IF(AT13=\"\",\"\",VLOOKUP(AT13,likelihood[],2,FALSE))","v":""},null,{"$f":"IF(AV13=\"\",\"\",VLOOKUP(AV13,consequence[],2,FALSE))","v":""},null,{"$f":"IF(AX13=\"\",\"\",VLOOKUP(AX13,risk[],2,FALSE))","v":""},null,{"$f":"IF(AZ13=\"\",\"\",VLOOKUP(AZ13,rul_reset[],2,FALSE))","v":""},null,{"$f":"IF(BB13=\"\",\"\",VLOOKUP(BB13,use_default[],2,FALSE))","v":""},null,{"$f":"IF(BD13=\"\",\"\",VLOOKUP(BD13,railing_condition[],2,FALSE))","v":""},null,null,{"$f":"IF(BG13=\"\",\"\",VLOOKUP(BG13,organisation[],2,FALSE))","v":""},null,null,null,null,{"$f":"IF(BL13=\"\",\"\",VLOOKUP(BL13,replace_reason[],2,FALSE))","v":""}]
["null","null",null,null,null,null,null,{"$f":"IF(G14=\"\",\"\",VLOOKUP(G14,type[],2,FALSE))","v":""},null,{"$f":"IF(I14=\"\",\"\",VLOOKUP(I14,material[],2,FALSE))","v":""},null,{"$f":"IF(K14=\"\",\"\",VLOOKUP(K14,make[],2,FALSE))","v":""},null,{"$f":"IF(M14=\"\",\"\",VLOOKUP(M14,shape[],2,FALSE))","v":""},null,{"$f":"IF(O14=\"\",\"\",VLOOKUP(O14,colour[],2,FALSE))","v":""},null,{"$f":"IF(Q14=\"\",\"\",VLOOKUP(Q14,attachment[],2,FALSE))","v":""},null,{"$f":"IF(S14=\"\",\"\",VLOOKUP(S14,ground_fix[],2,FALSE))","v":""},null,{"$f":"IF(U14=\"\",\"\",VLOOKUP(U14,starting_style[],2,FALSE))","v":""},null,null,{"$f":"IF(X14=\"\",\"\",VLOOKUP(X14,ending_style[],2,FALSE))","v":""},null,null,null,{"$f":"IF(AB14=\"\",\"\",VLOOKUP(AB14,post_condition[],2,FALSE))","v":""},null,{"$f":"IF(AD14=\"\",\"\",VLOOKUP(AD14,post_material[],2,FALSE))","v":""},null,null,{"$f":"IF(AG14=\"\",\"\",VLOOKUP(AG14,extra_length_reason[],2,FALSE))","v":""},null,null,null,{"$f":"IF(AK14=\"\",\"\",VLOOKUP(AK14,side[],2,FALSE))","v":""},null,null,null,null,{"$f":"IF(AP14=\"\",\"\",VLOOKUP(AP14,install_reason[],2,FALSE))","v":""},null,{"$f":"IF(AR14=\"\",\"\",VLOOKUP(AR14,asset_owner[],2,FALSE))","v":""},null,{"$f":"IF(AT14=\"\",\"\",VLOOKUP(AT14,likelihood[],2,FALSE))","v":""},null,{"$f":"IF(AV14=\"\",\"\",VLOOKUP(AV14,consequence[],2,FALSE))","v":""},null,{"$f":"IF(AX14=\"\",\"\",VLOOKUP(AX14,risk[],2,FALSE))","v":""},null,{"$f":"IF(AZ14=\"\",\"\",VLOOKUP(AZ14,rul_reset[],2,FALSE))","v":""},null,{"$f":"IF(BB14=\"\",\"\",VLOOKUP(BB14,use_default[],2,FALSE))","v":""},null,{"$f":"IF(BD14=\"\",\"\",VLOOKUP(BD14,railing_condition[],2,FALSE))","v":""},null,null,{"$f":"IF(BG14=\"\",\"\",VLOOKUP(BG14,organisation[],2,FALSE))","v":""},null,null,null,null,{"$f":"IF(BL14=\"\",\"\",VLOOKUP(BL14,replace_reason[],2,FALSE))","v":""}]
["null","null",null,null,null,null,null,{"$f":"IF(G15=\"\",\"\",VLOOKUP(G15,type[],2,FALSE))","v":""},null,{"$f":"IF(I15=\"\",\"\",VLOOKUP(I15,material[],2,FALSE))","v":""},null,{"$f":"IF(K15=\"\",\"\",VLOOKUP(K15,make[],2,FALSE))","v":""},null,{"$f":"IF(M15=\"\",\"\",VLOOKUP(M15,shape[],2,FALSE))","v":""},null,{"$f":"IF(O15=\"\",\"\",VLOOKUP(O15,colour[],2,FALSE))","v":""},null,{"$f":"IF(Q15=\"\",\"\",VLOOKUP(Q15,attachment[],2,FALSE))","v":""},null,{"$f":"IF(S15=\"\",\"\",VLOOKUP(S15,ground_fix[],2,FALSE))","v":""},null,{"$f":"IF(U15=\"\",\"\",VLOOKUP(U15,starting_style[],2,FALSE))","v":""},null,null,{"$f":"IF(X15=\"\",\"\",VLOOKUP(X15,ending_style[],2,FALSE))","v":""},null,null,null,{"$f":"IF(AB15=\"\",\"\",VLOOKUP(AB15,post_condition[],2,FALSE))","v":""},null,{"$f":"IF(AD15=\"\",\"\",VLOOKUP(AD15,post_material[],2,FALSE))","v":""},null,null,{"$f":"IF(AG15=\"\",\"\",VLOOKUP(AG15,extra_length_reason[],2,FALSE))","v":""},null,null,null,{"$f":"IF(AK15=\"\",\"\",VLOOKUP(AK15,side[],2,FALSE))","v":""},null,null,null,null,{"$f":"IF(AP15=\"\",\"\",VLOOKUP(AP15,install_reason[],2,FALSE))","v":""},null,{"$f":"IF(AR15=\"\",\"\",VLOOKUP(AR15,asset_owner[],2,FALSE))","v":""},null,{"$f":"IF(AT15=\"\",\"\",VLOOKUP(AT15,likelihood[],2,FALSE))","v":""},null,{"$f":"IF(AV15=\"\",\"\",VLOOKUP(AV15,consequence[],2,FALSE))","v":""},null,{"$f":"IF(AX15=\"\",\"\",VLOOKUP(AX15,risk[],2,FALSE))","v":""},null,{"$f":"IF(AZ15=\"\",\"\",VLOOKUP(AZ15,rul_reset[],2,FALSE))","v":""},null,{"$f":"IF(BB15=\"\",\"\",VLOOKUP(BB15,use_default[],2,FALSE))","v":""},null,{"$f":"IF(BD15=\"\",\"\",VLOOKUP(BD15,railing_condition[],2,FALSE))","v":""},null,null,{"$f":"IF(BG15=\"\",\"\",VLOOKUP(BG15,organisation[],2,FALSE))","v":""},null,null,null,null,{"$f":"IF(BL15=\"\",\"\",VLOOKUP(BL15,replace_reason[],2,FALSE))","v":""}]
["null","null",null,null,null,null,null,{"$f":"IF(G16=\"\",\"\",VLOOKUP(G16,type[],2,FALSE))","v":""},null,{"$f":"IF(I16=\"\",\"\",VLOOKUP(I16,material[],2,FALSE))","v":""},null,{"$f":"IF(K16=\"\",\"\",VLOOKUP(K16,make[],2,FALSE))","v":""},null,{"$f":"IF(M16=\"\",\"\",VLOOKUP(M16,shape[],2,FALSE))","v":""},null,{"$f":"IF(O16=\"\",\"\",VLOOKUP(O16,colour[],2,FALSE))","v":""},null,{"$f":"IF(Q16=\"\",\"\",VLOOKUP(Q16,attachment[],2,FALSE))","v":""},null,{"$f":"IF(S16=\"\",\"\",VLOOKUP(S16,ground_fix[],2,FALSE))","v":""},null,{"$f":"IF(U16=\"\",\"\",VLOOKUP(U16,starting_style[],2,FALSE))","v":""},null,null,{"$f":"IF(X16=\"\",\"\",VLOOKUP(X16,ending_style[],2,FALSE))","v":""},null,null,null,{"$f":"IF(AB16=\"\",\"\",VLOOKUP(AB16,post_condition[],2,FALSE))","v":""},null,{"$f":"IF(AD16=\"\",\"\",VLOOKUP(AD16,post_material[],2,FALSE))","v":""},null,null,{"$f":"IF(AG16=\"\",\"\",VLOOKUP(AG16,extra_length_reason[],2,FALSE))","v":""},null,null,null,{"$f":"IF(AK16=\"\",\"\",VLOOKUP(AK16,side[],2,FALSE))","v":""},null,null,null,null,{"$f":"IF(AP16=\"\",\"\",VLOOKUP(AP16,install_reason[],2,FALSE))","v":""},null,{"$f":"IF(AR16=\"\",\"\",VLOOKUP(AR16,asset_owner[],2,FALSE))","v":""},null,{"$f":"IF(AT16=\"\",\"\",VLOOKUP(AT16,likelihood[],2,FALSE))","v":""},null,{"$f":"IF(AV16=\"\",\"\",VLOOKUP(AV16,consequence[],2,FALSE))","v":""},null,{"$f":"IF(AX16=\"\",\"\",VLOOKUP(AX16,risk[],2,FALSE))","v":""},null,{"$f":"IF(AZ16=\"\",\"\",VLOOKUP(AZ16,rul_reset[],2,FALSE))","v":""},null,{"$f":"IF(BB16=\"\",\"\",VLOOKUP(BB16,use_default[],2,FALSE))","v":""},null,{"$f":"IF(BD16=\"\",\"\",VLOOKUP(BD16,railing_condition[],2,FALSE))","v":""},null,null,{"$f":"IF(BG16=\"\",\"\",VLOOKUP(BG16,organisation[],2,FALSE))","v":""},null,null,null,null,{"$f":"IF(BL16=\"\",\"\",VLOOKUP(BL16,replace_reason[],2,FALSE))","v":""}]
["null","null",null,null,null,null,null,{"$f":"IF(G17=\"\",\"\",VLOOKUP(G17,type[],2,FALSE))","v":""},null,{"$f":"IF(I17=\"\",\"\",VLOOKUP(I17,material[],2,FALSE))","v":""},null,{"$f":"IF(K17=\"\",\"\",VLOOKUP(K17,make[],2,FALSE))","v":""},null,{"$f":"IF(M17=\"\",\"\",VLOOKUP(M17,shape[],2,FALSE))","v":""},null,{"$f":"IF(O17=\"\",\"\",VLOOKUP(O17,colour[],2,FALSE))","v":""},null,{"$f":"IF(Q17=\"\",\"\",VLOOKUP(Q17,attachment[],2,FALSE))","v":""},null,{"$f":"IF(S17=\"\",\"\",VLOOKUP(S17,ground_fix[],2,FALSE))","v":""},null,{"$f":"IF(U17=\"\",\"\",VLOOKUP(U17,starting_style[],2,FALSE))","v":""},null,null,{"$f":"IF(X17=\"\",\"\",VLOOKUP(X17,ending_style[],2,FALSE))","v":""},null,null,null,{"$f":"IF(AB17=\"\",\"\",VLOOKUP(AB17,post_condition[],2,FALSE))","v":""},null,{"$f":"IF(AD17=\"\",\"\",VLOOKUP(AD17,post_material[],2,FALSE))","v":""},null,null,{"$f":"IF(AG17=\"\",\"\",VLOOKUP(AG17,extra_length_reason[],2,FALSE))","v":""},null,null,null,{"$f":"IF(AK17=\"\",\"\",VLOOKUP(AK17,side[],2,FALSE))","v":""},null,null,null,null,{"$f":"IF(AP17=\"\",\"\",VLOOKUP(AP17,install_reason[],2,FALSE))","v":""},null,{"$f":"IF(AR17=\"\",\"\",VLOOKUP(AR17,asset_owner[],2,FALSE))","v":""},null,{"$f":"IF(AT17=\"\",\"\",VLOOKUP(AT17,likelihood[],2,FALSE))","v":""},null,{"$f":"IF(AV17=\"\",\"\",VLOOKUP(AV17,consequence[],2,FALSE))","v":""},null,{"$f":"IF(AX17=\"\",\"\",VLOOKUP(AX17,risk[],2,FALSE))","v":""},null,{"$f":"IF(AZ17=\"\",\"\",VLOOKUP(AZ17,rul_reset[],2,FALSE))","v":""},null,{"$f":"IF(BB17=\"\",\"\",VLOOKUP(BB17,use_default[],2,FALSE))","v":""},null,{"$f":"IF(BD17=\"\",\"\",VLOOKUP(BD17,railing_condition[],2,FALSE))","v":""},null,null,{"$f":"IF(BG17=\"\",\"\",VLOOKUP(BG17,organisation[],2,FALSE))","v":""},null,null,null,null,{"$f":"IF(BL17=\"\",\"\",VLOOKUP(BL17,replace_reason[],2,FALSE))","v":""}]
["null","null",null,null,null,null,null,{"$f":"IF(G18=\"\",\"\",VLOOKUP(G18,type[],2,FALSE))","v":""},null,{"$f":"IF(I18=\"\",\"\",VLOOKUP(I18,material[],2,FALSE))","v":""},null,{"$f":"IF(K18=\"\",\"\",VLOOKUP(K18,make[],2,FALSE))","v":""},null,{"$f":"IF(M18=\"\",\"\",VLOOKUP(M18,shape[],2,FALSE))","v":""},null,{"$f":"IF(O18=\"\",\"\",VLOOKUP(O18,colour[],2,FALSE))","v":""},null,{"$f":"IF(Q18=\"\",\"\",VLOOKUP(Q18,attachment[],2,FALSE))","v":""},null,{"$f":"IF(S18=\"\",\"\",VLOOKUP(S18,ground_fix[],2,FALSE))","v":""},null,{"$f":"IF(U18=\"\",\"\",VLOOKUP(U18,starting_style[],2,FALSE))","v":""},null,null,{"$f":"IF(X18=\"\",\"\",VLOOKUP(X18,ending_style[],2,FALSE))","v":""},null,null,null,{"$f":"IF(AB18=\"\",\"\",VLOOKUP(AB18,post_condition[],2,FALSE))","v":""},null,{"$f":"IF(AD18=\"\",\"\",VLOOKUP(AD18,post_material[],2,FALSE))","v":""},null,null,{"$f":"IF(AG18=\"\",\"\",VLOOKUP(AG18,extra_length_reason[],2,FALSE))","v":""},null,null,null,{"$f":"IF(AK18=\"\",\"\",VLOOKUP(AK18,side[],2,FALSE))","v":""},null,null,null,null,{"$f":"IF(AP18=\"\",\"\",VLOOKUP(AP18,install_reason[],2,FALSE))","v":""},null,{"$f":"IF(AR18=\"\",\"\",VLOOKUP(AR18,asset_owner[],2,FALSE))","v":""},null,{"$f":"IF(AT18=\"\",\"\",VLOOKUP(AT18,likelihood[],2,FALSE))","v":""},null,{"$f":"IF(AV18=\"\",\"\",VLOOKUP(AV18,consequence[],2,FALSE))","v":""},null,{"$f":"IF(AX18=\"\",\"\",VLOOKUP(AX18,risk[],2,FALSE))","v":""},null,{"$f":"IF(AZ18=\"\",\"\",VLOOKUP(AZ18,rul_reset[],2,FALSE))","v":""},null,{"$f":"IF(BB18=\"\",\"\",VLOOKUP(BB18,use_default[],2,FALSE))","v":""},null,{"$f":"IF(BD18=\"\",\"\",VLOOKUP(BD18,railing_condition[],2,FALSE))","v":""},null,null,{"$f":"IF(BG18=\"\",\"\",VLOOKUP(BG18,organisation[],2,FALSE))","v":""},null,null,null,null,{"$f":"IF(BL18=\"\",\"\",VLOOKUP(BL18,replace_reason[],2,FALSE))","v":""}]
["null","null",null,null,null,null,null,{"$f":"IF(G19=\"\",\"\",VLOOKUP(G19,type[],2,FALSE))","v":""},null,{"$f":"IF(I19=\"\",\"\",VLOOKUP(I19,material[],2,FALSE))","v":""},null,{"$f":"IF(K19=\"\",\"\",VLOOKUP(K19,make[],2,FALSE))","v":""},null,{"$f":"IF(M19=\"\",\"\",VLOOKUP(M19,shape[],2,FALSE))","v":""},null,{"$f":"IF(O19=\"\",\"\",VLOOKUP(O19,colour[],2,FALSE))","v":""},null,{"$f":"IF(Q19=\"\",\"\",VLOOKUP(Q19,attachment[],2,FALSE))","v":""},null,{"$f":"IF(S19=\"\",\"\",VLOOKUP(S19,ground_fix[],2,FALSE))","v":""},null,{"$f":"IF(U19=\"\",\"\",VLOOKUP(U19,starting_style[],2,FALSE))","v":""},null,null,{"$f":"IF(X19=\"\",\"\",VLOOKUP(X19,ending_style[],2,FALSE))","v":""},null,null,null,{"$f":"IF(AB19=\"\",\"\",VLOOKUP(AB19,post_condition[],2,FALSE))","v":""},null,{"$f":"IF(AD19=\"\",\"\",VLOOKUP(AD19,post_material[],2,FALSE))","v":""},null,null,{"$f":"IF(AG19=\"\",\"\",VLOOKUP(AG19,extra_length_reason[],2,FALSE))","v":""},null,null,null,{"$f":"IF(AK19=\"\",\"\",VLOOKUP(AK19,side[],2,FALSE))","v":""},null,null,null,null,{"$f":"IF(AP19=\"\",\"\",VLOOKUP(AP19,install_reason[],2,FALSE))","v":""},null,{"$f":"IF(AR19=\"\",\"\",VLOOKUP(AR19,asset_owner[],2,FALSE))","v":""},null,{"$f":"IF(AT19=\"\",\"\",VLOOKUP(AT19,likelihood[],2,FALSE))","v":""},null,{"$f":"IF(AV19=\"\",\"\",VLOOKUP(AV19,consequence[],2,FALSE))","v":""},null,{"$f":"IF(AX19=\"\",\"\",VLOOKUP(AX19,risk[],2,FALSE))","v":""},null,{"$f":"IF(AZ19=\"\",\"\",VLOOKUP(AZ19,rul_reset[],2,FALSE))","v":""},null,{"$f":"IF(BB19=\"\",\"\",VLOOKUP(BB19,use_default[],2,FALSE))","v":""},null,{"$f":"IF(BD19=\"\",\"\",VLOOKUP(BD19,railing_condition[],2,FALSE))","v":""},null,null,{"$f":"IF(BG19=\"\",\"\",VLOOKUP(BG19,organisation[],2,FALSE))","v":""},null,null,null,null,{"$f":"IF(BL19=\"\",\"\",VLOOKUP(BL19,replace_reason[],2,FALSE))","v":""}]
["null","null",null,null,null,null,null,{"$f":"IF(G20=\"\",\"\",VLOOKUP(G20,type[],2,FALSE))","v":""},null,{"$f":"IF(I20=\"\",\"\",VLOOKUP(I20,material[],2,FALSE))","v":""},null,{"$f":"IF(K20=\"\",\"\",VLOOKUP(K20,make[],2,FALSE))","v":""},null,{"$f":"IF(M20=\"\",\"\",VLOOKUP(M20,shape[],2,FALSE))","v":""},null,{"$f":"IF(O20=\"\",\"\",VLOOKUP(O20,colour[],2,FALSE))","v":""},null,{"$f":"IF(Q20=\"\",\"\",VLOOKUP(Q20,attachment[],2,FALSE))","v":""},null,{"$f":"IF(S20=\"\",\"\",VLOOKUP(S20,ground_fix[],2,FALSE))","v":""},null,{"$f":"IF(U20=\"\",\"\",VLOOKUP(U20,starting_style[],2,FALSE))","v":""},null,null,{"$f":"IF(X20=\"\",\"\",VLOOKUP(X20,ending_style[],2,FALSE))","v":""},null,null,null,{"$f":"IF(AB20=\"\",\"\",VLOOKUP(AB20,post_condition[],2,FALSE))","v":""},null,{"$f":"IF(AD20=\"\",\"\",VLOOKUP(AD20,post_material[],2,FALSE))","v":""},null,null,{"$f":"IF(AG20=\"\",\"\",VLOOKUP(AG20,extra_length_reason[],2,FALSE))","v":""},null,null,null,{"$f":"IF(AK20=\"\",\"\",VLOOKUP(AK20,side[],2,FALSE))","v":""},null,null,null,null,{"$f":"IF(AP20=\"\",\"\",VLOOKUP(AP20,install_reason[],2,FALSE))","v":""},null,{"$f":"IF(AR20=\"\",\"\",VLOOKUP(AR20,asset_owner[],2,FALSE))","v":""},null,{"$f":"IF(AT20=\"\",\"\",VLOOKUP(AT20,likelihood[],2,FALSE))","v":""},null,{"$f":"IF(AV20=\"\",\"\",VLOOKUP(AV20,consequence[],2,FALSE))","v":""},null,{"$f":"IF(AX20=\"\",\"\",VLOOKUP(AX20,risk[],2,FALSE))","v":""},null,{"$f":"IF(AZ20=\"\",\"\",VLOOKUP(AZ20,rul_reset[],2,FALSE))","v":""},null,{"$f":"IF(BB20=\"\",\"\",VLOOKUP(BB20,use_default[],2,FALSE))","v":""},null,{"$f":"IF(BD20=\"\",\"\",VLOOKUP(BD20,railing_condition[],2,FALSE))","v":""},null,null,{"$f":"IF(BG20=\"\",\"\",VLOOKUP(BG20,organisation[],2,FALSE))","v":""},null,null,null,null,{"$f":"IF(BL20=\"\",\"\",VLOOKUP(BL20,replace_reason[],2,FALSE))","v":""}]
["null","null",null,null,null,null,null,{"$f":"IF(G21=\"\",\"\",VLOOKUP(G21,type[],2,FALSE))","v":""},null,{"$f":"IF(I21=\"\",\"\",VLOOKUP(I21,material[],2,FALSE))","v":""},null,{"$f":"IF(K21=\"\",\"\",VLOOKUP(K21,make[],2,FALSE))","v":""},null,{"$f":"IF(M21=\"\",\"\",VLOOKUP(M21,shape[],2,FALSE))","v":""},null,{"$f":"IF(O21=\"\",\"\",VLOOKUP(O21,colour[],2,FALSE))","v":""},null,{"$f":"IF(Q21=\"\",\"\",VLOOKUP(Q21,attachment[],2,FALSE))","v":""},null,{"$f":"IF(S21=\"\",\"\",VLOOKUP(S21,ground_fix[],2,FALSE))","v":""},null,{"$f":"IF(U21=\"\",\"\",VLOOKUP(U21,starting_style[],2,FALSE))","v":""},null,null,{"$f":"IF(X21=\"\",\"\",VLOOKUP(X21,ending_style[],2,FALSE))","v":""},null,null,null,{"$f":"IF(AB21=\"\",\"\",VLOOKUP(AB21,post_condition[],2,FALSE))","v":""},null,{"$f":"IF(AD21=\"\",\"\",VLOOKUP(AD21,post_material[],2,FALSE))","v":""},null,null,{"$f":"IF(AG21=\"\",\"\",VLOOKUP(AG21,extra_length_reason[],2,FALSE))","v":""},null,null,null,{"$f":"IF(AK21=\"\",\"\",VLOOKUP(AK21,side[],2,FALSE))","v":""},null,null,null,null,{"$f":"IF(AP21=\"\",\"\",VLOOKUP(AP21,install_reason[],2,FALSE))","v":""},null,{"$f":"IF(AR21=\"\",\"\",VLOOKUP(AR21,asset_owner[],2,FALSE))","v":""},null,{"$f":"IF(AT21=\"\",\"\",VLOOKUP(AT21,likelihood[],2,FALSE))","v":""},null,{"$f":"IF(AV21=\"\",\"\",VLOOKUP(AV21,consequence[],2,FALSE))","v":""},null,{"$f":"IF(AX21=\"\",\"\",VLOOKUP(AX21,risk[],2,FALSE))","v":""},null,{"$f":"IF(AZ21=\"\",\"\",VLOOKUP(AZ21,rul_reset[],2,FALSE))","v":""},null,{"$f":"IF(BB21=\"\",\"\",VLOOKUP(BB21,use_default[],2,FALSE))","v":""},null,{"$f":"IF(BD21=\"\",\"\",VLOOKUP(BD21,railing_condition[],2,FALSE))","v":""},null,null,{"$f":"IF(BG21=\"\",\"\",VLOOKUP(BG21,organisation[],2,FALSE))","v":""},null,null,null,null,{"$f":"IF(BL21=\"\",\"\",VLOOKUP(BL21,replace_reason[],2,FALSE))","v":""}]
["null","null",null,null,null,null,null,{"$f":"IF(G22=\"\",\"\",VLOOKUP(G22,type[],2,FALSE))","v":""},null,{"$f":"IF(I22=\"\",\"\",VLOOKUP(I22,material[],2,FALSE))","v":""},null,{"$f":"IF(K22=\"\",\"\",VLOOKUP(K22,make[],2,FALSE))","v":""},null,{"$f":"IF(M22=\"\",\"\",VLOOKUP(M22,shape[],2,FALSE))","v":""},null,{"$f":"IF(O22=\"\",\"\",VLOOKUP(O22,colour[],2,FALSE))","v":""},null,{"$f":"IF(Q22=\"\",\"\",VLOOKUP(Q22,attachment[],2,FALSE))","v":""},null,{"$f":"IF(S22=\"\",\"\",VLOOKUP(S22,ground_fix[],2,FALSE))","v":""},null,{"$f":"IF(U22=\"\",\"\",VLOOKUP(U22,starting_style[],2,FALSE))","v":""},null,null,{"$f":"IF(X22=\"\",\"\",VLOOKUP(X22,ending_style[],2,FALSE))","v":""},null,null,null,{"$f":"IF(AB22=\"\",\"\",VLOOKUP(AB22,post_condition[],2,FALSE))","v":""},null,{"$f":"IF(AD22=\"\",\"\",VLOOKUP(AD22,post_material[],2,FALSE))","v":""},null,null,{"$f":"IF(AG22=\"\",\"\",VLOOKUP(AG22,extra_length_reason[],2,FALSE))","v":""},null,null,null,{"$f":"IF(AK22=\"\",\"\",VLOOKUP(AK22,side[],2,FALSE))","v":""},null,null,null,null,{"$f":"IF(AP22=\"\",\"\",VLOOKUP(AP22,install_reason[],2,FALSE))","v":""},null,{"$f":"IF(AR22=\"\",\"\",VLOOKUP(AR22,asset_owner[],2,FALSE))","v":""},null,{"$f":"IF(AT22=\"\",\"\",VLOOKUP(AT22,likelihood[],2,FALSE))","v":""},null,{"$f":"IF(AV22=\"\",\"\",VLOOKUP(AV22,consequence[],2,FALSE))","v":""},null,{"$f":"IF(AX22=\"\",\"\",VLOOKUP(AX22,risk[],2,FALSE))","v":""},null,{"$f":"IF(AZ22=\"\",\"\",VLOOKUP(AZ22,rul_reset[],2,FALSE))","v":""},null,{"$f":"IF(BB22=\"\",\"\",VLOOKUP(BB22,use_default[],2,FALSE))","v":""},null,{"$f":"IF(BD22=\"\",\"\",VLOOKUP(BD22,railing_condition[],2,FALSE))","v":""},null,null,{"$f":"IF(BG22=\"\",\"\",VLOOKUP(BG22,organisation[],2,FALSE))","v":""},null,null,null,null,{"$f":"IF(BL22=\"\",\"\",VLOOKUP(BL22,replace_reason[],2,FALSE))","v":""}]
["null","null",null,null,null,null,null,{"$f":"IF(G23=\"\",\"\",VLOOKUP(G23,type[],2,FALSE))","v":""},null,{"$f":"IF(I23=\"\",\"\",VLOOKUP(I23,material[],2,FALSE))","v":""},null,{"$f":"IF(K23=\"\",\"\",VLOOKUP(K23,make[],2,FALSE))","v":""},null,{"$f":"IF(M23=\"\",\"\",VLOOKUP(M23,shape[],2,FALSE))","v":""},null,{"$f":"IF(O23=\"\",\"\",VLOOKUP(O23,colour[],2,FALSE))","v":""},null,{"$f":"IF(Q23=\"\",\"\",VLOOKUP(Q23,attachment[],2,FALSE))","v":""},null,{"$f":"IF(S23=\"\",\"\",VLOOKUP(S23,ground_fix[],2,FALSE))","v":""},null,{"$f":"IF(U23=\"\",\"\",VLOOKUP(U23,starting_style[],2,FALSE))","v":""},null,null,{"$f":"IF(X23=\"\",\"\",VLOOKUP(X23,ending_style[],2,FALSE))","v":""},null,null,null,{"$f":"IF(AB23=\"\",\"\",VLOOKUP(AB23,post_condition[],2,FALSE))","v":""},null,{"$f":"IF(AD23=\"\",\"\",VLOOKUP(AD23,post_material[],2,FALSE))","v":""},null,null,{"$f":"IF(AG23=\"\",\"\",VLOOKUP(AG23,extra_length_reason[],2,FALSE))","v":""},null,null,null,{"$f":"IF(AK23=\"\",\"\",VLOOKUP(AK23,side[],2,FALSE))","v":""},null,null,null,null,{"$f":"IF(AP23=\"\",\"\",VLOOKUP(AP23,install_reason[],2,FALSE))","v":""},null,{"$f":"IF(AR23=\"\",\"\",VLOOKUP(AR23,asset_owner[],2,FALSE))","v":""},null,{"$f":"IF(AT23=\"\",\"\",VLOOKUP(AT23,likelihood[],2,FALSE))","v":""},null,{"$f":"IF(AV23=\"\",\"\",VLOOKUP(AV23,consequence[],2,FALSE))","v":""},null,{"$f":"IF(AX23=\"\",\"\",VLOOKUP(AX23,risk[],2,FALSE))","v":""},null,{"$f":"IF(AZ23=\"\",\"\",VLOOKUP(AZ23,rul_reset[],2,FALSE))","v":""},null,{"$f":"IF(BB23=\"\",\"\",VLOOKUP(BB23,use_default[],2,FALSE))","v":""},null,{"$f":"IF(BD23=\"\",\"\",VLOOKUP(BD23,railing_condition[],2,FALSE))","v":""},null,null,{"$f":"IF(BG23=\"\",\"\",VLOOKUP(BG23,organisation[],2,FALSE))","v":""},null,null,null,null,{"$f":"IF(BL23=\"\",\"\",VLOOKUP(BL23,replace_reason[],2,FALSE))","v":""}]
["null","null",null,null,null,null,null,{"$f":"IF(G24=\"\",\"\",VLOOKUP(G24,type[],2,FALSE))","v":""},null,{"$f":"IF(I24=\"\",\"\",VLOOKUP(I24,material[],2,FALSE))","v":""},null,{"$f":"IF(K24=\"\",\"\",VLOOKUP(K24,make[],2,FALSE))","v":""},null,{"$f":"IF(M24=\"\",\"\",VLOOKUP(M24,shape[],2,FALSE))","v":""},null,{"$f":"IF(O24=\"\",\"\",VLOOKUP(O24,colour[],2,FALSE))","v":""},null,{"$f":"IF(Q24=\"\",\"\",VLOOKUP(Q24,attachment[],2,FALSE))","v":""},null,{"$f":"IF(S24=\"\",\"\",VLOOKUP(S24,ground_fix[],2,FALSE))","v":""},null,{"$f":"IF(U24=\"\",\"\",VLOOKUP(U24,starting_style[],2,FALSE))","v":""},null,null,{"$f":"IF(X24=\"\",\"\",VLOOKUP(X24,ending_style[],2,FALSE))","v":""},null,null,null,{"$f":"IF(AB24=\"\",\"\",VLOOKUP(AB24,post_condition[],2,FALSE))","v":""},null,{"$f":"IF(AD24=\"\",\"\",VLOOKUP(AD24,post_material[],2,FALSE))","v":""},null,null,{"$f":"IF(AG24=\"\",\"\",VLOOKUP(AG24,extra_length_reason[],2,FALSE))","v":""},null,null,null,{"$f":"IF(AK24=\"\",\"\",VLOOKUP(AK24,side[],2,FALSE))","v":""},null,null,null,null,{"$f":"IF(AP24=\"\",\"\",VLOOKUP(AP24,install_reason[],2,FALSE))","v":""},null,{"$f":"IF(AR24=\"\",\"\",VLOOKUP(AR24,asset_owner[],2,FALSE))","v":""},null,{"$f":"IF(AT24=\"\",\"\",VLOOKUP(AT24,likelihood[],2,FALSE))","v":""},null,{"$f":"IF(AV24=\"\",\"\",VLOOKUP(AV24,consequence[],2,FALSE))","v":""},null,{"$f":"IF(AX24=\"\",\"\",VLOOKUP(AX24,risk[],2,FALSE))","v":""},null,{"$f":"IF(AZ24=\"\",\"\",VLOOKUP(AZ24,rul_reset[],2,FALSE))","v":""},null,{"$f":"IF(BB24=\"\",\"\",VLOOKUP(BB24,use_default[],2,FALSE))","v":""},null,{"$f":"IF(BD24=\"\",\"\",VLOOKUP(BD24,railing_condition[],2,FALSE))","v":""},null,null,{"$f":"IF(BG24=\"\",\"\",VLOOKUP(BG24,organisation[],2,FALSE))","v":""},null,null,null,null,{"$f":"IF(BL24=\"\",\"\",VLOOKUP(BL24,replace_reason[],2,FALSE))","v":""}]
["null","null",null,null,null,null,null,{"$f":"IF(G25=\"\",\"\",VLOOKUP(G25,type[],2,FALSE))","v":""},null,{"$f":"IF(I25=\"\",\"\",VLOOKUP(I25,material[],2,FALSE))","v":""},null,{"$f":"IF(K25=\"\",\"\",VLOOKUP(K25,make[],2,FALSE))","v":""},null,{"$f":"IF(M25=\"\",\"\",VLOOKUP(M25,shape[],2,FALSE))","v":""},null,{"$f":"IF(O25=\"\",\"\",VLOOKUP(O25,colour[],2,FALSE))","v":""},null,{"$f":"IF(Q25=\"\",\"\",VLOOKUP(Q25,attachment[],2,FALSE))","v":""},null,{"$f":"IF(S25=\"\",\"\",VLOOKUP(S25,ground_fix[],2,FALSE))","v":""},null,{"$f":"IF(U25=\"\",\"\",VLOOKUP(U25,starting_style[],2,FALSE))","v":""},null,null,{"$f":"IF(X25=\"\",\"\",VLOOKUP(X25,ending_style[],2,FALSE))","v":""},null,null,null,{"$f":"IF(AB25=\"\",\"\",VLOOKUP(AB25,post_condition[],2,FALSE))","v":""},null,{"$f":"IF(AD25=\"\",\"\",VLOOKUP(AD25,post_material[],2,FALSE))","v":""},null,null,{"$f":"IF(AG25=\"\",\"\",VLOOKUP(AG25,extra_length_reason[],2,FALSE))","v":""},null,null,null,{"$f":"IF(AK25=\"\",\"\",VLOOKUP(AK25,side[],2,FALSE))","v":""},null,null,null,null,{"$f":"IF(AP25=\"\",\"\",VLOOKUP(AP25,install_reason[],2,FALSE))","v":""},null,{"$f":"IF(AR25=\"\",\"\",VLOOKUP(AR25,asset_owner[],2,FALSE))","v":""},null,{"$f":"IF(AT25=\"\",\"\",VLOOKUP(AT25,likelihood[],2,FALSE))","v":""},null,{"$f":"IF(AV25=\"\",\"\",VLOOKUP(AV25,consequence[],2,FALSE))","v":""},null,{"$f":"IF(AX25=\"\",\"\",VLOOKUP(AX25,risk[],2,FALSE))","v":""},null,{"$f":"IF(AZ25=\"\",\"\",VLOOKUP(AZ25,rul_reset[],2,FALSE))","v":""},null,{"$f":"IF(BB25=\"\",\"\",VLOOKUP(BB25,use_default[],2,FALSE))","v":""},null,{"$f":"IF(BD25=\"\",\"\",VLOOKUP(BD25,railing_condition[],2,FALSE))","v":""},null,null,{"$f":"IF(BG25=\"\",\"\",VLOOKUP(BG25,organisation[],2,FALSE))","v":""},null,null,null,null,{"$f":"IF(BL25=\"\",\"\",VLOOKUP(BL25,replace_reason[],2,FALSE))","v":""}]
["null","null",null,null,null,null,null,{"$f":"IF(G26=\"\",\"\",VLOOKUP(G26,type[],2,FALSE))","v":""},null,{"$f":"IF(I26=\"\",\"\",VLOOKUP(I26,material[],2,FALSE))","v":""},null,{"$f":"IF(K26=\"\",\"\",VLOOKUP(K26,make[],2,FALSE))","v":""},null,{"$f":"IF(M26=\"\",\"\",VLOOKUP(M26,shape[],2,FALSE))","v":""},null,{"$f":"IF(O26=\"\",\"\",VLOOKUP(O26,colour[],2,FALSE))","v":""},null,{"$f":"IF(Q26=\"\",\"\",VLOOKUP(Q26,attachment[],2,FALSE))","v":""},null,{"$f":"IF(S26=\"\",\"\",VLOOKUP(S26,ground_fix[],2,FALSE))","v":""},null,{"$f":"IF(U26=\"\",\"\",VLOOKUP(U26,starting_style[],2,FALSE))","v":""},null,null,{"$f":"IF(X26=\"\",\"\",VLOOKUP(X26,ending_style[],2,FALSE))","v":""},null,null,null,{"$f":"IF(AB26=\"\",\"\",VLOOKUP(AB26,post_condition[],2,FALSE))","v":""},null,{"$f":"IF(AD26=\"\",\"\",VLOOKUP(AD26,post_material[],2,FALSE))","v":""},null,null,{"$f":"IF(AG26=\"\",\"\",VLOOKUP(AG26,extra_length_reason[],2,FALSE))","v":""},null,null,null,{"$f":"IF(AK26=\"\",\"\",VLOOKUP(AK26,side[],2,FALSE))","v":""},null,null,null,null,{"$f":"IF(AP26=\"\",\"\",VLOOKUP(AP26,install_reason[],2,FALSE))","v":""},null,{"$f":"IF(AR26=\"\",\"\",VLOOKUP(AR26,asset_owner[],2,FALSE))","v":""},null,{"$f":"IF(AT26=\"\",\"\",VLOOKUP(AT26,likelihood[],2,FALSE))","v":""},null,{"$f":"IF(AV26=\"\",\"\",VLOOKUP(AV26,consequence[],2,FALSE))","v":""},null,{"$f":"IF(AX26=\"\",\"\",VLOOKUP(AX26,risk[],2,FALSE))","v":""},null,{"$f":"IF(AZ26=\"\",\"\",VLOOKUP(AZ26,rul_reset[],2,FALSE))","v":""},null,{"$f":"IF(BB26=\"\",\"\",VLOOKUP(BB26,use_default[],2,FALSE))","v":""},null,{"$f":"IF(BD26=\"\",\"\",VLOOKUP(BD26,railing_condition[],2,FALSE))","v":""},null,null,{"$f":"IF(BG26=\"\",\"\",VLOOKUP(BG26,organisation[],2,FALSE))","v":""},null,null,null,null,{"$f":"IF(BL26=\"\",\"\",VLOOKUP(BL26,replace_reason[],2,FALSE))","v":""}]
["null","null",null,null,null,null,null,{"$f":"IF(G27=\"\",\"\",VLOOKUP(G27,type[],2,FALSE))","v":""},null,{"$f":"IF(I27=\"\",\"\",VLOOKUP(I27,material[],2,FALSE))","v":""},null,{"$f":"IF(K27=\"\",\"\",VLOOKUP(K27,make[],2,FALSE))","v":""},null,{"$f":"IF(M27=\"\",\"\",VLOOKUP(M27,shape[],2,FALSE))","v":""},null,{"$f":"IF(O27=\"\",\"\",VLOOKUP(O27,colour[],2,FALSE))","v":""},null,{"$f":"IF(Q27=\"\",\"\",VLOOKUP(Q27,attachment[],2,FALSE))","v":""},null,{"$f":"IF(S27=\"\",\"\",VLOOKUP(S27,ground_fix[],2,FALSE))","v":""},null,{"$f":"IF(U27=\"\",\"\",VLOOKUP(U27,starting_style[],2,FALSE))","v":""},null,null,{"$f":"IF(X27=\"\",\"\",VLOOKUP(X27,ending_style[],2,FALSE))","v":""},null,null,null,{"$f":"IF(AB27=\"\",\"\",VLOOKUP(AB27,post_condition[],2,FALSE))","v":""},null,{"$f":"IF(AD27=\"\",\"\",VLOOKUP(AD27,post_material[],2,FALSE))","v":""},null,null,{"$f":"IF(AG27=\"\",\"\",VLOOKUP(AG27,extra_length_reason[],2,FALSE))","v":""},null,null,null,{"$f":"IF(AK27=\"\",\"\",VLOOKUP(AK27,side[],2,FALSE))","v":""},null,null,null,null,{"$f":"IF(AP27=\"\",\"\",VLOOKUP(AP27,install_reason[],2,FALSE))","v":""},null,{"$f":"IF(AR27=\"\",\"\",VLOOKUP(AR27,asset_owner[],2,FALSE))","v":""},null,{"$f":"IF(AT27=\"\",\"\",VLOOKUP(AT27,likelihood[],2,FALSE))","v":""},null,{"$f":"IF(AV27=\"\",\"\",VLOOKUP(AV27,consequence[],2,FALSE))","v":""},null,{"$f":"IF(AX27=\"\",\"\",VLOOKUP(AX27,risk[],2,FALSE))","v":""},null,{"$f":"IF(AZ27=\"\",\"\",VLOOKUP(AZ27,rul_reset[],2,FALSE))","v":""},null,{"$f":"IF(BB27=\"\",\"\",VLOOKUP(BB27,use_default[],2,FALSE))","v":""},null,{"$f":"IF(BD27=\"\",\"\",VLOOKUP(BD27,railing_condition[],2,FALSE))","v":""},null,null,{"$f":"IF(BG27=\"\",\"\",VLOOKUP(BG27,organisation[],2,FALSE))","v":""},null,null,null,null,{"$f":"IF(BL27=\"\",\"\",VLOOKUP(BL27,replace_reason[],2,FALSE))","v":""}]
["null","null",null,null,null,null,null,{"$f":"IF(G28=\"\",\"\",VLOOKUP(G28,type[],2,FALSE))","v":""},null,{"$f":"IF(I28=\"\",\"\",VLOOKUP(I28,material[],2,FALSE))","v":""},null,{"$f":"IF(K28=\"\",\"\",VLOOKUP(K28,make[],2,FALSE))","v":""},null,{"$f":"IF(M28=\"\",\"\",VLOOKUP(M28,shape[],2,FALSE))","v":""},null,{"$f":"IF(O28=\"\",\"\",VLOOKUP(O28,colour[],2,FALSE))","v":""},null,{"$f":"IF(Q28=\"\",\"\",VLOOKUP(Q28,attachment[],2,FALSE))","v":""},null,{"$f":"IF(S28=\"\",\"\",VLOOKUP(S28,ground_fix[],2,FALSE))","v":""},null,{"$f":"IF(U28=\"\",\"\",VLOOKUP(U28,starting_style[],2,FALSE))","v":""},null,null,{"$f":"IF(X28=\"\",\"\",VLOOKUP(X28,ending_style[],2,FALSE))","v":""},null,null,null,{"$f":"IF(AB28=\"\",\"\",VLOOKUP(AB28,post_condition[],2,FALSE))","v":""},null,{"$f":"IF(AD28=\"\",\"\",VLOOKUP(AD28,post_material[],2,FALSE))","v":""},null,null,{"$f":"IF(AG28=\"\",\"\",VLOOKUP(AG28,extra_length_reason[],2,FALSE))","v":""},null,null,null,{"$f":"IF(AK28=\"\",\"\",VLOOKUP(AK28,side[],2,FALSE))","v":""},null,null,null,null,{"$f":"IF(AP28=\"\",\"\",VLOOKUP(AP28,install_reason[],2,FALSE))","v":""},null,{"$f":"IF(AR28=\"\",\"\",VLOOKUP(AR28,asset_owner[],2,FALSE))","v":""},null,{"$f":"IF(AT28=\"\",\"\",VLOOKUP(AT28,likelihood[],2,FALSE))","v":""},null,{"$f":"IF(AV28=\"\",\"\",VLOOKUP(AV28,consequence[],2,FALSE))","v":""},null,{"$f":"IF(AX28=\"\",\"\",VLOOKUP(AX28,risk[],2,FALSE))","v":""},null,{"$f":"IF(AZ28=\"\",\"\",VLOOKUP(AZ28,rul_reset[],2,FALSE))","v":""},null,{"$f":"IF(BB28=\"\",\"\",VLOOKUP(BB28,use_default[],2,FALSE))","v":""},null,{"$f":"IF(BD28=\"\",\"\",VLOOKUP(BD28,railing_condition[],2,FALSE))","v":""},null,null,{"$f":"IF(BG28=\"\",\"\",VLOOKUP(BG28,organisation[],2,FALSE))","v":""},null,null,null,null,{"$f":"IF(BL28=\"\",\"\",VLOOKUP(BL28,replace_reason[],2,FALSE))","v":""}]
["null","null",null,null,null,null,null,{"$f":"IF(G29=\"\",\"\",VLOOKUP(G29,type[],2,FALSE))","v":""},null,{"$f":"IF(I29=\"\",\"\",VLOOKUP(I29,material[],2,FALSE))","v":""},null,{"$f":"IF(K29=\"\",\"\",VLOOKUP(K29,make[],2,FALSE))","v":""},null,{"$f":"IF(M29=\"\",\"\",VLOOKUP(M29,shape[],2,FALSE))","v":""},null,{"$f":"IF(O29=\"\",\"\",VLOOKUP(O29,colour[],2,FALSE))","v":""},null,{"$f":"IF(Q29=\"\",\"\",VLOOKUP(Q29,attachment[],2,FALSE))","v":""},null,{"$f":"IF(S29=\"\",\"\",VLOOKUP(S29,ground_fix[],2,FALSE))","v":""},null,{"$f":"IF(U29=\"\",\"\",VLOOKUP(U29,starting_style[],2,FALSE))","v":""},null,null,{"$f":"IF(X29=\"\",\"\",VLOOKUP(X29,ending_style[],2,FALSE))","v":""},null,null,null,{"$f":"IF(AB29=\"\",\"\",VLOOKUP(AB29,post_condition[],2,FALSE))","v":""},null,{"$f":"IF(AD29=\"\",\"\",VLOOKUP(AD29,post_material[],2,FALSE))","v":""},null,null,{"$f":"IF(AG29=\"\",\"\",VLOOKUP(AG29,extra_length_reason[],2,FALSE))","v":""},null,null,null,{"$f":"IF(AK29=\"\",\"\",VLOOKUP(AK29,side[],2,FALSE))","v":""},null,null,null,null,{"$f":"IF(AP29=\"\",\"\",VLOOKUP(AP29,install_reason[],2,FALSE))","v":""},null,{"$f":"IF(AR29=\"\",\"\",VLOOKUP(AR29,asset_owner[],2,FALSE))","v":""},null,{"$f":"IF(AT29=\"\",\"\",VLOOKUP(AT29,likelihood[],2,FALSE))","v":""},null,{"$f":"IF(AV29=\"\",\"\",VLOOKUP(AV29,consequence[],2,FALSE))","v":""},null,{"$f":"IF(AX29=\"\",\"\",VLOOKUP(AX29,risk[],2,FALSE))","v":""},null,{"$f":"IF(AZ29=\"\",\"\",VLOOKUP(AZ29,rul_reset[],2,FALSE))","v":""},null,{"$f":"IF(BB29=\"\",\"\",VLOOKUP(BB29,use_default[],2,FALSE))","v":""},null,{"$f":"IF(BD29=\"\",\"\",VLOOKUP(BD29,railing_condition[],2,FALSE))","v":""},null,null,{"$f":"IF(BG29=\"\",\"\",VLOOKUP(BG29,organisation[],2,FALSE))","v":""},null,null,null,null,{"$f":"IF(BL29=\"\",\"\",VLOOKUP(BL29,replace_reason[],2,FALSE))","v":""}]
["null","null",null,null,null,null,null,{"$f":"IF(G30=\"\",\"\",VLOOKUP(G30,type[],2,FALSE))","v":""},null,{"$f":"IF(I30=\"\",\"\",VLOOKUP(I30,material[],2,FALSE))","v":""},null,{"$f":"IF(K30=\"\",\"\",VLOOKUP(K30,make[],2,FALSE))","v":""},null,{"$f":"IF(M30=\"\",\"\",VLOOKUP(M30,shape[],2,FALSE))","v":""},null,{"$f":"IF(O30=\"\",\"\",VLOOKUP(O30,colour[],2,FALSE))","v":""},null,{"$f":"IF(Q30=\"\",\"\",VLOOKUP(Q30,attachment[],2,FALSE))","v":""},null,{"$f":"IF(S30=\"\",\"\",VLOOKUP(S30,ground_fix[],2,FALSE))","v":""},null,{"$f":"IF(U30=\"\",\"\",VLOOKUP(U30,starting_style[],2,FALSE))","v":""},null,null,{"$f":"IF(X30=\"\",\"\",VLOOKUP(X30,ending_style[],2,FALSE))","v":""},null,null,null,{"$f":"IF(AB30=\"\",\"\",VLOOKUP(AB30,post_condition[],2,FALSE))","v":""},null,{"$f":"IF(AD30=\"\",\"\",VLOOKUP(AD30,post_material[],2,FALSE))","v":""},null,null,{"$f":"IF(AG30=\"\",\"\",VLOOKUP(AG30,extra_length_reason[],2,FALSE))","v":""},null,null,null,{"$f":"IF(AK30=\"\",\"\",VLOOKUP(AK30,side[],2,FALSE))","v":""},null,null,null,null,{"$f":"IF(AP30=\"\",\"\",VLOOKUP(AP30,install_reason[],2,FALSE))","v":""},null,{"$f":"IF(AR30=\"\",\"\",VLOOKUP(AR30,asset_owner[],2,FALSE))","v":""},null,{"$f":"IF(AT30=\"\",\"\",VLOOKUP(AT30,likelihood[],2,FALSE))","v":""},null,{"$f":"IF(AV30=\"\",\"\",VLOOKUP(AV30,consequence[],2,FALSE))","v":""},null,{"$f":"IF(AX30=\"\",\"\",VLOOKUP(AX30,risk[],2,FALSE))","v":""},null,{"$f":"IF(AZ30=\"\",\"\",VLOOKUP(AZ30,rul_reset[],2,FALSE))","v":""},null,{"$f":"IF(BB30=\"\",\"\",VLOOKUP(BB30,use_default[],2,FALSE))","v":""},null,{"$f":"IF(BD30=\"\",\"\",VLOOKUP(BD30,railing_condition[],2,FALSE))","v":""},null,null,{"$f":"IF(BG30=\"\",\"\",VLOOKUP(BG30,organisation[],2,FALSE))","v":""},null,null,null,null,{"$f":"IF(BL30=\"\",\"\",VLOOKUP(BL30,replace_reason[],2,FALSE))","v":""}]
["null","null",null,null,null,null,null,{"$f":"IF(G31=\"\",\"\",VLOOKUP(G31,type[],2,FALSE))","v":""},null,{"$f":"IF(I31=\"\",\"\",VLOOKUP(I31,material[],2,FALSE))","v":""},null,{"$f":"IF(K31=\"\",\"\",VLOOKUP(K31,make[],2,FALSE))","v":""},null,{"$f":"IF(M31=\"\",\"\",VLOOKUP(M31,shape[],2,FALSE))","v":""},null,{"$f":"IF(O31=\"\",\"\",VLOOKUP(O31,colour[],2,FALSE))","v":""},null,{"$f":"IF(Q31=\"\",\"\",VLOOKUP(Q31,attachment[],2,FALSE))","v":""},null,{"$f":"IF(S31=\"\",\"\",VLOOKUP(S31,ground_fix[],2,FALSE))","v":""},null,{"$f":"IF(U31=\"\",\"\",VLOOKUP(U31,starting_style[],2,FALSE))","v":""},null,null,{"$f":"IF(X31=\"\",\"\",VLOOKUP(X31,ending_style[],2,FALSE))","v":""},null,null,null,{"$f":"IF(AB31=\"\",\"\",VLOOKUP(AB31,post_condition[],2,FALSE))","v":""},null,{"$f":"IF(AD31=\"\",\"\",VLOOKUP(AD31,post_material[],2,FALSE))","v":""},null,null,{"$f":"IF(AG31=\"\",\"\",VLOOKUP(AG31,extra_length_reason[],2,FALSE))","v":""},null,null,null,{"$f":"IF(AK31=\"\",\"\",VLOOKUP(AK31,side[],2,FALSE))","v":""},null,null,null,null,{"$f":"IF(AP31=\"\",\"\",VLOOKUP(AP31,install_reason[],2,FALSE))","v":""},null,{"$f":"IF(AR31=\"\",\"\",VLOOKUP(AR31,asset_owner[],2,FALSE))","v":""},null,{"$f":"IF(AT31=\"\",\"\",VLOOKUP(AT31,likelihood[],2,FALSE))","v":""},null,{"$f":"IF(AV31=\"\",\"\",VLOOKUP(AV31,consequence[],2,FALSE))","v":""},null,{"$f":"IF(AX31=\"\",\"\",VLOOKUP(AX31,risk[],2,FALSE))","v":""},null,{"$f":"IF(AZ31=\"\",\"\",VLOOKUP(AZ31,rul_reset[],2,FALSE))","v":""},null,{"$f":"IF(BB31=\"\",\"\",VLOOKUP(BB31,use_default[],2,FALSE))","v":""},null,{"$f":"IF(BD31=\"\",\"\",VLOOKUP(BD31,railing_condition[],2,FALSE))","v":""},null,null,{"$f":"IF(BG31=\"\",\"\",VLOOKUP(BG31,organisation[],2,FALSE))","v":""},null,null,null,null,{"$f":"IF(BL31=\"\",\"\",VLOOKUP(BL31,replace_reason[],2,FALSE))","v":""}]
["null","null",null,null,null,null,null,{"$f":"IF(G32=\"\",\"\",VLOOKUP(G32,type[],2,FALSE))","v":""},null,{"$f":"IF(I32=\"\",\"\",VLOOKUP(I32,material[],2,FALSE))","v":""},null,{"$f":"IF(K32=\"\",\"\",VLOOKUP(K32,make[],2,FALSE))","v":""},null,{"$f":"IF(M32=\"\",\"\",VLOOKUP(M32,shape[],2,FALSE))","v":""},null,{"$f":"IF(O32=\"\",\"\",VLOOKUP(O32,colour[],2,FALSE))","v":""},null,{"$f":"IF(Q32=\"\",\"\",VLOOKUP(Q32,attachment[],2,FALSE))","v":""},null,{"$f":"IF(S32=\"\",\"\",VLOOKUP(S32,ground_fix[],2,FALSE))","v":""},null,{"$f":"IF(U32=\"\",\"\",VLOOKUP(U32,starting_style[],2,FALSE))","v":""},null,null,{"$f":"IF(X32=\"\",\"\",VLOOKUP(X32,ending_style[],2,FALSE))","v":""},null,null,null,{"$f":"IF(AB32=\"\",\"\",VLOOKUP(AB32,post_condition[],2,FALSE))","v":""},null,{"$f":"IF(AD32=\"\",\"\",VLOOKUP(AD32,post_material[],2,FALSE))","v":""},null,null,{"$f":"IF(AG32=\"\",\"\",VLOOKUP(AG32,extra_length_reason[],2,FALSE))","v":""},null,null,null,{"$f":"IF(AK32=\"\",\"\",VLOOKUP(AK32,side[],2,FALSE))","v":""},null,null,null,null,{"$f":"IF(AP32=\"\",\"\",VLOOKUP(AP32,install_reason[],2,FALSE))","v":""},null,{"$f":"IF(AR32=\"\",\"\",VLOOKUP(AR32,asset_owner[],2,FALSE))","v":""},null,{"$f":"IF(AT32=\"\",\"\",VLOOKUP(AT32,likelihood[],2,FALSE))","v":""},null,{"$f":"IF(AV32=\"\",\"\",VLOOKUP(AV32,consequence[],2,FALSE))","v":""},null,{"$f":"IF(AX32=\"\",\"\",VLOOKUP(AX32,risk[],2,FALSE))","v":""},null,{"$f":"IF(AZ32=\"\",\"\",VLOOKUP(AZ32,rul_reset[],2,FALSE))","v":""},null,{"$f":"IF(BB32=\"\",\"\",VLOOKUP(BB32,use_default[],2,FALSE))","v":""},null,{"$f":"IF(BD32=\"\",\"\",VLOOKUP(BD32,railing_condition[],2,FALSE))","v":""},null,null,{"$f":"IF(BG32=\"\",\"\",VLOOKUP(BG32,organisation[],2,FALSE))","v":""},null,null,null,null,{"$f":"IF(BL32=\"\",\"\",VLOOKUP(BL32,replace_reason[],2,FALSE))","v":""}]
["null","null",null,null,null,null,null,{"$f":"IF(G33=\"\",\"\",VLOOKUP(G33,type[],2,FALSE))","v":""},null,{"$f":"IF(I33=\"\",\"\",VLOOKUP(I33,material[],2,FALSE))","v":""},null,{"$f":"IF(K33=\"\",\"\",VLOOKUP(K33,make[],2,FALSE))","v":""},null,{"$f":"IF(M33=\"\",\"\",VLOOKUP(M33,shape[],2,FALSE))","v":""},null,{"$f":"IF(O33=\"\",\"\",VLOOKUP(O33,colour[],2,FALSE))","v":""},null,{"$f":"IF(Q33=\"\",\"\",VLOOKUP(Q33,attachment[],2,FALSE))","v":""},null,{"$f":"IF(S33=\"\",\"\",VLOOKUP(S33,ground_fix[],2,FALSE))","v":""},null,{"$f":"IF(U33=\"\",\"\",VLOOKUP(U33,starting_style[],2,FALSE))","v":""},null,null,{"$f":"IF(X33=\"\",\"\",VLOOKUP(X33,ending_style[],2,FALSE))","v":""},null,null,null,{"$f":"IF(AB33=\"\",\"\",VLOOKUP(AB33,post_condition[],2,FALSE))","v":""},null,{"$f":"IF(AD33=\"\",\"\",VLOOKUP(AD33,post_material[],2,FALSE))","v":""},null,null,{"$f":"IF(AG33=\"\",\"\",VLOOKUP(AG33,extra_length_reason[],2,FALSE))","v":""},null,null,null,{"$f":"IF(AK33=\"\",\"\",VLOOKUP(AK33,side[],2,FALSE))","v":""},null,null,null,null,{"$f":"IF(AP33=\"\",\"\",VLOOKUP(AP33,install_reason[],2,FALSE))","v":""},null,{"$f":"IF(AR33=\"\",\"\",VLOOKUP(AR33,asset_owner[],2,FALSE))","v":""},null,{"$f":"IF(AT33=\"\",\"\",VLOOKUP(AT33,likelihood[],2,FALSE))","v":""},null,{"$f":"IF(AV33=\"\",\"\",VLOOKUP(AV33,consequence[],2,FALSE))","v":""},null,{"$f":"IF(AX33=\"\",\"\",VLOOKUP(AX33,risk[],2,FALSE))","v":""},null,{"$f":"IF(AZ33=\"\",\"\",VLOOKUP(AZ33,rul_reset[],2,FALSE))","v":""},null,{"$f":"IF(BB33=\"\",\"\",VLOOKUP(BB33,use_default[],2,FALSE))","v":""},null,{"$f":"IF(BD33=\"\",\"\",VLOOKUP(BD33,railing_condition[],2,FALSE))","v":""},null,null,{"$f":"IF(BG33=\"\",\"\",VLOOKUP(BG33,organisation[],2,FALSE))","v":""},null,null,null,null,{"$f":"IF(BL33=\"\",\"\",VLOOKUP(BL33,replace_reason[],2,FALSE))","v":""}]
["null","null",null,null,null,null,null,{"$f":"IF(G34=\"\",\"\",VLOOKUP(G34,type[],2,FALSE))","v":""},null,{"$f":"IF(I34=\"\",\"\",VLOOKUP(I34,material[],2,FALSE))","v":""},null,{"$f":"IF(K34=\"\",\"\",VLOOKUP(K34,make[],2,FALSE))","v":""},null,{"$f":"IF(M34=\"\",\"\",VLOOKUP(M34,shape[],2,FALSE))","v":""},null,{"$f":"IF(O34=\"\",\"\",VLOOKUP(O34,colour[],2,FALSE))","v":""},null,{"$f":"IF(Q34=\"\",\"\",VLOOKUP(Q34,attachment[],2,FALSE))","v":""},null,{"$f":"IF(S34=\"\",\"\",VLOOKUP(S34,ground_fix[],2,FALSE))","v":""},null,{"$f":"IF(U34=\"\",\"\",VLOOKUP(U34,starting_style[],2,FALSE))","v":""},null,null,{"$f":"IF(X34=\"\",\"\",VLOOKUP(X34,ending_style[],2,FALSE))","v":""},null,null,null,{"$f":"IF(AB34=\"\",\"\",VLOOKUP(AB34,post_condition[],2,FALSE))","v":""},null,{"$f":"IF(AD34=\"\",\"\",VLOOKUP(AD34,post_material[],2,FALSE))","v":""},null,null,{"$f":"IF(AG34=\"\",\"\",VLOOKUP(AG34,extra_length_reason[],2,FALSE))","v":""},null,null,null,{"$f":"IF(AK34=\"\",\"\",VLOOKUP(AK34,side[],2,FALSE))","v":""},null,null,null,null,{"$f":"IF(AP34=\"\",\"\",VLOOKUP(AP34,install_reason[],2,FALSE))","v":""},null,{"$f":"IF(AR34=\"\",\"\",VLOOKUP(AR34,asset_owner[],2,FALSE))","v":""},null,{"$f":"IF(AT34=\"\",\"\",VLOOKUP(AT34,likelihood[],2,FALSE))","v":""},null,{"$f":"IF(AV34=\"\",\"\",VLOOKUP(AV34,consequence[],2,FALSE))","v":""},null,{"$f":"IF(AX34=\"\",\"\",VLOOKUP(AX34,risk[],2,FALSE))","v":""},null,{"$f":"IF(AZ34=\"\",\"\",VLOOKUP(AZ34,rul_reset[],2,FALSE))","v":""},null,{"$f":"IF(BB34=\"\",\"\",VLOOKUP(BB34,use_default[],2,FALSE))","v":""},null,{"$f":"IF(BD34=\"\",\"\",VLOOKUP(BD34,railing_condition[],2,FALSE))","v":""},null,null,{"$f":"IF(BG34=\"\",\"\",VLOOKUP(BG34,organisation[],2,FALSE))","v":""},null,null,null,null,{"$f":"IF(BL34=\"\",\"\",VLOOKUP(BL34,replace_reason[],2,FALSE))","v":""}]
["null","null",null,null,null,null,null,{"$f":"IF(G35=\"\",\"\",VLOOKUP(G35,type[],2,FALSE))","v":""},null,{"$f":"IF(I35=\"\",\"\",VLOOKUP(I35,material[],2,FALSE))","v":""},null,{"$f":"IF(K35=\"\",\"\",VLOOKUP(K35,make[],2,FALSE))","v":""},null,{"$f":"IF(M35=\"\",\"\",VLOOKUP(M35,shape[],2,FALSE))","v":""},null,{"$f":"IF(O35=\"\",\"\",VLOOKUP(O35,colour[],2,FALSE))","v":""},null,{"$f":"IF(Q35=\"\",\"\",VLOOKUP(Q35,attachment[],2,FALSE))","v":""},null,{"$f":"IF(S35=\"\",\"\",VLOOKUP(S35,ground_fix[],2,FALSE))","v":""},null,{"$f":"IF(U35=\"\",\"\",VLOOKUP(U35,starting_style[],2,FALSE))","v":""},null,null,{"$f":"IF(X35=\"\",\"\",VLOOKUP(X35,ending_style[],2,FALSE))","v":""},null,null,null,{"$f":"IF(AB35=\"\",\"\",VLOOKUP(AB35,post_condition[],2,FALSE))","v":""},null,{"$f":"IF(AD35=\"\",\"\",VLOOKUP(AD35,post_material[],2,FALSE))","v":""},null,null,{"$f":"IF(AG35=\"\",\"\",VLOOKUP(AG35,extra_length_reason[],2,FALSE))","v":""},null,null,null,{"$f":"IF(AK35=\"\",\"\",VLOOKUP(AK35,side[],2,FALSE))","v":""},null,null,null,null,{"$f":"IF(AP35=\"\",\"\",VLOOKUP(AP35,install_reason[],2,FALSE))","v":""},null,{"$f":"IF(AR35=\"\",\"\",VLOOKUP(AR35,asset_owner[],2,FALSE))","v":""},null,{"$f":"IF(AT35=\"\",\"\",VLOOKUP(AT35,likelihood[],2,FALSE))","v":""},null,{"$f":"IF(AV35=\"\",\"\",VLOOKUP(AV35,consequence[],2,FALSE))","v":""},null,{"$f":"IF(AX35=\"\",\"\",VLOOKUP(AX35,risk[],2,FALSE))","v":""},null,{"$f":"IF(AZ35=\"\",\"\",VLOOKUP(AZ35,rul_reset[],2,FALSE))","v":""},null,{"$f":"IF(BB35=\"\",\"\",VLOOKUP(BB35,use_default[],2,FALSE))","v":""},null,{"$f":"IF(BD35=\"\",\"\",VLOOKUP(BD35,railing_condition[],2,FALSE))","v":""},null,null,{"$f":"IF(BG35=\"\",\"\",VLOOKUP(BG35,organisation[],2,FALSE))","v":""},null,null,null,null,{"$f":"IF(BL35=\"\",\"\",VLOOKUP(BL35,replace_reason[],2,FALSE))","v":""}]
["null","null",null,null,null,null,null,{"$f":"IF(G36=\"\",\"\",VLOOKUP(G36,type[],2,FALSE))","v":""},null,{"$f":"IF(I36=\"\",\"\",VLOOKUP(I36,material[],2,FALSE))","v":""},null,{"$f":"IF(K36=\"\",\"\",VLOOKUP(K36,make[],2,FALSE))","v":""},null,{"$f":"IF(M36=\"\",\"\",VLOOKUP(M36,shape[],2,FALSE))","v":""},null,{"$f":"IF(O36=\"\",\"\",VLOOKUP(O36,colour[],2,FALSE))","v":""},null,{"$f":"IF(Q36=\"\",\"\",VLOOKUP(Q36,attachment[],2,FALSE))","v":""},null,{"$f":"IF(S36=\"\",\"\",VLOOKUP(S36,ground_fix[],2,FALSE))","v":""},null,{"$f":"IF(U36=\"\",\"\",VLOOKUP(U36,starting_style[],2,FALSE))","v":""},null,null,{"$f":"IF(X36=\"\",\"\",VLOOKUP(X36,ending_style[],2,FALSE))","v":""},null,null,null,{"$f":"IF(AB36=\"\",\"\",VLOOKUP(AB36,post_condition[],2,FALSE))","v":""},null,{"$f":"IF(AD36=\"\",\"\",VLOOKUP(AD36,post_material[],2,FALSE))","v":""},null,null,{"$f":"IF(AG36=\"\",\"\",VLOOKUP(AG36,extra_length_reason[],2,FALSE))","v":""},null,null,null,{"$f":"IF(AK36=\"\",\"\",VLOOKUP(AK36,side[],2,FALSE))","v":""},null,null,null,null,{"$f":"IF(AP36=\"\",\"\",VLOOKUP(AP36,install_reason[],2,FALSE))","v":""},null,{"$f":"IF(AR36=\"\",\"\",VLOOKUP(AR36,asset_owner[],2,FALSE))","v":""},null,{"$f":"IF(AT36=\"\",\"\",VLOOKUP(AT36,likelihood[],2,FALSE))","v":""},null,{"$f":"IF(AV36=\"\",\"\",VLOOKUP(AV36,consequence[],2,FALSE))","v":""},null,{"$f":"IF(AX36=\"\",\"\",VLOOKUP(AX36,risk[],2,FALSE))","v":""},null,{"$f":"IF(AZ36=\"\",\"\",VLOOKUP(AZ36,rul_reset[],2,FALSE))","v":""},null,{"$f":"IF(BB36=\"\",\"\",VLOOKUP(BB36,use_default[],2,FALSE))","v":""},null,{"$f":"IF(BD36=\"\",\"\",VLOOKUP(BD36,railing_condition[],2,FALSE))","v":""},null,null,{"$f":"IF(BG36=\"\",\"\",VLOOKUP(BG36,organisation[],2,FALSE))","v":""},null,null,null,null,{"$f":"IF(BL36=\"\",\"\",VLOOKUP(BL36,replace_reason[],2,FALSE))","v":""}]
["null","null",null,null,null,null,null,{"$f":"IF(G37=\"\",\"\",VLOOKUP(G37,type[],2,FALSE))","v":""},null,{"$f":"IF(I37=\"\",\"\",VLOOKUP(I37,material[],2,FALSE))","v":""},null,{"$f":"IF(K37=\"\",\"\",VLOOKUP(K37,make[],2,FALSE))","v":""},null,{"$f":"IF(M37=\"\",\"\",VLOOKUP(M37,shape[],2,FALSE))","v":""},null,{"$f":"IF(O37=\"\",\"\",VLOOKUP(O37,colour[],2,FALSE))","v":""},null,{"$f":"IF(Q37=\"\",\"\",VLOOKUP(Q37,attachment[],2,FALSE))","v":""},null,{"$f":"IF(S37=\"\",\"\",VLOOKUP(S37,ground_fix[],2,FALSE))","v":""},null,{"$f":"IF(U37=\"\",\"\",VLOOKUP(U37,starting_style[],2,FALSE))","v":""},null,null,{"$f":"IF(X37=\"\",\"\",VLOOKUP(X37,ending_style[],2,FALSE))","v":""},null,null,null,{"$f":"IF(AB37=\"\",\"\",VLOOKUP(AB37,post_condition[],2,FALSE))","v":""},null,{"$f":"IF(AD37=\"\",\"\",VLOOKUP(AD37,post_material[],2,FALSE))","v":""},null,null,{"$f":"IF(AG37=\"\",\"\",VLOOKUP(AG37,extra_length_reason[],2,FALSE))","v":""},null,null,null,{"$f":"IF(AK37=\"\",\"\",VLOOKUP(AK37,side[],2,FALSE))","v":""},null,null,null,null,{"$f":"IF(AP37=\"\",\"\",VLOOKUP(AP37,install_reason[],2,FALSE))","v":""},null,{"$f":"IF(AR37=\"\",\"\",VLOOKUP(AR37,asset_owner[],2,FALSE))","v":""},null,{"$f":"IF(AT37=\"\",\"\",VLOOKUP(AT37,likelihood[],2,FALSE))","v":""},null,{"$f":"IF(AV37=\"\",\"\",VLOOKUP(AV37,consequence[],2,FALSE))","v":""},null,{"$f":"IF(AX37=\"\",\"\",VLOOKUP(AX37,risk[],2,FALSE))","v":""},null,{"$f":"IF(AZ37=\"\",\"\",VLOOKUP(AZ37,rul_reset[],2,FALSE))","v":""},null,{"$f":"IF(BB37=\"\",\"\",VLOOKUP(BB37,use_default[],2,FALSE))","v":""},null,{"$f":"IF(BD37=\"\",\"\",VLOOKUP(BD37,railing_condition[],2,FALSE))","v":""},null,null,{"$f":"IF(BG37=\"\",\"\",VLOOKUP(BG37,organisation[],2,FALSE))","v":""},null,null,null,null,{"$f":"IF(BL37=\"\",\"\",VLOOKUP(BL37,replace_reason[],2,FALSE))","v":""}]
["null","null",null,null,null,null,null,{"$f":"IF(G38=\"\",\"\",VLOOKUP(G38,type[],2,FALSE))","v":""},null,{"$f":"IF(I38=\"\",\"\",VLOOKUP(I38,material[],2,FALSE))","v":""},null,{"$f":"IF(K38=\"\",\"\",VLOOKUP(K38,make[],2,FALSE))","v":""},null,{"$f":"IF(M38=\"\",\"\",VLOOKUP(M38,shape[],2,FALSE))","v":""},null,{"$f":"IF(O38=\"\",\"\",VLOOKUP(O38,colour[],2,FALSE))","v":""},null,{"$f":"IF(Q38=\"\",\"\",VLOOKUP(Q38,attachment[],2,FALSE))","v":""},null,{"$f":"IF(S38=\"\",\"\",VLOOKUP(S38,ground_fix[],2,FALSE))","v":""},null,{"$f":"IF(U38=\"\",\"\",VLOOKUP(U38,starting_style[],2,FALSE))","v":""},null,null,{"$f":"IF(X38=\"\",\"\",VLOOKUP(X38,ending_style[],2,FALSE))","v":""},null,null,null,{"$f":"IF(AB38=\"\",\"\",VLOOKUP(AB38,post_condition[],2,FALSE))","v":""},null,{"$f":"IF(AD38=\"\",\"\",VLOOKUP(AD38,post_material[],2,FALSE))","v":""},null,null,{"$f":"IF(AG38=\"\",\"\",VLOOKUP(AG38,extra_length_reason[],2,FALSE))","v":""},null,null,null,{"$f":"IF(AK38=\"\",\"\",VLOOKUP(AK38,side[],2,FALSE))","v":""},null,null,null,null,{"$f":"IF(AP38=\"\",\"\",VLOOKUP(AP38,install_reason[],2,FALSE))","v":""},null,{"$f":"IF(AR38=\"\",\"\",VLOOKUP(AR38,asset_owner[],2,FALSE))","v":""},null,{"$f":"IF(AT38=\"\",\"\",VLOOKUP(AT38,likelihood[],2,FALSE))","v":""},null,{"$f":"IF(AV38=\"\",\"\",VLOOKUP(AV38,consequence[],2,FALSE))","v":""},null,{"$f":"IF(AX38=\"\",\"\",VLOOKUP(AX38,risk[],2,FALSE))","v":""},null,{"$f":"IF(AZ38=\"\",\"\",VLOOKUP(AZ38,rul_reset[],2,FALSE))","v":""},null,{"$f":"IF(BB38=\"\",\"\",VLOOKUP(BB38,use_default[],2,FALSE))","v":""},null,{"$f":"IF(BD38=\"\",\"\",VLOOKUP(BD38,railing_condition[],2,FALSE))","v":""},null,null,{"$f":"IF(BG38=\"\",\"\",VLOOKUP(BG38,organisation[],2,FALSE))","v":""},null,null,null,null,{"$f":"IF(BL38=\"\",\"\",VLOOKUP(BL38,replace_reason[],2,FALSE))","v":""}]
["null","null",null,null,null,null,null,{"$f":"IF(G39=\"\",\"\",VLOOKUP(G39,type[],2,FALSE))","v":""},null,{"$f":"IF(I39=\"\",\"\",VLOOKUP(I39,material[],2,FALSE))","v":""},null,{"$f":"IF(K39=\"\",\"\",VLOOKUP(K39,make[],2,FALSE))","v":""},null,{"$f":"IF(M39=\"\",\"\",VLOOKUP(M39,shape[],2,FALSE))","v":""},null,{"$f":"IF(O39=\"\",\"\",VLOOKUP(O39,colour[],2,FALSE))","v":""},null,{"$f":"IF(Q39=\"\",\"\",VLOOKUP(Q39,attachment[],2,FALSE))","v":""},null,{"$f":"IF(S39=\"\",\"\",VLOOKUP(S39,ground_fix[],2,FALSE))","v":""},null,{"$f":"IF(U39=\"\",\"\",VLOOKUP(U39,starting_style[],2,FALSE))","v":""},null,null,{"$f":"IF(X39=\"\",\"\",VLOOKUP(X39,ending_style[],2,FALSE))","v":""},null,null,null,{"$f":"IF(AB39=\"\",\"\",VLOOKUP(AB39,post_condition[],2,FALSE))","v":""},null,{"$f":"IF(AD39=\"\",\"\",VLOOKUP(AD39,post_material[],2,FALSE))","v":""},null,null,{"$f":"IF(AG39=\"\",\"\",VLOOKUP(AG39,extra_length_reason[],2,FALSE))","v":""},null,null,null,{"$f":"IF(AK39=\"\",\"\",VLOOKUP(AK39,side[],2,FALSE))","v":""},null,null,null,null,{"$f":"IF(AP39=\"\",\"\",VLOOKUP(AP39,install_reason[],2,FALSE))","v":""},null,{"$f":"IF(AR39=\"\",\"\",VLOOKUP(AR39,asset_owner[],2,FALSE))","v":""},null,{"$f":"IF(AT39=\"\",\"\",VLOOKUP(AT39,likelihood[],2,FALSE))","v":""},null,{"$f":"IF(AV39=\"\",\"\",VLOOKUP(AV39,consequence[],2,FALSE))","v":""},null,{"$f":"IF(AX39=\"\",\"\",VLOOKUP(AX39,risk[],2,FALSE))","v":""},null,{"$f":"IF(AZ39=\"\",\"\",VLOOKUP(AZ39,rul_reset[],2,FALSE))","v":""},null,{"$f":"IF(BB39=\"\",\"\",VLOOKUP(BB39,use_default[],2,FALSE))","v":""},null,{"$f":"IF(BD39=\"\",\"\",VLOOKUP(BD39,railing_condition[],2,FALSE))","v":""},null,null,{"$f":"IF(BG39=\"\",\"\",VLOOKUP(BG39,organisation[],2,FALSE))","v":""},null,null,null,null,{"$f":"IF(BL39=\"\",\"\",VLOOKUP(BL39,replace_reason[],2,FALSE))","v":""}]
["null","null",null,null,null,null,null,{"$f":"IF(G40=\"\",\"\",VLOOKUP(G40,type[],2,FALSE))","v":""},null,{"$f":"IF(I40=\"\",\"\",VLOOKUP(I40,material[],2,FALSE))","v":""},null,{"$f":"IF(K40=\"\",\"\",VLOOKUP(K40,make[],2,FALSE))","v":""},null,{"$f":"IF(M40=\"\",\"\",VLOOKUP(M40,shape[],2,FALSE))","v":""},null,{"$f":"IF(O40=\"\",\"\",VLOOKUP(O40,colour[],2,FALSE))","v":""},null,{"$f":"IF(Q40=\"\",\"\",VLOOKUP(Q40,attachment[],2,FALSE))","v":""},null,{"$f":"IF(S40=\"\",\"\",VLOOKUP(S40,ground_fix[],2,FALSE))","v":""},null,{"$f":"IF(U40=\"\",\"\",VLOOKUP(U40,starting_style[],2,FALSE))","v":""},null,null,{"$f":"IF(X40=\"\",\"\",VLOOKUP(X40,ending_style[],2,FALSE))","v":""},null,null,null,{"$f":"IF(AB40=\"\",\"\",VLOOKUP(AB40,post_condition[],2,FALSE))","v":""},null,{"$f":"IF(AD40=\"\",\"\",VLOOKUP(AD40,post_material[],2,FALSE))","v":""},null,null,{"$f":"IF(AG40=\"\",\"\",VLOOKUP(AG40,extra_length_reason[],2,FALSE))","v":""},null,null,null,{"$f":"IF(AK40=\"\",\"\",VLOOKUP(AK40,side[],2,FALSE))","v":""},null,null,null,null,{"$f":"IF(AP40=\"\",\"\",VLOOKUP(AP40,install_reason[],2,FALSE))","v":""},null,{"$f":"IF(AR40=\"\",\"\",VLOOKUP(AR40,asset_owner[],2,FALSE))","v":""},null,{"$f":"IF(AT40=\"\",\"\",VLOOKUP(AT40,likelihood[],2,FALSE))","v":""},null,{"$f":"IF(AV40=\"\",\"\",VLOOKUP(AV40,consequence[],2,FALSE))","v":""},null,{"$f":"IF(AX40=\"\",\"\",VLOOKUP(AX40,risk[],2,FALSE))","v":""},null,{"$f":"IF(AZ40=\"\",\"\",VLOOKUP(AZ40,rul_reset[],2,FALSE))","v":""},null,{"$f":"IF(BB40=\"\",\"\",VLOOKUP(BB40,use_default[],2,FALSE))","v":""},null,{"$f":"IF(BD40=\"\",\"\",VLOOKUP(BD40,railing_condition[],2,FALSE))","v":""},null,null,{"$f":"IF(BG40=\"\",\"\",VLOOKUP(BG40,organisation[],2,FALSE))","v":""},null,null,null,null,{"$f":"IF(BL40=\"\",\"\",VLOOKUP(BL40,replace_reason[],2,FALSE))","v":""}]
["null","null",null,null,null,null,null,{"$f":"IF(G41=\"\",\"\",VLOOKUP(G41,type[],2,FALSE))","v":""},null,{"$f":"IF(I41=\"\",\"\",VLOOKUP(I41,material[],2,FALSE))","v":""},null,{"$f":"IF(K41=\"\",\"\",VLOOKUP(K41,make[],2,FALSE))","v":""},null,{"$f":"IF(M41=\"\",\"\",VLOOKUP(M41,shape[],2,FALSE))","v":""},null,{"$f":"IF(O41=\"\",\"\",VLOOKUP(O41,colour[],2,FALSE))","v":""},null,{"$f":"IF(Q41=\"\",\"\",VLOOKUP(Q41,attachment[],2,FALSE))","v":""},null,{"$f":"IF(S41=\"\",\"\",VLOOKUP(S41,ground_fix[],2,FALSE))","v":""},null,{"$f":"IF(U41=\"\",\"\",VLOOKUP(U41,starting_style[],2,FALSE))","v":""},null,null,{"$f":"IF(X41=\"\",\"\",VLOOKUP(X41,ending_style[],2,FALSE))","v":""},null,null,null,{"$f":"IF(AB41=\"\",\"\",VLOOKUP(AB41,post_condition[],2,FALSE))","v":""},null,{"$f":"IF(AD41=\"\",\"\",VLOOKUP(AD41,post_material[],2,FALSE))","v":""},null,null,{"$f":"IF(AG41=\"\",\"\",VLOOKUP(AG41,extra_length_reason[],2,FALSE))","v":""},null,null,null,{"$f":"IF(AK41=\"\",\"\",VLOOKUP(AK41,side[],2,FALSE))","v":""},null,null,null,null,{"$f":"IF(AP41=\"\",\"\",VLOOKUP(AP41,install_reason[],2,FALSE))","v":""},null,{"$f":"IF(AR41=\"\",\"\",VLOOKUP(AR41,asset_owner[],2,FALSE))","v":""},null,{"$f":"IF(AT41=\"\",\"\",VLOOKUP(AT41,likelihood[],2,FALSE))","v":""},null,{"$f":"IF(AV41=\"\",\"\",VLOOKUP(AV41,consequence[],2,FALSE))","v":""},null,{"$f":"IF(AX41=\"\",\"\",VLOOKUP(AX41,risk[],2,FALSE))","v":""},null,{"$f":"IF(AZ41=\"\",\"\",VLOOKUP(AZ41,rul_reset[],2,FALSE))","v":""},null,{"$f":"IF(BB41=\"\",\"\",VLOOKUP(BB41,use_default[],2,FALSE))","v":""},null,{"$f":"IF(BD41=\"\",\"\",VLOOKUP(BD41,railing_condition[],2,FALSE))","v":""},null,null,{"$f":"IF(BG41=\"\",\"\",VLOOKUP(BG41,organisation[],2,FALSE))","v":""},null,null,null,null,{"$f":"IF(BL41=\"\",\"\",VLOOKUP(BL41,replace_reason[],2,FALSE))","v":""}]
["null","null",null,null,null,null,null,{"$f":"IF(G42=\"\",\"\",VLOOKUP(G42,type[],2,FALSE))","v":""},null,{"$f":"IF(I42=\"\",\"\",VLOOKUP(I42,material[],2,FALSE))","v":""},null,{"$f":"IF(K42=\"\",\"\",VLOOKUP(K42,make[],2,FALSE))","v":""},null,{"$f":"IF(M42=\"\",\"\",VLOOKUP(M42,shape[],2,FALSE))","v":""},null,{"$f":"IF(O42=\"\",\"\",VLOOKUP(O42,colour[],2,FALSE))","v":""},null,{"$f":"IF(Q42=\"\",\"\",VLOOKUP(Q42,attachment[],2,FALSE))","v":""},null,{"$f":"IF(S42=\"\",\"\",VLOOKUP(S42,ground_fix[],2,FALSE))","v":""},null,{"$f":"IF(U42=\"\",\"\",VLOOKUP(U42,starting_style[],2,FALSE))","v":""},null,null,{"$f":"IF(X42=\"\",\"\",VLOOKUP(X42,ending_style[],2,FALSE))","v":""},null,null,null,{"$f":"IF(AB42=\"\",\"\",VLOOKUP(AB42,post_condition[],2,FALSE))","v":""},null,{"$f":"IF(AD42=\"\",\"\",VLOOKUP(AD42,post_material[],2,FALSE))","v":""},null,null,{"$f":"IF(AG42=\"\",\"\",VLOOKUP(AG42,extra_length_reason[],2,FALSE))","v":""},null,null,null,{"$f":"IF(AK42=\"\",\"\",VLOOKUP(AK42,side[],2,FALSE))","v":""},null,null,null,null,{"$f":"IF(AP42=\"\",\"\",VLOOKUP(AP42,install_reason[],2,FALSE))","v":""},null,{"$f":"IF(AR42=\"\",\"\",VLOOKUP(AR42,asset_owner[],2,FALSE))","v":""},null,{"$f":"IF(AT42=\"\",\"\",VLOOKUP(AT42,likelihood[],2,FALSE))","v":""},null,{"$f":"IF(AV42=\"\",\"\",VLOOKUP(AV42,consequence[],2,FALSE))","v":""},null,{"$f":"IF(AX42=\"\",\"\",VLOOKUP(AX42,risk[],2,FALSE))","v":""},null,{"$f":"IF(AZ42=\"\",\"\",VLOOKUP(AZ42,rul_reset[],2,FALSE))","v":""},null,{"$f":"IF(BB42=\"\",\"\",VLOOKUP(BB42,use_default[],2,FALSE))","v":""},null,{"$f":"IF(BD42=\"\",\"\",VLOOKUP(BD42,railing_condition[],2,FALSE))","v":""},null,null,{"$f":"IF(BG42=\"\",\"\",VLOOKUP(BG42,organisation[],2,FALSE))","v":""},null,null,null,null,{"$f":"IF(BL42=\"\",\"\",VLOOKUP(BL42,replace_reason[],2,FALSE))","v":""}]
["null","null",null,null,null,null,null,{"$f":"IF(G43=\"\",\"\",VLOOKUP(G43,type[],2,FALSE))","v":""},null,{"$f":"IF(I43=\"\",\"\",VLOOKUP(I43,material[],2,FALSE))","v":""},null,{"$f":"IF(K43=\"\",\"\",VLOOKUP(K43,make[],2,FALSE))","v":""},null,{"$f":"IF(M43=\"\",\"\",VLOOKUP(M43,shape[],2,FALSE))","v":""},null,{"$f":"IF(O43=\"\",\"\",VLOOKUP(O43,colour[],2,FALSE))","v":""},null,{"$f":"IF(Q43=\"\",\"\",VLOOKUP(Q43,attachment[],2,FALSE))","v":""},null,{"$f":"IF(S43=\"\",\"\",VLOOKUP(S43,ground_fix[],2,FALSE))","v":""},null,{"$f":"IF(U43=\"\",\"\",VLOOKUP(U43,starting_style[],2,FALSE))","v":""},null,null,{"$f":"IF(X43=\"\",\"\",VLOOKUP(X43,ending_style[],2,FALSE))","v":""},null,null,null,{"$f":"IF(AB43=\"\",\"\",VLOOKUP(AB43,post_condition[],2,FALSE))","v":""},null,{"$f":"IF(AD43=\"\",\"\",VLOOKUP(AD43,post_material[],2,FALSE))","v":""},null,null,{"$f":"IF(AG43=\"\",\"\",VLOOKUP(AG43,extra_length_reason[],2,FALSE))","v":""},null,null,null,{"$f":"IF(AK43=\"\",\"\",VLOOKUP(AK43,side[],2,FALSE))","v":""},null,null,null,null,{"$f":"IF(AP43=\"\",\"\",VLOOKUP(AP43,install_reason[],2,FALSE))","v":""},null,{"$f":"IF(AR43=\"\",\"\",VLOOKUP(AR43,asset_owner[],2,FALSE))","v":""},null,{"$f":"IF(AT43=\"\",\"\",VLOOKUP(AT43,likelihood[],2,FALSE))","v":""},null,{"$f":"IF(AV43=\"\",\"\",VLOOKUP(AV43,consequence[],2,FALSE))","v":""},null,{"$f":"IF(AX43=\"\",\"\",VLOOKUP(AX43,risk[],2,FALSE))","v":""},null,{"$f":"IF(AZ43=\"\",\"\",VLOOKUP(AZ43,rul_reset[],2,FALSE))","v":""},null,{"$f":"IF(BB43=\"\",\"\",VLOOKUP(BB43,use_default[],2,FALSE))","v":""},null,{"$f":"IF(BD43=\"\",\"\",VLOOKUP(BD43,railing_condition[],2,FALSE))","v":""},null,null,{"$f":"IF(BG43=\"\",\"\",VLOOKUP(BG43,organisation[],2,FALSE))","v":""},null,null,null,null,{"$f":"IF(BL43=\"\",\"\",VLOOKUP(BL43,replace_reason[],2,FALSE))","v":""}]
["null","null",null,null,null,null,null,{"$f":"IF(G44=\"\",\"\",VLOOKUP(G44,type[],2,FALSE))","v":""},null,{"$f":"IF(I44=\"\",\"\",VLOOKUP(I44,material[],2,FALSE))","v":""},null,{"$f":"IF(K44=\"\",\"\",VLOOKUP(K44,make[],2,FALSE))","v":""},null,{"$f":"IF(M44=\"\",\"\",VLOOKUP(M44,shape[],2,FALSE))","v":""},null,{"$f":"IF(O44=\"\",\"\",VLOOKUP(O44,colour[],2,FALSE))","v":""},null,{"$f":"IF(Q44=\"\",\"\",VLOOKUP(Q44,attachment[],2,FALSE))","v":""},null,{"$f":"IF(S44=\"\",\"\",VLOOKUP(S44,ground_fix[],2,FALSE))","v":""},null,{"$f":"IF(U44=\"\",\"\",VLOOKUP(U44,starting_style[],2,FALSE))","v":""},null,null,{"$f":"IF(X44=\"\",\"\",VLOOKUP(X44,ending_style[],2,FALSE))","v":""},null,null,null,{"$f":"IF(AB44=\"\",\"\",VLOOKUP(AB44,post_condition[],2,FALSE))","v":""},null,{"$f":"IF(AD44=\"\",\"\",VLOOKUP(AD44,post_material[],2,FALSE))","v":""},null,null,{"$f":"IF(AG44=\"\",\"\",VLOOKUP(AG44,extra_length_reason[],2,FALSE))","v":""},null,null,null,{"$f":"IF(AK44=\"\",\"\",VLOOKUP(AK44,side[],2,FALSE))","v":""},null,null,null,null,{"$f":"IF(AP44=\"\",\"\",VLOOKUP(AP44,install_reason[],2,FALSE))","v":""},null,{"$f":"IF(AR44=\"\",\"\",VLOOKUP(AR44,asset_owner[],2,FALSE))","v":""},null,{"$f":"IF(AT44=\"\",\"\",VLOOKUP(AT44,likelihood[],2,FALSE))","v":""},null,{"$f":"IF(AV44=\"\",\"\",VLOOKUP(AV44,consequence[],2,FALSE))","v":""},null,{"$f":"IF(AX44=\"\",\"\",VLOOKUP(AX44,risk[],2,FALSE))","v":""},null,{"$f":"IF(AZ44=\"\",\"\",VLOOKUP(AZ44,rul_reset[],2,FALSE))","v":""},null,{"$f":"IF(BB44=\"\",\"\",VLOOKUP(BB44,use_default[],2,FALSE))","v":""},null,{"$f":"IF(BD44=\"\",\"\",VLOOKUP(BD44,railing_condition[],2,FALSE))","v":""},null,null,{"$f":"IF(BG44=\"\",\"\",VLOOKUP(BG44,organisation[],2,FALSE))","v":""},null,null,null,null,{"$f":"IF(BL44=\"\",\"\",VLOOKUP(BL44,replace_reason[],2,FALSE))","v":""}]
["null","null",null,null,null,null,null,{"$f":"IF(G45=\"\",\"\",VLOOKUP(G45,type[],2,FALSE))","v":""},null,{"$f":"IF(I45=\"\",\"\",VLOOKUP(I45,material[],2,FALSE))","v":""},null,{"$f":"IF(K45=\"\",\"\",VLOOKUP(K45,make[],2,FALSE))","v":""},null,{"$f":"IF(M45=\"\",\"\",VLOOKUP(M45,shape[],2,FALSE))","v":""},null,{"$f":"IF(O45=\"\",\"\",VLOOKUP(O45,colour[],2,FALSE))","v":""},null,{"$f":"IF(Q45=\"\",\"\",VLOOKUP(Q45,attachment[],2,FALSE))","v":""},null,{"$f":"IF(S45=\"\",\"\",VLOOKUP(S45,ground_fix[],2,FALSE))","v":""},null,{"$f":"IF(U45=\"\",\"\",VLOOKUP(U45,starting_style[],2,FALSE))","v":""},null,null,{"$f":"IF(X45=\"\",\"\",VLOOKUP(X45,ending_style[],2,FALSE))","v":""},null,null,null,{"$f":"IF(AB45=\"\",\"\",VLOOKUP(AB45,post_condition[],2,FALSE))","v":""},null,{"$f":"IF(AD45=\"\",\"\",VLOOKUP(AD45,post_material[],2,FALSE))","v":""},null,null,{"$f":"IF(AG45=\"\",\"\",VLOOKUP(AG45,extra_length_reason[],2,FALSE))","v":""},null,null,null,{"$f":"IF(AK45=\"\",\"\",VLOOKUP(AK45,side[],2,FALSE))","v":""},null,null,null,null,{"$f":"IF(AP45=\"\",\"\",VLOOKUP(AP45,install_reason[],2,FALSE))","v":""},null,{"$f":"IF(AR45=\"\",\"\",VLOOKUP(AR45,asset_owner[],2,FALSE))","v":""},null,{"$f":"IF(AT45=\"\",\"\",VLOOKUP(AT45,likelihood[],2,FALSE))","v":""},null,{"$f":"IF(AV45=\"\",\"\",VLOOKUP(AV45,consequence[],2,FALSE))","v":""},null,{"$f":"IF(AX45=\"\",\"\",VLOOKUP(AX45,risk[],2,FALSE))","v":""},null,{"$f":"IF(AZ45=\"\",\"\",VLOOKUP(AZ45,rul_reset[],2,FALSE))","v":""},null,{"$f":"IF(BB45=\"\",\"\",VLOOKUP(BB45,use_default[],2,FALSE))","v":""},null,{"$f":"IF(BD45=\"\",\"\",VLOOKUP(BD45,railing_condition[],2,FALSE))","v":""},null,null,{"$f":"IF(BG45=\"\",\"\",VLOOKUP(BG45,organisation[],2,FALSE))","v":""},null,null,null,null,{"$f":"IF(BL45=\"\",\"\",VLOOKUP(BL45,replace_reason[],2,FALSE))","v":""}]
["null","null",null,null,null,null,null,{"$f":"IF(G46=\"\",\"\",VLOOKUP(G46,type[],2,FALSE))","v":""},null,{"$f":"IF(I46=\"\",\"\",VLOOKUP(I46,material[],2,FALSE))","v":""},null,{"$f":"IF(K46=\"\",\"\",VLOOKUP(K46,make[],2,FALSE))","v":""},null,{"$f":"IF(M46=\"\",\"\",VLOOKUP(M46,shape[],2,FALSE))","v":""},null,{"$f":"IF(O46=\"\",\"\",VLOOKUP(O46,colour[],2,FALSE))","v":""},null,{"$f":"IF(Q46=\"\",\"\",VLOOKUP(Q46,attachment[],2,FALSE))","v":""},null,{"$f":"IF(S46=\"\",\"\",VLOOKUP(S46,ground_fix[],2,FALSE))","v":""},null,{"$f":"IF(U46=\"\",\"\",VLOOKUP(U46,starting_style[],2,FALSE))","v":""},null,null,{"$f":"IF(X46=\"\",\"\",VLOOKUP(X46,ending_style[],2,FALSE))","v":""},null,null,null,{"$f":"IF(AB46=\"\",\"\",VLOOKUP(AB46,post_condition[],2,FALSE))","v":""},null,{"$f":"IF(AD46=\"\",\"\",VLOOKUP(AD46,post_material[],2,FALSE))","v":""},null,null,{"$f":"IF(AG46=\"\",\"\",VLOOKUP(AG46,extra_length_reason[],2,FALSE))","v":""},null,null,null,{"$f":"IF(AK46=\"\",\"\",VLOOKUP(AK46,side[],2,FALSE))","v":""},null,null,null,null,{"$f":"IF(AP46=\"\",\"\",VLOOKUP(AP46,install_reason[],2,FALSE))","v":""},null,{"$f":"IF(AR46=\"\",\"\",VLOOKUP(AR46,asset_owner[],2,FALSE))","v":""},null,{"$f":"IF(AT46=\"\",\"\",VLOOKUP(AT46,likelihood[],2,FALSE))","v":""},null,{"$f":"IF(AV46=\"\",\"\",VLOOKUP(AV46,consequence[],2,FALSE))","v":""},null,{"$f":"IF(AX46=\"\",\"\",VLOOKUP(AX46,risk[],2,FALSE))","v":""},null,{"$f":"IF(AZ46=\"\",\"\",VLOOKUP(AZ46,rul_reset[],2,FALSE))","v":""},null,{"$f":"IF(BB46=\"\",\"\",VLOOKUP(BB46,use_default[],2,FALSE))","v":""},null,{"$f":"IF(BD46=\"\",\"\",VLOOKUP(BD46,railing_condition[],2,FALSE))","v":""},null,null,{"$f":"IF(BG46=\"\",\"\",VLOOKUP(BG46,organisation[],2,FALSE))","v":""},null,null,null,null,{"$f":"IF(BL46=\"\",\"\",VLOOKUP(BL46,replace_reason[],2,FALSE))","v":""}]
["null","null",null,null,null,null,null,{"$f":"IF(G47=\"\",\"\",VLOOKUP(G47,type[],2,FALSE))","v":""},null,{"$f":"IF(I47=\"\",\"\",VLOOKUP(I47,material[],2,FALSE))","v":""},null,{"$f":"IF(K47=\"\",\"\",VLOOKUP(K47,make[],2,FALSE))","v":""},null,{"$f":"IF(M47=\"\",\"\",VLOOKUP(M47,shape[],2,FALSE))","v":""},null,{"$f":"IF(O47=\"\",\"\",VLOOKUP(O47,colour[],2,FALSE))","v":""},null,{"$f":"IF(Q47=\"\",\"\",VLOOKUP(Q47,attachment[],2,FALSE))","v":""},null,{"$f":"IF(S47=\"\",\"\",VLOOKUP(S47,ground_fix[],2,FALSE))","v":""},null,{"$f":"IF(U47=\"\",\"\",VLOOKUP(U47,starting_style[],2,FALSE))","v":""},null,null,{"$f":"IF(X47=\"\",\"\",VLOOKUP(X47,ending_style[],2,FALSE))","v":""},null,null,null,{"$f":"IF(AB47=\"\",\"\",VLOOKUP(AB47,post_condition[],2,FALSE))","v":""},null,{"$f":"IF(AD47=\"\",\"\",VLOOKUP(AD47,post_material[],2,FALSE))","v":""},null,null,{"$f":"IF(AG47=\"\",\"\",VLOOKUP(AG47,extra_length_reason[],2,FALSE))","v":""},null,null,null,{"$f":"IF(AK47=\"\",\"\",VLOOKUP(AK47,side[],2,FALSE))","v":""},null,null,null,null,{"$f":"IF(AP47=\"\",\"\",VLOOKUP(AP47,install_reason[],2,FALSE))","v":""},null,{"$f":"IF(AR47=\"\",\"\",VLOOKUP(AR47,asset_owner[],2,FALSE))","v":""},null,{"$f":"IF(AT47=\"\",\"\",VLOOKUP(AT47,likelihood[],2,FALSE))","v":""},null,{"$f":"IF(AV47=\"\",\"\",VLOOKUP(AV47,consequence[],2,FALSE))","v":""},null,{"$f":"IF(AX47=\"\",\"\",VLOOKUP(AX47,risk[],2,FALSE))","v":""},null,{"$f":"IF(AZ47=\"\",\"\",VLOOKUP(AZ47,rul_reset[],2,FALSE))","v":""},null,{"$f":"IF(BB47=\"\",\"\",VLOOKUP(BB47,use_default[],2,FALSE))","v":""},null,{"$f":"IF(BD47=\"\",\"\",VLOOKUP(BD47,railing_condition[],2,FALSE))","v":""},null,null,{"$f":"IF(BG47=\"\",\"\",VLOOKUP(BG47,organisation[],2,FALSE))","v":""},null,null,null,null,{"$f":"IF(BL47=\"\",\"\",VLOOKUP(BL47,replace_reason[],2,FALSE))","v":""}]
["null","null",null,null,null,null,null,{"$f":"IF(G48=\"\",\"\",VLOOKUP(G48,type[],2,FALSE))","v":""},null,{"$f":"IF(I48=\"\",\"\",VLOOKUP(I48,material[],2,FALSE))","v":""},null,{"$f":"IF(K48=\"\",\"\",VLOOKUP(K48,make[],2,FALSE))","v":""},null,{"$f":"IF(M48=\"\",\"\",VLOOKUP(M48,shape[],2,FALSE))","v":""},null,{"$f":"IF(O48=\"\",\"\",VLOOKUP(O48,colour[],2,FALSE))","v":""},null,{"$f":"IF(Q48=\"\",\"\",VLOOKUP(Q48,attachment[],2,FALSE))","v":""},null,{"$f":"IF(S48=\"\",\"\",VLOOKUP(S48,ground_fix[],2,FALSE))","v":""},null,{"$f":"IF(U48=\"\",\"\",VLOOKUP(U48,starting_style[],2,FALSE))","v":""},null,null,{"$f":"IF(X48=\"\",\"\",VLOOKUP(X48,ending_style[],2,FALSE))","v":""},null,null,null,{"$f":"IF(AB48=\"\",\"\",VLOOKUP(AB48,post_condition[],2,FALSE))","v":""},null,{"$f":"IF(AD48=\"\",\"\",VLOOKUP(AD48,post_material[],2,FALSE))","v":""},null,null,{"$f":"IF(AG48=\"\",\"\",VLOOKUP(AG48,extra_length_reason[],2,FALSE))","v":""},null,null,null,{"$f":"IF(AK48=\"\",\"\",VLOOKUP(AK48,side[],2,FALSE))","v":""},null,null,null,null,{"$f":"IF(AP48=\"\",\"\",VLOOKUP(AP48,install_reason[],2,FALSE))","v":""},null,{"$f":"IF(AR48=\"\",\"\",VLOOKUP(AR48,asset_owner[],2,FALSE))","v":""},null,{"$f":"IF(AT48=\"\",\"\",VLOOKUP(AT48,likelihood[],2,FALSE))","v":""},null,{"$f":"IF(AV48=\"\",\"\",VLOOKUP(AV48,consequence[],2,FALSE))","v":""},null,{"$f":"IF(AX48=\"\",\"\",VLOOKUP(AX48,risk[],2,FALSE))","v":""},null,{"$f":"IF(AZ48=\"\",\"\",VLOOKUP(AZ48,rul_reset[],2,FALSE))","v":""},null,{"$f":"IF(BB48=\"\",\"\",VLOOKUP(BB48,use_default[],2,FALSE))","v":""},null,{"$f":"IF(BD48=\"\",\"\",VLOOKUP(BD48,railing_condition[],2,FALSE))","v":""},null,null,{"$f":"IF(BG48=\"\",\"\",VLOOKUP(BG48,organisation[],2,FALSE))","v":""},null,null,null,null,{"$f":"IF(BL48=\"\",\"\",VLOOKUP(BL48,replace_reason[],2,FALSE))","v":""}]
["null","null",null,null,null,null,null,{"$f":"IF(G49=\"\",\"\",VLOOKUP(G49,type[],2,FALSE))","v":""},null,{"$f":"IF(I49=\"\",\"\",VLOOKUP(I49,material[],2,FALSE))","v":""},null,{"$f":"IF(K49=\"\",\"\",VLOOKUP(K49,make[],2,FALSE))","v":""},null,{"$f":"IF(M49=\"\",\"\",VLOOKUP(M49,shape[],2,FALSE))","v":""},null,{"$f":"IF(O49=\"\",\"\",VLOOKUP(O49,colour[],2,FALSE))","v":""},null,{"$f":"IF(Q49=\"\",\"\",VLOOKUP(Q49,attachment[],2,FALSE))","v":""},null,{"$f":"IF(S49=\"\",\"\",VLOOKUP(S49,ground_fix[],2,FALSE))","v":""},null,{"$f":"IF(U49=\"\",\"\",VLOOKUP(U49,starting_style[],2,FALSE))","v":""},null,null,{"$f":"IF(X49=\"\",\"\",VLOOKUP(X49,ending_style[],2,FALSE))","v":""},null,null,null,{"$f":"IF(AB49=\"\",\"\",VLOOKUP(AB49,post_condition[],2,FALSE))","v":""},null,{"$f":"IF(AD49=\"\",\"\",VLOOKUP(AD49,post_material[],2,FALSE))","v":""},null,null,{"$f":"IF(AG49=\"\",\"\",VLOOKUP(AG49,extra_length_reason[],2,FALSE))","v":""},null,null,null,{"$f":"IF(AK49=\"\",\"\",VLOOKUP(AK49,side[],2,FALSE))","v":""},null,null,null,null,{"$f":"IF(AP49=\"\",\"\",VLOOKUP(AP49,install_reason[],2,FALSE))","v":""},null,{"$f":"IF(AR49=\"\",\"\",VLOOKUP(AR49,asset_owner[],2,FALSE))","v":""},null,{"$f":"IF(AT49=\"\",\"\",VLOOKUP(AT49,likelihood[],2,FALSE))","v":""},null,{"$f":"IF(AV49=\"\",\"\",VLOOKUP(AV49,consequence[],2,FALSE))","v":""},null,{"$f":"IF(AX49=\"\",\"\",VLOOKUP(AX49,risk[],2,FALSE))","v":""},null,{"$f":"IF(AZ49=\"\",\"\",VLOOKUP(AZ49,rul_reset[],2,FALSE))","v":""},null,{"$f":"IF(BB49=\"\",\"\",VLOOKUP(BB49,use_default[],2,FALSE))","v":""},null,{"$f":"IF(BD49=\"\",\"\",VLOOKUP(BD49,railing_condition[],2,FALSE))","v":""},null,null,{"$f":"IF(BG49=\"\",\"\",VLOOKUP(BG49,organisation[],2,FALSE))","v":""},null,null,null,null,{"$f":"IF(BL49=\"\",\"\",VLOOKUP(BL49,replace_reason[],2,FALSE))","v":""}]
["null","null",null,null,null,null,null,{"$f":"IF(G50=\"\",\"\",VLOOKUP(G50,type[],2,FALSE))","v":""},null,{"$f":"IF(I50=\"\",\"\",VLOOKUP(I50,material[],2,FALSE))","v":""},null,{"$f":"IF(K50=\"\",\"\",VLOOKUP(K50,make[],2,FALSE))","v":""},null,{"$f":"IF(M50=\"\",\"\",VLOOKUP(M50,shape[],2,FALSE))","v":""},null,{"$f":"IF(O50=\"\",\"\",VLOOKUP(O50,colour[],2,FALSE))","v":""},null,{"$f":"IF(Q50=\"\",\"\",VLOOKUP(Q50,attachment[],2,FALSE))","v":""},null,{"$f":"IF(S50=\"\",\"\",VLOOKUP(S50,ground_fix[],2,FALSE))","v":""},null,{"$f":"IF(U50=\"\",\"\",VLOOKUP(U50,starting_style[],2,FALSE))","v":""},null,null,{"$f":"IF(X50=\"\",\"\",VLOOKUP(X50,ending_style[],2,FALSE))","v":""},null,null,null,{"$f":"IF(AB50=\"\",\"\",VLOOKUP(AB50,post_condition[],2,FALSE))","v":""},null,{"$f":"IF(AD50=\"\",\"\",VLOOKUP(AD50,post_material[],2,FALSE))","v":""},null,null,{"$f":"IF(AG50=\"\",\"\",VLOOKUP(AG50,extra_length_reason[],2,FALSE))","v":""},null,null,null,{"$f":"IF(AK50=\"\",\"\",VLOOKUP(AK50,side[],2,FALSE))","v":""},null,null,null,null,{"$f":"IF(AP50=\"\",\"\",VLOOKUP(AP50,install_reason[],2,FALSE))","v":""},null,{"$f":"IF(AR50=\"\",\"\",VLOOKUP(AR50,asset_owner[],2,FALSE))","v":""},null,{"$f":"IF(AT50=\"\",\"\",VLOOKUP(AT50,likelihood[],2,FALSE))","v":""},null,{"$f":"IF(AV50=\"\",\"\",VLOOKUP(AV50,consequence[],2,FALSE))","v":""},null,{"$f":"IF(AX50=\"\",\"\",VLOOKUP(AX50,risk[],2,FALSE))","v":""},null,{"$f":"IF(AZ50=\"\",\"\",VLOOKUP(AZ50,rul_reset[],2,FALSE))","v":""},null,{"$f":"IF(BB50=\"\",\"\",VLOOKUP(BB50,use_default[],2,FALSE))","v":""},null,{"$f":"IF(BD50=\"\",\"\",VLOOKUP(BD50,railing_condition[],2,FALSE))","v":""},null,null,{"$f":"IF(BG50=\"\",\"\",VLOOKUP(BG50,organisation[],2,FALSE))","v":""},null,null,null,null,{"$f":"IF(BL50=\"\",\"\",VLOOKUP(BL50,replace_reason[],2,FALSE))","v":""}]
["null","null",null,null,null,null,null,{"$f":"IF(G51=\"\",\"\",VLOOKUP(G51,type[],2,FALSE))","v":""},null,{"$f":"IF(I51=\"\",\"\",VLOOKUP(I51,material[],2,FALSE))","v":""},null,{"$f":"IF(K51=\"\",\"\",VLOOKUP(K51,make[],2,FALSE))","v":""},null,{"$f":"IF(M51=\"\",\"\",VLOOKUP(M51,shape[],2,FALSE))","v":""},null,{"$f":"IF(O51=\"\",\"\",VLOOKUP(O51,colour[],2,FALSE))","v":""},null,{"$f":"IF(Q51=\"\",\"\",VLOOKUP(Q51,attachment[],2,FALSE))","v":""},null,{"$f":"IF(S51=\"\",\"\",VLOOKUP(S51,ground_fix[],2,FALSE))","v":""},null,{"$f":"IF(U51=\"\",\"\",VLOOKUP(U51,starting_style[],2,FALSE))","v":""},null,null,{"$f":"IF(X51=\"\",\"\",VLOOKUP(X51,ending_style[],2,FALSE))","v":""},null,null,null,{"$f":"IF(AB51=\"\",\"\",VLOOKUP(AB51,post_condition[],2,FALSE))","v":""},null,{"$f":"IF(AD51=\"\",\"\",VLOOKUP(AD51,post_material[],2,FALSE))","v":""},null,null,{"$f":"IF(AG51=\"\",\"\",VLOOKUP(AG51,extra_length_reason[],2,FALSE))","v":""},null,null,null,{"$f":"IF(AK51=\"\",\"\",VLOOKUP(AK51,side[],2,FALSE))","v":""},null,null,null,null,{"$f":"IF(AP51=\"\",\"\",VLOOKUP(AP51,install_reason[],2,FALSE))","v":""},null,{"$f":"IF(AR51=\"\",\"\",VLOOKUP(AR51,asset_owner[],2,FALSE))","v":""},null,{"$f":"IF(AT51=\"\",\"\",VLOOKUP(AT51,likelihood[],2,FALSE))","v":""},null,{"$f":"IF(AV51=\"\",\"\",VLOOKUP(AV51,consequence[],2,FALSE))","v":""},null,{"$f":"IF(AX51=\"\",\"\",VLOOKUP(AX51,risk[],2,FALSE))","v":""},null,{"$f":"IF(AZ51=\"\",\"\",VLOOKUP(AZ51,rul_reset[],2,FALSE))","v":""},null,{"$f":"IF(BB51=\"\",\"\",VLOOKUP(BB51,use_default[],2,FALSE))","v":""},null,{"$f":"IF(BD51=\"\",\"\",VLOOKUP(BD51,railing_condition[],2,FALSE))","v":""},null,null,{"$f":"IF(BG51=\"\",\"\",VLOOKUP(BG51,organisation[],2,FALSE))","v":""},null,null,null,null,{"$f":"IF(BL51=\"\",\"\",VLOOKUP(BL51,replace_reason[],2,FALSE))","v":""}]
["null","null",null,null,null,null,null,{"$f":"IF(G52=\"\",\"\",VLOOKUP(G52,type[],2,FALSE))","v":""},null,{"$f":"IF(I52=\"\",\"\",VLOOKUP(I52,material[],2,FALSE))","v":""},null,{"$f":"IF(K52=\"\",\"\",VLOOKUP(K52,make[],2,FALSE))","v":""},null,{"$f":"IF(M52=\"\",\"\",VLOOKUP(M52,shape[],2,FALSE))","v":""},null,{"$f":"IF(O52=\"\",\"\",VLOOKUP(O52,colour[],2,FALSE))","v":""},null,{"$f":"IF(Q52=\"\",\"\",VLOOKUP(Q52,attachment[],2,FALSE))","v":""},null,{"$f":"IF(S52=\"\",\"\",VLOOKUP(S52,ground_fix[],2,FALSE))","v":""},null,{"$f":"IF(U52=\"\",\"\",VLOOKUP(U52,starting_style[],2,FALSE))","v":""},null,null,{"$f":"IF(X52=\"\",\"\",VLOOKUP(X52,ending_style[],2,FALSE))","v":""},null,null,null,{"$f":"IF(AB52=\"\",\"\",VLOOKUP(AB52,post_condition[],2,FALSE))","v":""},null,{"$f":"IF(AD52=\"\",\"\",VLOOKUP(AD52,post_material[],2,FALSE))","v":""},null,null,{"$f":"IF(AG52=\"\",\"\",VLOOKUP(AG52,extra_length_reason[],2,FALSE))","v":""},null,null,null,{"$f":"IF(AK52=\"\",\"\",VLOOKUP(AK52,side[],2,FALSE))","v":""},null,null,null,null,{"$f":"IF(AP52=\"\",\"\",VLOOKUP(AP52,install_reason[],2,FALSE))","v":""},null,{"$f":"IF(AR52=\"\",\"\",VLOOKUP(AR52,asset_owner[],2,FALSE))","v":""},null,{"$f":"IF(AT52=\"\",\"\",VLOOKUP(AT52,likelihood[],2,FALSE))","v":""},null,{"$f":"IF(AV52=\"\",\"\",VLOOKUP(AV52,consequence[],2,FALSE))","v":""},null,{"$f":"IF(AX52=\"\",\"\",VLOOKUP(AX52,risk[],2,FALSE))","v":""},null,{"$f":"IF(AZ52=\"\",\"\",VLOOKUP(AZ52,rul_reset[],2,FALSE))","v":""},null,{"$f":"IF(BB52=\"\",\"\",VLOOKUP(BB52,use_default[],2,FALSE))","v":""},null,{"$f":"IF(BD52=\"\",\"\",VLOOKUP(BD52,railing_condition[],2,FALSE))","v":""},null,null,{"$f":"IF(BG52=\"\",\"\",VLOOKUP(BG52,organisation[],2,FALSE))","v":""},null,null,null,null,{"$f":"IF(BL52=\"\",\"\",VLOOKUP(BL52,replace_reason[],2,FALSE))","v":""}]
["null","null",null,null,null,null,null,{"$f":"IF(G53=\"\",\"\",VLOOKUP(G53,type[],2,FALSE))","v":""},null,{"$f":"IF(I53=\"\",\"\",VLOOKUP(I53,material[],2,FALSE))","v":""},null,{"$f":"IF(K53=\"\",\"\",VLOOKUP(K53,make[],2,FALSE))","v":""},null,{"$f":"IF(M53=\"\",\"\",VLOOKUP(M53,shape[],2,FALSE))","v":""},null,{"$f":"IF(O53=\"\",\"\",VLOOKUP(O53,colour[],2,FALSE))","v":""},null,{"$f":"IF(Q53=\"\",\"\",VLOOKUP(Q53,attachment[],2,FALSE))","v":""},null,{"$f":"IF(S53=\"\",\"\",VLOOKUP(S53,ground_fix[],2,FALSE))","v":""},null,{"$f":"IF(U53=\"\",\"\",VLOOKUP(U53,starting_style[],2,FALSE))","v":""},null,null,{"$f":"IF(X53=\"\",\"\",VLOOKUP(X53,ending_style[],2,FALSE))","v":""},null,null,null,{"$f":"IF(AB53=\"\",\"\",VLOOKUP(AB53,post_condition[],2,FALSE))","v":""},null,{"$f":"IF(AD53=\"\",\"\",VLOOKUP(AD53,post_material[],2,FALSE))","v":""},null,null,{"$f":"IF(AG53=\"\",\"\",VLOOKUP(AG53,extra_length_reason[],2,FALSE))","v":""},null,null,null,{"$f":"IF(AK53=\"\",\"\",VLOOKUP(AK53,side[],2,FALSE))","v":""},null,null,null,null,{"$f":"IF(AP53=\"\",\"\",VLOOKUP(AP53,install_reason[],2,FALSE))","v":""},null,{"$f":"IF(AR53=\"\",\"\",VLOOKUP(AR53,asset_owner[],2,FALSE))","v":""},null,{"$f":"IF(AT53=\"\",\"\",VLOOKUP(AT53,likelihood[],2,FALSE))","v":""},null,{"$f":"IF(AV53=\"\",\"\",VLOOKUP(AV53,consequence[],2,FALSE))","v":""},null,{"$f":"IF(AX53=\"\",\"\",VLOOKUP(AX53,risk[],2,FALSE))","v":""},null,{"$f":"IF(AZ53=\"\",\"\",VLOOKUP(AZ53,rul_reset[],2,FALSE))","v":""},null,{"$f":"IF(BB53=\"\",\"\",VLOOKUP(BB53,use_default[],2,FALSE))","v":""},null,{"$f":"IF(BD53=\"\",\"\",VLOOKUP(BD53,railing_condition[],2,FALSE))","v":""},null,null,{"$f":"IF(BG53=\"\",\"\",VLOOKUP(BG53,organisation[],2,FALSE))","v":""},null,null,null,null,{"$f":"IF(BL53=\"\",\"\",VLOOKUP(BL53,replace_reason[],2,FALSE))","v":""}]
["null","null",null,null,null,null,null,{"$f":"IF(G54=\"\",\"\",VLOOKUP(G54,type[],2,FALSE))","v":""},null,{"$f":"IF(I54=\"\",\"\",VLOOKUP(I54,material[],2,FALSE))","v":""},null,{"$f":"IF(K54=\"\",\"\",VLOOKUP(K54,make[],2,FALSE))","v":""},null,{"$f":"IF(M54=\"\",\"\",VLOOKUP(M54,shape[],2,FALSE))","v":""},null,{"$f":"IF(O54=\"\",\"\",VLOOKUP(O54,colour[],2,FALSE))","v":""},null,{"$f":"IF(Q54=\"\",\"\",VLOOKUP(Q54,attachment[],2,FALSE))","v":""},null,{"$f":"IF(S54=\"\",\"\",VLOOKUP(S54,ground_fix[],2,FALSE))","v":""},null,{"$f":"IF(U54=\"\",\"\",VLOOKUP(U54,starting_style[],2,FALSE))","v":""},null,null,{"$f":"IF(X54=\"\",\"\",VLOOKUP(X54,ending_style[],2,FALSE))","v":""},null,null,null,{"$f":"IF(AB54=\"\",\"\",VLOOKUP(AB54,post_condition[],2,FALSE))","v":""},null,{"$f":"IF(AD54=\"\",\"\",VLOOKUP(AD54,post_material[],2,FALSE))","v":""},null,null,{"$f":"IF(AG54=\"\",\"\",VLOOKUP(AG54,extra_length_reason[],2,FALSE))","v":""},null,null,null,{"$f":"IF(AK54=\"\",\"\",VLOOKUP(AK54,side[],2,FALSE))","v":""},null,null,null,null,{"$f":"IF(AP54=\"\",\"\",VLOOKUP(AP54,install_reason[],2,FALSE))","v":""},null,{"$f":"IF(AR54=\"\",\"\",VLOOKUP(AR54,asset_owner[],2,FALSE))","v":""},null,{"$f":"IF(AT54=\"\",\"\",VLOOKUP(AT54,likelihood[],2,FALSE))","v":""},null,{"$f":"IF(AV54=\"\",\"\",VLOOKUP(AV54,consequence[],2,FALSE))","v":""},null,{"$f":"IF(AX54=\"\",\"\",VLOOKUP(AX54,risk[],2,FALSE))","v":""},null,{"$f":"IF(AZ54=\"\",\"\",VLOOKUP(AZ54,rul_reset[],2,FALSE))","v":""},null,{"$f":"IF(BB54=\"\",\"\",VLOOKUP(BB54,use_default[],2,FALSE))","v":""},null,{"$f":"IF(BD54=\"\",\"\",VLOOKUP(BD54,railing_condition[],2,FALSE))","v":""},null,null,{"$f":"IF(BG54=\"\",\"\",VLOOKUP(BG54,organisation[],2,FALSE))","v":""},null,null,null,null,{"$f":"IF(BL54=\"\",\"\",VLOOKUP(BL54,replace_reason[],2,FALSE))","v":""}]
["null","null",null,null,null,null,null,{"$f":"IF(G55=\"\",\"\",VLOOKUP(G55,type[],2,FALSE))","v":""},null,{"$f":"IF(I55=\"\",\"\",VLOOKUP(I55,material[],2,FALSE))","v":""},null,{"$f":"IF(K55=\"\",\"\",VLOOKUP(K55,make[],2,FALSE))","v":""},null,{"$f":"IF(M55=\"\",\"\",VLOOKUP(M55,shape[],2,FALSE))","v":""},null,{"$f":"IF(O55=\"\",\"\",VLOOKUP(O55,colour[],2,FALSE))","v":""},null,{"$f":"IF(Q55=\"\",\"\",VLOOKUP(Q55,attachment[],2,FALSE))","v":""},null,{"$f":"IF(S55=\"\",\"\",VLOOKUP(S55,ground_fix[],2,FALSE))","v":""},null,{"$f":"IF(U55=\"\",\"\",VLOOKUP(U55,starting_style[],2,FALSE))","v":""},null,null,{"$f":"IF(X55=\"\",\"\",VLOOKUP(X55,ending_style[],2,FALSE))","v":""},null,null,null,{"$f":"IF(AB55=\"\",\"\",VLOOKUP(AB55,post_condition[],2,FALSE))","v":""},null,{"$f":"IF(AD55=\"\",\"\",VLOOKUP(AD55,post_material[],2,FALSE))","v":""},null,null,{"$f":"IF(AG55=\"\",\"\",VLOOKUP(AG55,extra_length_reason[],2,FALSE))","v":""},null,null,null,{"$f":"IF(AK55=\"\",\"\",VLOOKUP(AK55,side[],2,FALSE))","v":""},null,null,null,null,{"$f":"IF(AP55=\"\",\"\",VLOOKUP(AP55,install_reason[],2,FALSE))","v":""},null,{"$f":"IF(AR55=\"\",\"\",VLOOKUP(AR55,asset_owner[],2,FALSE))","v":""},null,{"$f":"IF(AT55=\"\",\"\",VLOOKUP(AT55,likelihood[],2,FALSE))","v":""},null,{"$f":"IF(AV55=\"\",\"\",VLOOKUP(AV55,consequence[],2,FALSE))","v":""},null,{"$f":"IF(AX55=\"\",\"\",VLOOKUP(AX55,risk[],2,FALSE))","v":""},null,{"$f":"IF(AZ55=\"\",\"\",VLOOKUP(AZ55,rul_reset[],2,FALSE))","v":""},null,{"$f":"IF(BB55=\"\",\"\",VLOOKUP(BB55,use_default[],2,FALSE))","v":""},null,{"$f":"IF(BD55=\"\",\"\",VLOOKUP(BD55,railing_condition[],2,FALSE))","v":""},null,null,{"$f":"IF(BG55=\"\",\"\",VLOOKUP(BG55,organisation[],2,FALSE))","v":""},null,null,null,null,{"$f":"IF(BL55=\"\",\"\",VLOOKUP(BL55,replace_reason[],2,FALSE))","v":""}]
["null","null",null,null,null,null,null,{"$f":"IF(G56=\"\",\"\",VLOOKUP(G56,type[],2,FALSE))","v":""},null,{"$f":"IF(I56=\"\",\"\",VLOOKUP(I56,material[],2,FALSE))","v":""},null,{"$f":"IF(K56=\"\",\"\",VLOOKUP(K56,make[],2,FALSE))","v":""},null,{"$f":"IF(M56=\"\",\"\",VLOOKUP(M56,shape[],2,FALSE))","v":""},null,{"$f":"IF(O56=\"\",\"\",VLOOKUP(O56,colour[],2,FALSE))","v":""},null,{"$f":"IF(Q56=\"\",\"\",VLOOKUP(Q56,attachment[],2,FALSE))","v":""},null,{"$f":"IF(S56=\"\",\"\",VLOOKUP(S56,ground_fix[],2,FALSE))","v":""},null,{"$f":"IF(U56=\"\",\"\",VLOOKUP(U56,starting_style[],2,FALSE))","v":""},null,null,{"$f":"IF(X56=\"\",\"\",VLOOKUP(X56,ending_style[],2,FALSE))","v":""},null,null,null,{"$f":"IF(AB56=\"\",\"\",VLOOKUP(AB56,post_condition[],2,FALSE))","v":""},null,{"$f":"IF(AD56=\"\",\"\",VLOOKUP(AD56,post_material[],2,FALSE))","v":""},null,null,{"$f":"IF(AG56=\"\",\"\",VLOOKUP(AG56,extra_length_reason[],2,FALSE))","v":""},null,null,null,{"$f":"IF(AK56=\"\",\"\",VLOOKUP(AK56,side[],2,FALSE))","v":""},null,null,null,null,{"$f":"IF(AP56=\"\",\"\",VLOOKUP(AP56,install_reason[],2,FALSE))","v":""},null,{"$f":"IF(AR56=\"\",\"\",VLOOKUP(AR56,asset_owner[],2,FALSE))","v":""},null,{"$f":"IF(AT56=\"\",\"\",VLOOKUP(AT56,likelihood[],2,FALSE))","v":""},null,{"$f":"IF(AV56=\"\",\"\",VLOOKUP(AV56,consequence[],2,FALSE))","v":""},null,{"$f":"IF(AX56=\"\",\"\",VLOOKUP(AX56,risk[],2,FALSE))","v":""},null,{"$f":"IF(AZ56=\"\",\"\",VLOOKUP(AZ56,rul_reset[],2,FALSE))","v":""},null,{"$f":"IF(BB56=\"\",\"\",VLOOKUP(BB56,use_default[],2,FALSE))","v":""},null,{"$f":"IF(BD56=\"\",\"\",VLOOKUP(BD56,railing_condition[],2,FALSE))","v":""},null,null,{"$f":"IF(BG56=\"\",\"\",VLOOKUP(BG56,organisation[],2,FALSE))","v":""},null,null,null,null,{"$f":"IF(BL56=\"\",\"\",VLOOKUP(BL56,replace_reason[],2,FALSE))","v":""}]
["null","null",null,null,null,null,null,{"$f":"IF(G57=\"\",\"\",VLOOKUP(G57,type[],2,FALSE))","v":""},null,{"$f":"IF(I57=\"\",\"\",VLOOKUP(I57,material[],2,FALSE))","v":""},null,{"$f":"IF(K57=\"\",\"\",VLOOKUP(K57,make[],2,FALSE))","v":""},null,{"$f":"IF(M57=\"\",\"\",VLOOKUP(M57,shape[],2,FALSE))","v":""},null,{"$f":"IF(O57=\"\",\"\",VLOOKUP(O57,colour[],2,FALSE))","v":""},null,{"$f":"IF(Q57=\"\",\"\",VLOOKUP(Q57,attachment[],2,FALSE))","v":""},null,{"$f":"IF(S57=\"\",\"\",VLOOKUP(S57,ground_fix[],2,FALSE))","v":""},null,{"$f":"IF(U57=\"\",\"\",VLOOKUP(U57,starting_style[],2,FALSE))","v":""},null,null,{"$f":"IF(X57=\"\",\"\",VLOOKUP(X57,ending_style[],2,FALSE))","v":""},null,null,null,{"$f":"IF(AB57=\"\",\"\",VLOOKUP(AB57,post_condition[],2,FALSE))","v":""},null,{"$f":"IF(AD57=\"\",\"\",VLOOKUP(AD57,post_material[],2,FALSE))","v":""},null,null,{"$f":"IF(AG57=\"\",\"\",VLOOKUP(AG57,extra_length_reason[],2,FALSE))","v":""},null,null,null,{"$f":"IF(AK57=\"\",\"\",VLOOKUP(AK57,side[],2,FALSE))","v":""},null,null,null,null,{"$f":"IF(AP57=\"\",\"\",VLOOKUP(AP57,install_reason[],2,FALSE))","v":""},null,{"$f":"IF(AR57=\"\",\"\",VLOOKUP(AR57,asset_owner[],2,FALSE))","v":""},null,{"$f":"IF(AT57=\"\",\"\",VLOOKUP(AT57,likelihood[],2,FALSE))","v":""},null,{"$f":"IF(AV57=\"\",\"\",VLOOKUP(AV57,consequence[],2,FALSE))","v":""},null,{"$f":"IF(AX57=\"\",\"\",VLOOKUP(AX57,risk[],2,FALSE))","v":""},null,{"$f":"IF(AZ57=\"\",\"\",VLOOKUP(AZ57,rul_reset[],2,FALSE))","v":""},null,{"$f":"IF(BB57=\"\",\"\",VLOOKUP(BB57,use_default[],2,FALSE))","v":""},null,{"$f":"IF(BD57=\"\",\"\",VLOOKUP(BD57,railing_condition[],2,FALSE))","v":""},null,null,{"$f":"IF(BG57=\"\",\"\",VLOOKUP(BG57,organisation[],2,FALSE))","v":""},null,null,null,null,{"$f":"IF(BL57=\"\",\"\",VLOOKUP(BL57,replace_reason[],2,FALSE))","v":""}]
["null","null",null,null,null,null,null,{"$f":"IF(G58=\"\",\"\",VLOOKUP(G58,type[],2,FALSE))","v":""},null,{"$f":"IF(I58=\"\",\"\",VLOOKUP(I58,material[],2,FALSE))","v":""},null,{"$f":"IF(K58=\"\",\"\",VLOOKUP(K58,make[],2,FALSE))","v":""},null,{"$f":"IF(M58=\"\",\"\",VLOOKUP(M58,shape[],2,FALSE))","v":""},null,{"$f":"IF(O58=\"\",\"\",VLOOKUP(O58,colour[],2,FALSE))","v":""},null,{"$f":"IF(Q58=\"\",\"\",VLOOKUP(Q58,attachment[],2,FALSE))","v":""},null,{"$f":"IF(S58=\"\",\"\",VLOOKUP(S58,ground_fix[],2,FALSE))","v":""},null,{"$f":"IF(U58=\"\",\"\",VLOOKUP(U58,starting_style[],2,FALSE))","v":""},null,null,{"$f":"IF(X58=\"\",\"\",VLOOKUP(X58,ending_style[],2,FALSE))","v":""},null,null,null,{"$f":"IF(AB58=\"\",\"\",VLOOKUP(AB58,post_condition[],2,FALSE))","v":""},null,{"$f":"IF(AD58=\"\",\"\",VLOOKUP(AD58,post_material[],2,FALSE))","v":""},null,null,{"$f":"IF(AG58=\"\",\"\",VLOOKUP(AG58,extra_length_reason[],2,FALSE))","v":""},null,null,null,{"$f":"IF(AK58=\"\",\"\",VLOOKUP(AK58,side[],2,FALSE))","v":""},null,null,null,null,{"$f":"IF(AP58=\"\",\"\",VLOOKUP(AP58,install_reason[],2,FALSE))","v":""},null,{"$f":"IF(AR58=\"\",\"\",VLOOKUP(AR58,asset_owner[],2,FALSE))","v":""},null,{"$f":"IF(AT58=\"\",\"\",VLOOKUP(AT58,likelihood[],2,FALSE))","v":""},null,{"$f":"IF(AV58=\"\",\"\",VLOOKUP(AV58,consequence[],2,FALSE))","v":""},null,{"$f":"IF(AX58=\"\",\"\",VLOOKUP(AX58,risk[],2,FALSE))","v":""},null,{"$f":"IF(AZ58=\"\",\"\",VLOOKUP(AZ58,rul_reset[],2,FALSE))","v":""},null,{"$f":"IF(BB58=\"\",\"\",VLOOKUP(BB58,use_default[],2,FALSE))","v":""},null,{"$f":"IF(BD58=\"\",\"\",VLOOKUP(BD58,railing_condition[],2,FALSE))","v":""},null,null,{"$f":"IF(BG58=\"\",\"\",VLOOKUP(BG58,organisation[],2,FALSE))","v":""},null,null,null,null,{"$f":"IF(BL58=\"\",\"\",VLOOKUP(BL58,replace_reason[],2,FALSE))","v":""}]
["null","null",null,null,null,null,null,{"$f":"IF(G59=\"\",\"\",VLOOKUP(G59,type[],2,FALSE))","v":""},null,{"$f":"IF(I59=\"\",\"\",VLOOKUP(I59,material[],2,FALSE))","v":""},null,{"$f":"IF(K59=\"\",\"\",VLOOKUP(K59,make[],2,FALSE))","v":""},null,{"$f":"IF(M59=\"\",\"\",VLOOKUP(M59,shape[],2,FALSE))","v":""},null,{"$f":"IF(O59=\"\",\"\",VLOOKUP(O59,colour[],2,FALSE))","v":""},null,{"$f":"IF(Q59=\"\",\"\",VLOOKUP(Q59,attachment[],2,FALSE))","v":""},null,{"$f":"IF(S59=\"\",\"\",VLOOKUP(S59,ground_fix[],2,FALSE))","v":""},null,{"$f":"IF(U59=\"\",\"\",VLOOKUP(U59,starting_style[],2,FALSE))","v":""},null,null,{"$f":"IF(X59=\"\",\"\",VLOOKUP(X59,ending_style[],2,FALSE))","v":""},null,null,null,{"$f":"IF(AB59=\"\",\"\",VLOOKUP(AB59,post_condition[],2,FALSE))","v":""},null,{"$f":"IF(AD59=\"\",\"\",VLOOKUP(AD59,post_material[],2,FALSE))","v":""},null,null,{"$f":"IF(AG59=\"\",\"\",VLOOKUP(AG59,extra_length_reason[],2,FALSE))","v":""},null,null,null,{"$f":"IF(AK59=\"\",\"\",VLOOKUP(AK59,side[],2,FALSE))","v":""},null,null,null,null,{"$f":"IF(AP59=\"\",\"\",VLOOKUP(AP59,install_reason[],2,FALSE))","v":""},null,{"$f":"IF(AR59=\"\",\"\",VLOOKUP(AR59,asset_owner[],2,FALSE))","v":""},null,{"$f":"IF(AT59=\"\",\"\",VLOOKUP(AT59,likelihood[],2,FALSE))","v":""},null,{"$f":"IF(AV59=\"\",\"\",VLOOKUP(AV59,consequence[],2,FALSE))","v":""},null,{"$f":"IF(AX59=\"\",\"\",VLOOKUP(AX59,risk[],2,FALSE))","v":""},null,{"$f":"IF(AZ59=\"\",\"\",VLOOKUP(AZ59,rul_reset[],2,FALSE))","v":""},null,{"$f":"IF(BB59=\"\",\"\",VLOOKUP(BB59,use_default[],2,FALSE))","v":""},null,{"$f":"IF(BD59=\"\",\"\",VLOOKUP(BD59,railing_condition[],2,FALSE))","v":""},null,null,{"$f":"IF(BG59=\"\",\"\",VLOOKUP(BG59,organisation[],2,FALSE))","v":""},null,null,null,null,{"$f":"IF(BL59=\"\",\"\",VLOOKUP(BL59,replace_reason[],2,FALSE))","v":""}]
["null","null",null,null,null,null,null,{"$f":"IF(G60=\"\",\"\",VLOOKUP(G60,type[],2,FALSE))","v":""},null,{"$f":"IF(I60=\"\",\"\",VLOOKUP(I60,material[],2,FALSE))","v":""},null,{"$f":"IF(K60=\"\",\"\",VLOOKUP(K60,make[],2,FALSE))","v":""},null,{"$f":"IF(M60=\"\",\"\",VLOOKUP(M60,shape[],2,FALSE))","v":""},null,{"$f":"IF(O60=\"\",\"\",VLOOKUP(O60,colour[],2,FALSE))","v":""},null,{"$f":"IF(Q60=\"\",\"\",VLOOKUP(Q60,attachment[],2,FALSE))","v":""},null,{"$f":"IF(S60=\"\",\"\",VLOOKUP(S60,ground_fix[],2,FALSE))","v":""},null,{"$f":"IF(U60=\"\",\"\",VLOOKUP(U60,starting_style[],2,FALSE))","v":""},null,null,{"$f":"IF(X60=\"\",\"\",VLOOKUP(X60,ending_style[],2,FALSE))","v":""},null,null,null,{"$f":"IF(AB60=\"\",\"\",VLOOKUP(AB60,post_condition[],2,FALSE))","v":""},null,{"$f":"IF(AD60=\"\",\"\",VLOOKUP(AD60,post_material[],2,FALSE))","v":""},null,null,{"$f":"IF(AG60=\"\",\"\",VLOOKUP(AG60,extra_length_reason[],2,FALSE))","v":""},null,null,null,{"$f":"IF(AK60=\"\",\"\",VLOOKUP(AK60,side[],2,FALSE))","v":""},null,null,null,null,{"$f":"IF(AP60=\"\",\"\",VLOOKUP(AP60,install_reason[],2,FALSE))","v":""},null,{"$f":"IF(AR60=\"\",\"\",VLOOKUP(AR60,asset_owner[],2,FALSE))","v":""},null,{"$f":"IF(AT60=\"\",\"\",VLOOKUP(AT60,likelihood[],2,FALSE))","v":""},null,{"$f":"IF(AV60=\"\",\"\",VLOOKUP(AV60,consequence[],2,FALSE))","v":""},null,{"$f":"IF(AX60=\"\",\"\",VLOOKUP(AX60,risk[],2,FALSE))","v":""},null,{"$f":"IF(AZ60=\"\",\"\",VLOOKUP(AZ60,rul_reset[],2,FALSE))","v":""},null,{"$f":"IF(BB60=\"\",\"\",VLOOKUP(BB60,use_default[],2,FALSE))","v":""},null,{"$f":"IF(BD60=\"\",\"\",VLOOKUP(BD60,railing_condition[],2,FALSE))","v":""},null,null,{"$f":"IF(BG60=\"\",\"\",VLOOKUP(BG60,organisation[],2,FALSE))","v":""},null,null,null,null,{"$f":"IF(BL60=\"\",\"\",VLOOKUP(BL60,replace_reason[],2,FALSE))","v":""}]
["null","null",null,null,null,null,null,{"$f":"IF(G61=\"\",\"\",VLOOKUP(G61,type[],2,FALSE))","v":""},null,{"$f":"IF(I61=\"\",\"\",VLOOKUP(I61,material[],2,FALSE))","v":""},null,{"$f":"IF(K61=\"\",\"\",VLOOKUP(K61,make[],2,FALSE))","v":""},null,{"$f":"IF(M61=\"\",\"\",VLOOKUP(M61,shape[],2,FALSE))","v":""},null,{"$f":"IF(O61=\"\",\"\",VLOOKUP(O61,colour[],2,FALSE))","v":""},null,{"$f":"IF(Q61=\"\",\"\",VLOOKUP(Q61,attachment[],2,FALSE))","v":""},null,{"$f":"IF(S61=\"\",\"\",VLOOKUP(S61,ground_fix[],2,FALSE))","v":""},null,{"$f":"IF(U61=\"\",\"\",VLOOKUP(U61,starting_style[],2,FALSE))","v":""},null,null,{"$f":"IF(X61=\"\",\"\",VLOOKUP(X61,ending_style[],2,FALSE))","v":""},null,null,null,{"$f":"IF(AB61=\"\",\"\",VLOOKUP(AB61,post_condition[],2,FALSE))","v":""},null,{"$f":"IF(AD61=\"\",\"\",VLOOKUP(AD61,post_material[],2,FALSE))","v":""},null,null,{"$f":"IF(AG61=\"\",\"\",VLOOKUP(AG61,extra_length_reason[],2,FALSE))","v":""},null,null,null,{"$f":"IF(AK61=\"\",\"\",VLOOKUP(AK61,side[],2,FALSE))","v":""},null,null,null,null,{"$f":"IF(AP61=\"\",\"\",VLOOKUP(AP61,install_reason[],2,FALSE))","v":""},null,{"$f":"IF(AR61=\"\",\"\",VLOOKUP(AR61,asset_owner[],2,FALSE))","v":""},null,{"$f":"IF(AT61=\"\",\"\",VLOOKUP(AT61,likelihood[],2,FALSE))","v":""},null,{"$f":"IF(AV61=\"\",\"\",VLOOKUP(AV61,consequence[],2,FALSE))","v":""},null,{"$f":"IF(AX61=\"\",\"\",VLOOKUP(AX61,risk[],2,FALSE))","v":""},null,{"$f":"IF(AZ61=\"\",\"\",VLOOKUP(AZ61,rul_reset[],2,FALSE))","v":""},null,{"$f":"IF(BB61=\"\",\"\",VLOOKUP(BB61,use_default[],2,FALSE))","v":""},null,{"$f":"IF(BD61=\"\",\"\",VLOOKUP(BD61,railing_condition[],2,FALSE))","v":""},null,null,{"$f":"IF(BG61=\"\",\"\",VLOOKUP(BG61,organisation[],2,FALSE))","v":""},null,null,null,null,{"$f":"IF(BL61=\"\",\"\",VLOOKUP(BL61,replace_reason[],2,FALSE))","v":""}]
["null","null",null,null,null,null,null,{"$f":"IF(G62=\"\",\"\",VLOOKUP(G62,type[],2,FALSE))","v":""},null,{"$f":"IF(I62=\"\",\"\",VLOOKUP(I62,material[],2,FALSE))","v":""},null,{"$f":"IF(K62=\"\",\"\",VLOOKUP(K62,make[],2,FALSE))","v":""},null,{"$f":"IF(M62=\"\",\"\",VLOOKUP(M62,shape[],2,FALSE))","v":""},null,{"$f":"IF(O62=\"\",\"\",VLOOKUP(O62,colour[],2,FALSE))","v":""},null,{"$f":"IF(Q62=\"\",\"\",VLOOKUP(Q62,attachment[],2,FALSE))","v":""},null,{"$f":"IF(S62=\"\",\"\",VLOOKUP(S62,ground_fix[],2,FALSE))","v":""},null,{"$f":"IF(U62=\"\",\"\",VLOOKUP(U62,starting_style[],2,FALSE))","v":""},null,null,{"$f":"IF(X62=\"\",\"\",VLOOKUP(X62,ending_style[],2,FALSE))","v":""},null,null,null,{"$f":"IF(AB62=\"\",\"\",VLOOKUP(AB62,post_condition[],2,FALSE))","v":""},null,{"$f":"IF(AD62=\"\",\"\",VLOOKUP(AD62,post_material[],2,FALSE))","v":""},null,null,{"$f":"IF(AG62=\"\",\"\",VLOOKUP(AG62,extra_length_reason[],2,FALSE))","v":""},null,null,null,{"$f":"IF(AK62=\"\",\"\",VLOOKUP(AK62,side[],2,FALSE))","v":""},null,null,null,null,{"$f":"IF(AP62=\"\",\"\",VLOOKUP(AP62,install_reason[],2,FALSE))","v":""},null,{"$f":"IF(AR62=\"\",\"\",VLOOKUP(AR62,asset_owner[],2,FALSE))","v":""},null,{"$f":"IF(AT62=\"\",\"\",VLOOKUP(AT62,likelihood[],2,FALSE))","v":""},null,{"$f":"IF(AV62=\"\",\"\",VLOOKUP(AV62,consequence[],2,FALSE))","v":""},null,{"$f":"IF(AX62=\"\",\"\",VLOOKUP(AX62,risk[],2,FALSE))","v":""},null,{"$f":"IF(AZ62=\"\",\"\",VLOOKUP(AZ62,rul_reset[],2,FALSE))","v":""},null,{"$f":"IF(BB62=\"\",\"\",VLOOKUP(BB62,use_default[],2,FALSE))","v":""},null,{"$f":"IF(BD62=\"\",\"\",VLOOKUP(BD62,railing_condition[],2,FALSE))","v":""},null,null,{"$f":"IF(BG62=\"\",\"\",VLOOKUP(BG62,organisation[],2,FALSE))","v":""},null,null,null,null,{"$f":"IF(BL62=\"\",\"\",VLOOKUP(BL62,replace_reason[],2,FALSE))","v":""}]
["null","null",null,null,null,null,null,{"$f":"IF(G63=\"\",\"\",VLOOKUP(G63,type[],2,FALSE))","v":""},null,{"$f":"IF(I63=\"\",\"\",VLOOKUP(I63,material[],2,FALSE))","v":""},null,{"$f":"IF(K63=\"\",\"\",VLOOKUP(K63,make[],2,FALSE))","v":""},null,{"$f":"IF(M63=\"\",\"\",VLOOKUP(M63,shape[],2,FALSE))","v":""},null,{"$f":"IF(O63=\"\",\"\",VLOOKUP(O63,colour[],2,FALSE))","v":""},null,{"$f":"IF(Q63=\"\",\"\",VLOOKUP(Q63,attachment[],2,FALSE))","v":""},null,{"$f":"IF(S63=\"\",\"\",VLOOKUP(S63,ground_fix[],2,FALSE))","v":""},null,{"$f":"IF(U63=\"\",\"\",VLOOKUP(U63,starting_style[],2,FALSE))","v":""},null,null,{"$f":"IF(X63=\"\",\"\",VLOOKUP(X63,ending_style[],2,FALSE))","v":""},null,null,null,{"$f":"IF(AB63=\"\",\"\",VLOOKUP(AB63,post_condition[],2,FALSE))","v":""},null,{"$f":"IF(AD63=\"\",\"\",VLOOKUP(AD63,post_material[],2,FALSE))","v":""},null,null,{"$f":"IF(AG63=\"\",\"\",VLOOKUP(AG63,extra_length_reason[],2,FALSE))","v":""},null,null,null,{"$f":"IF(AK63=\"\",\"\",VLOOKUP(AK63,side[],2,FALSE))","v":""},null,null,null,null,{"$f":"IF(AP63=\"\",\"\",VLOOKUP(AP63,install_reason[],2,FALSE))","v":""},null,{"$f":"IF(AR63=\"\",\"\",VLOOKUP(AR63,asset_owner[],2,FALSE))","v":""},null,{"$f":"IF(AT63=\"\",\"\",VLOOKUP(AT63,likelihood[],2,FALSE))","v":""},null,{"$f":"IF(AV63=\"\",\"\",VLOOKUP(AV63,consequence[],2,FALSE))","v":""},null,{"$f":"IF(AX63=\"\",\"\",VLOOKUP(AX63,risk[],2,FALSE))","v":""},null,{"$f":"IF(AZ63=\"\",\"\",VLOOKUP(AZ63,rul_reset[],2,FALSE))","v":""},null,{"$f":"IF(BB63=\"\",\"\",VLOOKUP(BB63,use_default[],2,FALSE))","v":""},null,{"$f":"IF(BD63=\"\",\"\",VLOOKUP(BD63,railing_condition[],2,FALSE))","v":""},null,null,{"$f":"IF(BG63=\"\",\"\",VLOOKUP(BG63,organisation[],2,FALSE))","v":""},null,null,null,null,{"$f":"IF(BL63=\"\",\"\",VLOOKUP(BL63,replace_reason[],2,FALSE))","v":""}]
["null","null",null,null,null,null,null,{"$f":"IF(G64=\"\",\"\",VLOOKUP(G64,type[],2,FALSE))","v":""},null,{"$f":"IF(I64=\"\",\"\",VLOOKUP(I64,material[],2,FALSE))","v":""},null,{"$f":"IF(K64=\"\",\"\",VLOOKUP(K64,make[],2,FALSE))","v":""},null,{"$f":"IF(M64=\"\",\"\",VLOOKUP(M64,shape[],2,FALSE))","v":""},null,{"$f":"IF(O64=\"\",\"\",VLOOKUP(O64,colour[],2,FALSE))","v":""},null,{"$f":"IF(Q64=\"\",\"\",VLOOKUP(Q64,attachment[],2,FALSE))","v":""},null,{"$f":"IF(S64=\"\",\"\",VLOOKUP(S64,ground_fix[],2,FALSE))","v":""},null,{"$f":"IF(U64=\"\",\"\",VLOOKUP(U64,starting_style[],2,FALSE))","v":""},null,null,{"$f":"IF(X64=\"\",\"\",VLOOKUP(X64,ending_style[],2,FALSE))","v":""},null,null,null,{"$f":"IF(AB64=\"\",\"\",VLOOKUP(AB64,post_condition[],2,FALSE))","v":""},null,{"$f":"IF(AD64=\"\",\"\",VLOOKUP(AD64,post_material[],2,FALSE))","v":""},null,null,{"$f":"IF(AG64=\"\",\"\",VLOOKUP(AG64,extra_length_reason[],2,FALSE))","v":""},null,null,null,{"$f":"IF(AK64=\"\",\"\",VLOOKUP(AK64,side[],2,FALSE))","v":""},null,null,null,null,{"$f":"IF(AP64=\"\",\"\",VLOOKUP(AP64,install_reason[],2,FALSE))","v":""},null,{"$f":"IF(AR64=\"\",\"\",VLOOKUP(AR64,asset_owner[],2,FALSE))","v":""},null,{"$f":"IF(AT64=\"\",\"\",VLOOKUP(AT64,likelihood[],2,FALSE))","v":""},null,{"$f":"IF(AV64=\"\",\"\",VLOOKUP(AV64,consequence[],2,FALSE))","v":""},null,{"$f":"IF(AX64=\"\",\"\",VLOOKUP(AX64,risk[],2,FALSE))","v":""},null,{"$f":"IF(AZ64=\"\",\"\",VLOOKUP(AZ64,rul_reset[],2,FALSE))","v":""},null,{"$f":"IF(BB64=\"\",\"\",VLOOKUP(BB64,use_default[],2,FALSE))","v":""},null,{"$f":"IF(BD64=\"\",\"\",VLOOKUP(BD64,railing_condition[],2,FALSE))","v":""},null,null,{"$f":"IF(BG64=\"\",\"\",VLOOKUP(BG64,organisation[],2,FALSE))","v":""},null,null,null,null,{"$f":"IF(BL64=\"\",\"\",VLOOKUP(BL64,replace_reason[],2,FALSE))","v":""}]
["null","null",null,null,null,null,null,{"$f":"IF(G65=\"\",\"\",VLOOKUP(G65,type[],2,FALSE))","v":""},null,{"$f":"IF(I65=\"\",\"\",VLOOKUP(I65,material[],2,FALSE))","v":""},null,{"$f":"IF(K65=\"\",\"\",VLOOKUP(K65,make[],2,FALSE))","v":""},null,{"$f":"IF(M65=\"\",\"\",VLOOKUP(M65,shape[],2,FALSE))","v":""},null,{"$f":"IF(O65=\"\",\"\",VLOOKUP(O65,colour[],2,FALSE))","v":""},null,{"$f":"IF(Q65=\"\",\"\",VLOOKUP(Q65,attachment[],2,FALSE))","v":""},null,{"$f":"IF(S65=\"\",\"\",VLOOKUP(S65,ground_fix[],2,FALSE))","v":""},null,{"$f":"IF(U65=\"\",\"\",VLOOKUP(U65,starting_style[],2,FALSE))","v":""},null,null,{"$f":"IF(X65=\"\",\"\",VLOOKUP(X65,ending_style[],2,FALSE))","v":""},null,null,null,{"$f":"IF(AB65=\"\",\"\",VLOOKUP(AB65,post_condition[],2,FALSE))","v":""},null,{"$f":"IF(AD65=\"\",\"\",VLOOKUP(AD65,post_material[],2,FALSE))","v":""},null,null,{"$f":"IF(AG65=\"\",\"\",VLOOKUP(AG65,extra_length_reason[],2,FALSE))","v":""},null,null,null,{"$f":"IF(AK65=\"\",\"\",VLOOKUP(AK65,side[],2,FALSE))","v":""},null,null,null,null,{"$f":"IF(AP65=\"\",\"\",VLOOKUP(AP65,install_reason[],2,FALSE))","v":""},null,{"$f":"IF(AR65=\"\",\"\",VLOOKUP(AR65,asset_owner[],2,FALSE))","v":""},null,{"$f":"IF(AT65=\"\",\"\",VLOOKUP(AT65,likelihood[],2,FALSE))","v":""},null,{"$f":"IF(AV65=\"\",\"\",VLOOKUP(AV65,consequence[],2,FALSE))","v":""},null,{"$f":"IF(AX65=\"\",\"\",VLOOKUP(AX65,risk[],2,FALSE))","v":""},null,{"$f":"IF(AZ65=\"\",\"\",VLOOKUP(AZ65,rul_reset[],2,FALSE))","v":""},null,{"$f":"IF(BB65=\"\",\"\",VLOOKUP(BB65,use_default[],2,FALSE))","v":""},null,{"$f":"IF(BD65=\"\",\"\",VLOOKUP(BD65,railing_condition[],2,FALSE))","v":""},null,null,{"$f":"IF(BG65=\"\",\"\",VLOOKUP(BG65,organisation[],2,FALSE))","v":""},null,null,null,null,{"$f":"IF(BL65=\"\",\"\",VLOOKUP(BL65,replace_reason[],2,FALSE))","v":""}]
["null","null",null,null,null,null,null,{"$f":"IF(G66=\"\",\"\",VLOOKUP(G66,type[],2,FALSE))","v":""},null,{"$f":"IF(I66=\"\",\"\",VLOOKUP(I66,material[],2,FALSE))","v":""},null,{"$f":"IF(K66=\"\",\"\",VLOOKUP(K66,make[],2,FALSE))","v":""},null,{"$f":"IF(M66=\"\",\"\",VLOOKUP(M66,shape[],2,FALSE))","v":""},null,{"$f":"IF(O66=\"\",\"\",VLOOKUP(O66,colour[],2,FALSE))","v":""},null,{"$f":"IF(Q66=\"\",\"\",VLOOKUP(Q66,attachment[],2,FALSE))","v":""},null,{"$f":"IF(S66=\"\",\"\",VLOOKUP(S66,ground_fix[],2,FALSE))","v":""},null,{"$f":"IF(U66=\"\",\"\",VLOOKUP(U66,starting_style[],2,FALSE))","v":""},null,null,{"$f":"IF(X66=\"\",\"\",VLOOKUP(X66,ending_style[],2,FALSE))","v":""},null,null,null,{"$f":"IF(AB66=\"\",\"\",VLOOKUP(AB66,post_condition[],2,FALSE))","v":""},null,{"$f":"IF(AD66=\"\",\"\",VLOOKUP(AD66,post_material[],2,FALSE))","v":""},null,null,{"$f":"IF(AG66=\"\",\"\",VLOOKUP(AG66,extra_length_reason[],2,FALSE))","v":""},null,null,null,{"$f":"IF(AK66=\"\",\"\",VLOOKUP(AK66,side[],2,FALSE))","v":""},null,null,null,null,{"$f":"IF(AP66=\"\",\"\",VLOOKUP(AP66,install_reason[],2,FALSE))","v":""},null,{"$f":"IF(AR66=\"\",\"\",VLOOKUP(AR66,asset_owner[],2,FALSE))","v":""},null,{"$f":"IF(AT66=\"\",\"\",VLOOKUP(AT66,likelihood[],2,FALSE))","v":""},null,{"$f":"IF(AV66=\"\",\"\",VLOOKUP(AV66,consequence[],2,FALSE))","v":""},null,{"$f":"IF(AX66=\"\",\"\",VLOOKUP(AX66,risk[],2,FALSE))","v":""},null,{"$f":"IF(AZ66=\"\",\"\",VLOOKUP(AZ66,rul_reset[],2,FALSE))","v":""},null,{"$f":"IF(BB66=\"\",\"\",VLOOKUP(BB66,use_default[],2,FALSE))","v":""},null,{"$f":"IF(BD66=\"\",\"\",VLOOKUP(BD66,railing_condition[],2,FALSE))","v":""},null,null,{"$f":"IF(BG66=\"\",\"\",VLOOKUP(BG66,organisation[],2,FALSE))","v":""},null,null,null,null,{"$f":"IF(BL66=\"\",\"\",VLOOKUP(BL66,replace_reason[],2,FALSE))","v":""}]
["null","null",null,null,null,null,null,{"$f":"IF(G67=\"\",\"\",VLOOKUP(G67,type[],2,FALSE))","v":""},null,{"$f":"IF(I67=\"\",\"\",VLOOKUP(I67,material[],2,FALSE))","v":""},null,{"$f":"IF(K67=\"\",\"\",VLOOKUP(K67,make[],2,FALSE))","v":""},null,{"$f":"IF(M67=\"\",\"\",VLOOKUP(M67,shape[],2,FALSE))","v":""},null,{"$f":"IF(O67=\"\",\"\",VLOOKUP(O67,colour[],2,FALSE))","v":""},null,{"$f":"IF(Q67=\"\",\"\",VLOOKUP(Q67,attachment[],2,FALSE))","v":""},null,{"$f":"IF(S67=\"\",\"\",VLOOKUP(S67,ground_fix[],2,FALSE))","v":""},null,{"$f":"IF(U67=\"\",\"\",VLOOKUP(U67,starting_style[],2,FALSE))","v":""},null,null,{"$f":"IF(X67=\"\",\"\",VLOOKUP(X67,ending_style[],2,FALSE))","v":""},null,null,null,{"$f":"IF(AB67=\"\",\"\",VLOOKUP(AB67,post_condition[],2,FALSE))","v":""},null,{"$f":"IF(AD67=\"\",\"\",VLOOKUP(AD67,post_material[],2,FALSE))","v":""},null,null,{"$f":"IF(AG67=\"\",\"\",VLOOKUP(AG67,extra_length_reason[],2,FALSE))","v":""},null,null,null,{"$f":"IF(AK67=\"\",\"\",VLOOKUP(AK67,side[],2,FALSE))","v":""},null,null,null,null,{"$f":"IF(AP67=\"\",\"\",VLOOKUP(AP67,install_reason[],2,FALSE))","v":""},null,{"$f":"IF(AR67=\"\",\"\",VLOOKUP(AR67,asset_owner[],2,FALSE))","v":""},null,{"$f":"IF(AT67=\"\",\"\",VLOOKUP(AT67,likelihood[],2,FALSE))","v":""},null,{"$f":"IF(AV67=\"\",\"\",VLOOKUP(AV67,consequence[],2,FALSE))","v":""},null,{"$f":"IF(AX67=\"\",\"\",VLOOKUP(AX67,risk[],2,FALSE))","v":""},null,{"$f":"IF(AZ67=\"\",\"\",VLOOKUP(AZ67,rul_reset[],2,FALSE))","v":""},null,{"$f":"IF(BB67=\"\",\"\",VLOOKUP(BB67,use_default[],2,FALSE))","v":""},null,{"$f":"IF(BD67=\"\",\"\",VLOOKUP(BD67,railing_condition[],2,FALSE))","v":""},null,null,{"$f":"IF(BG67=\"\",\"\",VLOOKUP(BG67,organisation[],2,FALSE))","v":""},null,null,null,null,{"$f":"IF(BL67=\"\",\"\",VLOOKUP(BL67,replace_reason[],2,FALSE))","v":""}]
["null","null",null,null,null,null,null,{"$f":"IF(G68=\"\",\"\",VLOOKUP(G68,type[],2,FALSE))","v":""},null,{"$f":"IF(I68=\"\",\"\",VLOOKUP(I68,material[],2,FALSE))","v":""},null,{"$f":"IF(K68=\"\",\"\",VLOOKUP(K68,make[],2,FALSE))","v":""},null,{"$f":"IF(M68=\"\",\"\",VLOOKUP(M68,shape[],2,FALSE))","v":""},null,{"$f":"IF(O68=\"\",\"\",VLOOKUP(O68,colour[],2,FALSE))","v":""},null,{"$f":"IF(Q68=\"\",\"\",VLOOKUP(Q68,attachment[],2,FALSE))","v":""},null,{"$f":"IF(S68=\"\",\"\",VLOOKUP(S68,ground_fix[],2,FALSE))","v":""},null,{"$f":"IF(U68=\"\",\"\",VLOOKUP(U68,starting_style[],2,FALSE))","v":""},null,null,{"$f":"IF(X68=\"\",\"\",VLOOKUP(X68,ending_style[],2,FALSE))","v":""},null,null,null,{"$f":"IF(AB68=\"\",\"\",VLOOKUP(AB68,post_condition[],2,FALSE))","v":""},null,{"$f":"IF(AD68=\"\",\"\",VLOOKUP(AD68,post_material[],2,FALSE))","v":""},null,null,{"$f":"IF(AG68=\"\",\"\",VLOOKUP(AG68,extra_length_reason[],2,FALSE))","v":""},null,null,null,{"$f":"IF(AK68=\"\",\"\",VLOOKUP(AK68,side[],2,FALSE))","v":""},null,null,null,null,{"$f":"IF(AP68=\"\",\"\",VLOOKUP(AP68,install_reason[],2,FALSE))","v":""},null,{"$f":"IF(AR68=\"\",\"\",VLOOKUP(AR68,asset_owner[],2,FALSE))","v":""},null,{"$f":"IF(AT68=\"\",\"\",VLOOKUP(AT68,likelihood[],2,FALSE))","v":""},null,{"$f":"IF(AV68=\"\",\"\",VLOOKUP(AV68,consequence[],2,FALSE))","v":""},null,{"$f":"IF(AX68=\"\",\"\",VLOOKUP(AX68,risk[],2,FALSE))","v":""},null,{"$f":"IF(AZ68=\"\",\"\",VLOOKUP(AZ68,rul_reset[],2,FALSE))","v":""},null,{"$f":"IF(BB68=\"\",\"\",VLOOKUP(BB68,use_default[],2,FALSE))","v":""},null,{"$f":"IF(BD68=\"\",\"\",VLOOKUP(BD68,railing_condition[],2,FALSE))","v":""},null,null,{"$f":"IF(BG68=\"\",\"\",VLOOKUP(BG68,organisation[],2,FALSE))","v":""},null,null,null,null,{"$f":"IF(BL68=\"\",\"\",VLOOKUP(BL68,replace_reason[],2,FALSE))","v":""}]
[{"$f":"_xlfn.FILTERXML(_xlfn.WEBSERVICE(\"https://nds-beta.mobileroad.org/xy_sh?rp=\"&C69&\"/\"&D69&\"&xml=true\"),\"/lrms/id_road\")","v":"null"},{"$f":"_xlfn.FILTERXML(_xlfn.WEBSERVICE(\"https://nds-beta.mobileroad.org/xy_sh?rp=\"&C69&\"/\"&E69&\"&xml=true\"),\"/lrms/id_road\")","v":"null"},null,null,null,null,null,{"$f":"IF(G69=\"\",\"\",VLOOKUP(G69,type[],2,FALSE))","v":""},null,{"$f":"IF(I69=\"\",\"\",VLOOKUP(I69,material[],2,FALSE))","v":""},null,{"$f":"IF(K69=\"\",\"\",VLOOKUP(K69,make[],2,FALSE))","v":""},null,{"$f":"IF(M69=\"\",\"\",VLOOKUP(M69,shape[],2,FALSE))","v":""},null,{"$f":"IF(O69=\"\",\"\",VLOOKUP(O69,colour[],2,FALSE))","v":""},null,{"$f":"IF(Q69=\"\",\"\",VLOOKUP(Q69,attachment[],2,FALSE))","v":""},null,{"$f":"IF(S69=\"\",\"\",VLOOKUP(S69,ground_fix[],2,FALSE))","v":""},null,{"$f":"IF(U69=\"\",\"\",VLOOKUP(U69,starting_style[],2,FALSE))","v":""},null,null,{"$f":"IF(X69=\"\",\"\",VLOOKUP(X69,ending_style[],2,FALSE))","v":""},null,null,null,{"$f":"IF(AB69=\"\",\"\",VLOOKUP(AB69,post_condition[],2,FALSE))","v":""},null,{"$f":"IF(AD69=\"\",\"\",VLOOKUP(AD69,post_material[],2,FALSE))","v":""},null,null,{"$f":"IF(AG69=\"\",\"\",VLOOKUP(AG69,extra_length_reason[],2,FALSE))","v":""},null,null,null,{"$f":"IF(AK69=\"\",\"\",VLOOKUP(AK69,side[],2,FALSE))","v":""},null,null,null,null,{"$f":"IF(AP69=\"\",\"\",VLOOKUP(AP69,install_reason[],2,FALSE))","v":""},null,{"$f":"IF(AR69=\"\",\"\",VLOOKUP(AR69,asset_owner[],2,FALSE))","v":""},null,{"$f":"IF(AT69=\"\",\"\",VLOOKUP(AT69,likelihood[],2,FALSE))","v":""},null,{"$f":"IF(AV69=\"\",\"\",VLOOKUP(AV69,consequence[],2,FALSE))","v":""},null,{"$f":"IF(AX69=\"\",\"\",VLOOKUP(AX69,risk[],2,FALSE))","v":""},null,{"$f":"IF(AZ69=\"\",\"\",VLOOKUP(AZ69,rul_reset[],2,FALSE))","v":""},null,{"$f":"IF(BB69=\"\",\"\",VLOOKUP(BB69,use_default[],2,FALSE))","v":""},null,{"$f":"IF(BD69=\"\",\"\",VLOOKUP(BD69,railing_condition[],2,FALSE))","v":""},null,null,{"$f":"IF(BG69=\"\",\"\",VLOOKUP(BG69,organisation[],2,FALSE))","v":""},null,null,null,null,{"$f":"IF(BL69=\"\",\"\",VLOOKUP(BL69,replace_reason[],2,FALSE))","v":""}]
["null","null",null,null,null,null,null,{"$f":"IF(G70=\"\",\"\",VLOOKUP(G70,type[],2,FALSE))","v":""},null,{"$f":"IF(I70=\"\",\"\",VLOOKUP(I70,material[],2,FALSE))","v":""},null,{"$f":"IF(K70=\"\",\"\",VLOOKUP(K70,make[],2,FALSE))","v":""},null,{"$f":"IF(M70=\"\",\"\",VLOOKUP(M70,shape[],2,FALSE))","v":""},null,{"$f":"IF(O70=\"\",\"\",VLOOKUP(O70,colour[],2,FALSE))","v":""},null,{"$f":"IF(Q70=\"\",\"\",VLOOKUP(Q70,attachment[],2,FALSE))","v":""},null,{"$f":"IF(S70=\"\",\"\",VLOOKUP(S70,ground_fix[],2,FALSE))","v":""},null,{"$f":"IF(U70=\"\",\"\",VLOOKUP(U70,starting_style[],2,FALSE))","v":""},null,null,{"$f":"IF(X70=\"\",\"\",VLOOKUP(X70,ending_style[],2,FALSE))","v":""},null,null,null,{"$f":"IF(AB70=\"\",\"\",VLOOKUP(AB70,post_condition[],2,FALSE))","v":""},null,{"$f":"IF(AD70=\"\",\"\",VLOOKUP(AD70,post_material[],2,FALSE))","v":""},null,null,{"$f":"IF(AG70=\"\",\"\",VLOOKUP(AG70,extra_length_reason[],2,FALSE))","v":""},null,null,null,{"$f":"IF(AK70=\"\",\"\",VLOOKUP(AK70,side[],2,FALSE))","v":""},null,null,null,null,{"$f":"IF(AP70=\"\",\"\",VLOOKUP(AP70,install_reason[],2,FALSE))","v":""},null,{"$f":"IF(AR70=\"\",\"\",VLOOKUP(AR70,asset_owner[],2,FALSE))","v":""},null,{"$f":"IF(AT70=\"\",\"\",VLOOKUP(AT70,likelihood[],2,FALSE))","v":""},null,{"$f":"IF(AV70=\"\",\"\",VLOOKUP(AV70,consequence[],2,FALSE))","v":""},null,{"$f":"IF(AX70=\"\",\"\",VLOOKUP(AX70,risk[],2,FALSE))","v":""},null,{"$f":"IF(AZ70=\"\",\"\",VLOOKUP(AZ70,rul_reset[],2,FALSE))","v":""},null,{"$f":"IF(BB70=\"\",\"\",VLOOKUP(BB70,use_default[],2,FALSE))","v":""},null,{"$f":"IF(BD70=\"\",\"\",VLOOKUP(BD70,railing_condition[],2,FALSE))","v":""},null,null,{"$f":"IF(BG70=\"\",\"\",VLOOKUP(BG70,organisation[],2,FALSE))","v":""},null,null,null,null,{"$f":"IF(BL70=\"\",\"\",VLOOKUP(BL70,replace_reason[],2,FALSE))","v":""}]
["null","null",null,null,null,null,null,{"$f":"IF(G71=\"\",\"\",VLOOKUP(G71,type[],2,FALSE))","v":""},null,{"$f":"IF(I71=\"\",\"\",VLOOKUP(I71,material[],2,FALSE))","v":""},null,{"$f":"IF(K71=\"\",\"\",VLOOKUP(K71,make[],2,FALSE))","v":""},null,{"$f":"IF(M71=\"\",\"\",VLOOKUP(M71,shape[],2,FALSE))","v":""},null,{"$f":"IF(O71=\"\",\"\",VLOOKUP(O71,colour[],2,FALSE))","v":""},null,{"$f":"IF(Q71=\"\",\"\",VLOOKUP(Q71,attachment[],2,FALSE))","v":""},null,{"$f":"IF(S71=\"\",\"\",VLOOKUP(S71,ground_fix[],2,FALSE))","v":""},null,{"$f":"IF(U71=\"\",\"\",VLOOKUP(U71,starting_style[],2,FALSE))","v":""},null,null,{"$f":"IF(X71=\"\",\"\",VLOOKUP(X71,ending_style[],2,FALSE))","v":""},null,null,null,{"$f":"IF(AB71=\"\",\"\",VLOOKUP(AB71,post_condition[],2,FALSE))","v":""},null,{"$f":"IF(AD71=\"\",\"\",VLOOKUP(AD71,post_material[],2,FALSE))","v":""},null,null,{"$f":"IF(AG71=\"\",\"\",VLOOKUP(AG71,extra_length_reason[],2,FALSE))","v":""},null,null,null,{"$f":"IF(AK71=\"\",\"\",VLOOKUP(AK71,side[],2,FALSE))","v":""},null,null,null,null,{"$f":"IF(AP71=\"\",\"\",VLOOKUP(AP71,install_reason[],2,FALSE))","v":""},null,{"$f":"IF(AR71=\"\",\"\",VLOOKUP(AR71,asset_owner[],2,FALSE))","v":""},null,{"$f":"IF(AT71=\"\",\"\",VLOOKUP(AT71,likelihood[],2,FALSE))","v":""},null,{"$f":"IF(AV71=\"\",\"\",VLOOKUP(AV71,consequence[],2,FALSE))","v":""},null,{"$f":"IF(AX71=\"\",\"\",VLOOKUP(AX71,risk[],2,FALSE))","v":""},null,{"$f":"IF(AZ71=\"\",\"\",VLOOKUP(AZ71,rul_reset[],2,FALSE))","v":""},null,{"$f":"IF(BB71=\"\",\"\",VLOOKUP(BB71,use_default[],2,FALSE))","v":""},null,{"$f":"IF(BD71=\"\",\"\",VLOOKUP(BD71,railing_condition[],2,FALSE))","v":""},null,null,{"$f":"IF(BG71=\"\",\"\",VLOOKUP(BG71,organisation[],2,FALSE))","v":""},null,null,null,null,{"$f":"IF(BL71=\"\",\"\",VLOOKUP(BL71,replace_reason[],2,FALSE))","v":""}]
["null","null",null,null,null,null,null,{"$f":"IF(G72=\"\",\"\",VLOOKUP(G72,type[],2,FALSE))","v":""},null,{"$f":"IF(I72=\"\",\"\",VLOOKUP(I72,material[],2,FALSE))","v":""},null,{"$f":"IF(K72=\"\",\"\",VLOOKUP(K72,make[],2,FALSE))","v":""},null,{"$f":"IF(M72=\"\",\"\",VLOOKUP(M72,shape[],2,FALSE))","v":""},null,{"$f":"IF(O72=\"\",\"\",VLOOKUP(O72,colour[],2,FALSE))","v":""},null,{"$f":"IF(Q72=\"\",\"\",VLOOKUP(Q72,attachment[],2,FALSE))","v":""},null,{"$f":"IF(S72=\"\",\"\",VLOOKUP(S72,ground_fix[],2,FALSE))","v":""},null,{"$f":"IF(U72=\"\",\"\",VLOOKUP(U72,starting_style[],2,FALSE))","v":""},null,null,{"$f":"IF(X72=\"\",\"\",VLOOKUP(X72,ending_style[],2,FALSE))","v":""},null,null,null,{"$f":"IF(AB72=\"\",\"\",VLOOKUP(AB72,post_condition[],2,FALSE))","v":""},null,{"$f":"IF(AD72=\"\",\"\",VLOOKUP(AD72,post_material[],2,FALSE))","v":""},null,null,{"$f":"IF(AG72=\"\",\"\",VLOOKUP(AG72,extra_length_reason[],2,FALSE))","v":""},null,null,null,{"$f":"IF(AK72=\"\",\"\",VLOOKUP(AK72,side[],2,FALSE))","v":""},null,null,null,null,{"$f":"IF(AP72=\"\",\"\",VLOOKUP(AP72,install_reason[],2,FALSE))","v":""},null,{"$f":"IF(AR72=\"\",\"\",VLOOKUP(AR72,asset_owner[],2,FALSE))","v":""},null,{"$f":"IF(AT72=\"\",\"\",VLOOKUP(AT72,likelihood[],2,FALSE))","v":""},null,{"$f":"IF(AV72=\"\",\"\",VLOOKUP(AV72,consequence[],2,FALSE))","v":""},null,{"$f":"IF(AX72=\"\",\"\",VLOOKUP(AX72,risk[],2,FALSE))","v":""},null,{"$f":"IF(AZ72=\"\",\"\",VLOOKUP(AZ72,rul_reset[],2,FALSE))","v":""},null,{"$f":"IF(BB72=\"\",\"\",VLOOKUP(BB72,use_default[],2,FALSE))","v":""},null,{"$f":"IF(BD72=\"\",\"\",VLOOKUP(BD72,railing_condition[],2,FALSE))","v":""},null,null,{"$f":"IF(BG72=\"\",\"\",VLOOKUP(BG72,organisation[],2,FALSE))","v":""},null,null,null,null,{"$f":"IF(BL72=\"\",\"\",VLOOKUP(BL72,replace_reason[],2,FALSE))","v":""}]
["null","null",null,null,null,null,null,{"$f":"IF(G73=\"\",\"\",VLOOKUP(G73,type[],2,FALSE))","v":""},null,{"$f":"IF(I73=\"\",\"\",VLOOKUP(I73,material[],2,FALSE))","v":""},null,{"$f":"IF(K73=\"\",\"\",VLOOKUP(K73,make[],2,FALSE))","v":""},null,{"$f":"IF(M73=\"\",\"\",VLOOKUP(M73,shape[],2,FALSE))","v":""},null,{"$f":"IF(O73=\"\",\"\",VLOOKUP(O73,colour[],2,FALSE))","v":""},null,{"$f":"IF(Q73=\"\",\"\",VLOOKUP(Q73,attachment[],2,FALSE))","v":""},null,{"$f":"IF(S73=\"\",\"\",VLOOKUP(S73,ground_fix[],2,FALSE))","v":""},null,{"$f":"IF(U73=\"\",\"\",VLOOKUP(U73,starting_style[],2,FALSE))","v":""},null,null,{"$f":"IF(X73=\"\",\"\",VLOOKUP(X73,ending_style[],2,FALSE))","v":""},null,null,null,{"$f":"IF(AB73=\"\",\"\",VLOOKUP(AB73,post_condition[],2,FALSE))","v":""},null,{"$f":"IF(AD73=\"\",\"\",VLOOKUP(AD73,post_material[],2,FALSE))","v":""},null,null,{"$f":"IF(AG73=\"\",\"\",VLOOKUP(AG73,extra_length_reason[],2,FALSE))","v":""},null,null,null,{"$f":"IF(AK73=\"\",\"\",VLOOKUP(AK73,side[],2,FALSE))","v":""},null,null,null,null,{"$f":"IF(AP73=\"\",\"\",VLOOKUP(AP73,install_reason[],2,FALSE))","v":""},null,{"$f":"IF(AR73=\"\",\"\",VLOOKUP(AR73,asset_owner[],2,FALSE))","v":""},null,{"$f":"IF(AT73=\"\",\"\",VLOOKUP(AT73,likelihood[],2,FALSE))","v":""},null,{"$f":"IF(AV73=\"\",\"\",VLOOKUP(AV73,consequence[],2,FALSE))","v":""},null,{"$f":"IF(AX73=\"\",\"\",VLOOKUP(AX73,risk[],2,FALSE))","v":""},null,{"$f":"IF(AZ73=\"\",\"\",VLOOKUP(AZ73,rul_reset[],2,FALSE))","v":""},null,{"$f":"IF(BB73=\"\",\"\",VLOOKUP(BB73,use_default[],2,FALSE))","v":""},null,{"$f":"IF(BD73=\"\",\"\",VLOOKUP(BD73,railing_condition[],2,FALSE))","v":""},null,null,{"$f":"IF(BG73=\"\",\"\",VLOOKUP(BG73,organisation[],2,FALSE))","v":""},null,null,null,null,{"$f":"IF(BL73=\"\",\"\",VLOOKUP(BL73,replace_reason[],2,FALSE))","v":""}]
["null","null",null,null,null,null,null,{"$f":"IF(G74=\"\",\"\",VLOOKUP(G74,type[],2,FALSE))","v":""},null,{"$f":"IF(I74=\"\",\"\",VLOOKUP(I74,material[],2,FALSE))","v":""},null,{"$f":"IF(K74=\"\",\"\",VLOOKUP(K74,make[],2,FALSE))","v":""},null,{"$f":"IF(M74=\"\",\"\",VLOOKUP(M74,shape[],2,FALSE))","v":""},null,{"$f":"IF(O74=\"\",\"\",VLOOKUP(O74,colour[],2,FALSE))","v":""},null,{"$f":"IF(Q74=\"\",\"\",VLOOKUP(Q74,attachment[],2,FALSE))","v":""},null,{"$f":"IF(S74=\"\",\"\",VLOOKUP(S74,ground_fix[],2,FALSE))","v":""},null,{"$f":"IF(U74=\"\",\"\",VLOOKUP(U74,starting_style[],2,FALSE))","v":""},null,null,{"$f":"IF(X74=\"\",\"\",VLOOKUP(X74,ending_style[],2,FALSE))","v":""},null,null,null,{"$f":"IF(AB74=\"\",\"\",VLOOKUP(AB74,post_condition[],2,FALSE))","v":""},null,{"$f":"IF(AD74=\"\",\"\",VLOOKUP(AD74,post_material[],2,FALSE))","v":""},null,null,{"$f":"IF(AG74=\"\",\"\",VLOOKUP(AG74,extra_length_reason[],2,FALSE))","v":""},null,null,null,{"$f":"IF(AK74=\"\",\"\",VLOOKUP(AK74,side[],2,FALSE))","v":""},null,null,null,null,{"$f":"IF(AP74=\"\",\"\",VLOOKUP(AP74,install_reason[],2,FALSE))","v":""},null,{"$f":"IF(AR74=\"\",\"\",VLOOKUP(AR74,asset_owner[],2,FALSE))","v":""},null,{"$f":"IF(AT74=\"\",\"\",VLOOKUP(AT74,likelihood[],2,FALSE))","v":""},null,{"$f":"IF(AV74=\"\",\"\",VLOOKUP(AV74,consequence[],2,FALSE))","v":""},null,{"$f":"IF(AX74=\"\",\"\",VLOOKUP(AX74,risk[],2,FALSE))","v":""},null,{"$f":"IF(AZ74=\"\",\"\",VLOOKUP(AZ74,rul_reset[],2,FALSE))","v":""},null,{"$f":"IF(BB74=\"\",\"\",VLOOKUP(BB74,use_default[],2,FALSE))","v":""},null,{"$f":"IF(BD74=\"\",\"\",VLOOKUP(BD74,railing_condition[],2,FALSE))","v":""},null,null,{"$f":"IF(BG74=\"\",\"\",VLOOKUP(BG74,organisation[],2,FALSE))","v":""},null,null,null,null,{"$f":"IF(BL74=\"\",\"\",VLOOKUP(BL74,replace_reason[],2,FALSE))","v":""}]
["null","null",null,null,null,null,null,{"$f":"IF(G75=\"\",\"\",VLOOKUP(G75,type[],2,FALSE))","v":""},null,{"$f":"IF(I75=\"\",\"\",VLOOKUP(I75,material[],2,FALSE))","v":""},null,{"$f":"IF(K75=\"\",\"\",VLOOKUP(K75,make[],2,FALSE))","v":""},null,{"$f":"IF(M75=\"\",\"\",VLOOKUP(M75,shape[],2,FALSE))","v":""},null,{"$f":"IF(O75=\"\",\"\",VLOOKUP(O75,colour[],2,FALSE))","v":""},null,{"$f":"IF(Q75=\"\",\"\",VLOOKUP(Q75,attachment[],2,FALSE))","v":""},null,{"$f":"IF(S75=\"\",\"\",VLOOKUP(S75,ground_fix[],2,FALSE))","v":""},null,{"$f":"IF(U75=\"\",\"\",VLOOKUP(U75,starting_style[],2,FALSE))","v":""},null,null,{"$f":"IF(X75=\"\",\"\",VLOOKUP(X75,ending_style[],2,FALSE))","v":""},null,null,null,{"$f":"IF(AB75=\"\",\"\",VLOOKUP(AB75,post_condition[],2,FALSE))","v":""},null,{"$f":"IF(AD75=\"\",\"\",VLOOKUP(AD75,post_material[],2,FALSE))","v":""},null,null,{"$f":"IF(AG75=\"\",\"\",VLOOKUP(AG75,extra_length_reason[],2,FALSE))","v":""},null,null,null,{"$f":"IF(AK75=\"\",\"\",VLOOKUP(AK75,side[],2,FALSE))","v":""},null,null,null,null,{"$f":"IF(AP75=\"\",\"\",VLOOKUP(AP75,install_reason[],2,FALSE))","v":""},null,{"$f":"IF(AR75=\"\",\"\",VLOOKUP(AR75,asset_owner[],2,FALSE))","v":""},null,{"$f":"IF(AT75=\"\",\"\",VLOOKUP(AT75,likelihood[],2,FALSE))","v":""},null,{"$f":"IF(AV75=\"\",\"\",VLOOKUP(AV75,consequence[],2,FALSE))","v":""},null,{"$f":"IF(AX75=\"\",\"\",VLOOKUP(AX75,risk[],2,FALSE))","v":""},null,{"$f":"IF(AZ75=\"\",\"\",VLOOKUP(AZ75,rul_reset[],2,FALSE))","v":""},null,{"$f":"IF(BB75=\"\",\"\",VLOOKUP(BB75,use_default[],2,FALSE))","v":""},null,{"$f":"IF(BD75=\"\",\"\",VLOOKUP(BD75,railing_condition[],2,FALSE))","v":""},null,null,{"$f":"IF(BG75=\"\",\"\",VLOOKUP(BG75,organisation[],2,FALSE))","v":""},null,null,null,null,{"$f":"IF(BL75=\"\",\"\",VLOOKUP(BL75,replace_reason[],2,FALSE))","v":""}]
["null","null",null,null,null,null,null,{"$f":"IF(G76=\"\",\"\",VLOOKUP(G76,type[],2,FALSE))","v":""},null,{"$f":"IF(I76=\"\",\"\",VLOOKUP(I76,material[],2,FALSE))","v":""},null,{"$f":"IF(K76=\"\",\"\",VLOOKUP(K76,make[],2,FALSE))","v":""},null,{"$f":"IF(M76=\"\",\"\",VLOOKUP(M76,shape[],2,FALSE))","v":""},null,{"$f":"IF(O76=\"\",\"\",VLOOKUP(O76,colour[],2,FALSE))","v":""},null,{"$f":"IF(Q76=\"\",\"\",VLOOKUP(Q76,attachment[],2,FALSE))","v":""},null,{"$f":"IF(S76=\"\",\"\",VLOOKUP(S76,ground_fix[],2,FALSE))","v":""},null,{"$f":"IF(U76=\"\",\"\",VLOOKUP(U76,starting_style[],2,FALSE))","v":""},null,null,{"$f":"IF(X76=\"\",\"\",VLOOKUP(X76,ending_style[],2,FALSE))","v":""},null,null,null,{"$f":"IF(AB76=\"\",\"\",VLOOKUP(AB76,post_condition[],2,FALSE))","v":""},null,{"$f":"IF(AD76=\"\",\"\",VLOOKUP(AD76,post_material[],2,FALSE))","v":""},null,null,{"$f":"IF(AG76=\"\",\"\",VLOOKUP(AG76,extra_length_reason[],2,FALSE))","v":""},null,null,null,{"$f":"IF(AK76=\"\",\"\",VLOOKUP(AK76,side[],2,FALSE))","v":""},null,null,null,null,{"$f":"IF(AP76=\"\",\"\",VLOOKUP(AP76,install_reason[],2,FALSE))","v":""},null,{"$f":"IF(AR76=\"\",\"\",VLOOKUP(AR76,asset_owner[],2,FALSE))","v":""},null,{"$f":"IF(AT76=\"\",\"\",VLOOKUP(AT76,likelihood[],2,FALSE))","v":""},null,{"$f":"IF(AV76=\"\",\"\",VLOOKUP(AV76,consequence[],2,FALSE))","v":""},null,{"$f":"IF(AX76=\"\",\"\",VLOOKUP(AX76,risk[],2,FALSE))","v":""},null,{"$f":"IF(AZ76=\"\",\"\",VLOOKUP(AZ76,rul_reset[],2,FALSE))","v":""},null,{"$f":"IF(BB76=\"\",\"\",VLOOKUP(BB76,use_default[],2,FALSE))","v":""},null,{"$f":"IF(BD76=\"\",\"\",VLOOKUP(BD76,railing_condition[],2,FALSE))","v":""},null,null,{"$f":"IF(BG76=\"\",\"\",VLOOKUP(BG76,organisation[],2,FALSE))","v":""},null,null,null,null,{"$f":"IF(BL76=\"\",\"\",VLOOKUP(BL76,replace_reason[],2,FALSE))","v":""}]
["null","null",null,null,null,null,null,{"$f":"IF(G77=\"\",\"\",VLOOKUP(G77,type[],2,FALSE))","v":""},null,{"$f":"IF(I77=\"\",\"\",VLOOKUP(I77,material[],2,FALSE))","v":""},null,{"$f":"IF(K77=\"\",\"\",VLOOKUP(K77,make[],2,FALSE))","v":""},null,{"$f":"IF(M77=\"\",\"\",VLOOKUP(M77,shape[],2,FALSE))","v":""},null,{"$f":"IF(O77=\"\",\"\",VLOOKUP(O77,colour[],2,FALSE))","v":""},null,{"$f":"IF(Q77=\"\",\"\",VLOOKUP(Q77,attachment[],2,FALSE))","v":""},null,{"$f":"IF(S77=\"\",\"\",VLOOKUP(S77,ground_fix[],2,FALSE))","v":""},null,{"$f":"IF(U77=\"\",\"\",VLOOKUP(U77,starting_style[],2,FALSE))","v":""},null,null,{"$f":"IF(X77=\"\",\"\",VLOOKUP(X77,ending_style[],2,FALSE))","v":""},null,null,null,{"$f":"IF(AB77=\"\",\"\",VLOOKUP(AB77,post_condition[],2,FALSE))","v":""},null,{"$f":"IF(AD77=\"\",\"\",VLOOKUP(AD77,post_material[],2,FALSE))","v":""},null,null,{"$f":"IF(AG77=\"\",\"\",VLOOKUP(AG77,extra_length_reason[],2,FALSE))","v":""},null,null,null,{"$f":"IF(AK77=\"\",\"\",VLOOKUP(AK77,side[],2,FALSE))","v":""},null,null,null,null,{"$f":"IF(AP77=\"\",\"\",VLOOKUP(AP77,install_reason[],2,FALSE))","v":""},null,{"$f":"IF(AR77=\"\",\"\",VLOOKUP(AR77,asset_owner[],2,FALSE))","v":""},null,{"$f":"IF(AT77=\"\",\"\",VLOOKUP(AT77,likelihood[],2,FALSE))","v":""},null,{"$f":"IF(AV77=\"\",\"\",VLOOKUP(AV77,consequence[],2,FALSE))","v":""},null,{"$f":"IF(AX77=\"\",\"\",VLOOKUP(AX77,risk[],2,FALSE))","v":""},null,{"$f":"IF(AZ77=\"\",\"\",VLOOKUP(AZ77,rul_reset[],2,FALSE))","v":""},null,{"$f":"IF(BB77=\"\",\"\",VLOOKUP(BB77,use_default[],2,FALSE))","v":""},null,{"$f":"IF(BD77=\"\",\"\",VLOOKUP(BD77,railing_condition[],2,FALSE))","v":""},null,null,{"$f":"IF(BG77=\"\",\"\",VLOOKUP(BG77,organisation[],2,FALSE))","v":""},null,null,null,null,{"$f":"IF(BL77=\"\",\"\",VLOOKUP(BL77,replace_reason[],2,FALSE))","v":""}]
["null","null",null,null,null,null,null,{"$f":"IF(G78=\"\",\"\",VLOOKUP(G78,type[],2,FALSE))","v":""},null,{"$f":"IF(I78=\"\",\"\",VLOOKUP(I78,material[],2,FALSE))","v":""},null,{"$f":"IF(K78=\"\",\"\",VLOOKUP(K78,make[],2,FALSE))","v":""},null,{"$f":"IF(M78=\"\",\"\",VLOOKUP(M78,shape[],2,FALSE))","v":""},null,{"$f":"IF(O78=\"\",\"\",VLOOKUP(O78,colour[],2,FALSE))","v":""},null,{"$f":"IF(Q78=\"\",\"\",VLOOKUP(Q78,attachment[],2,FALSE))","v":""},null,{"$f":"IF(S78=\"\",\"\",VLOOKUP(S78,ground_fix[],2,FALSE))","v":""},null,{"$f":"IF(U78=\"\",\"\",VLOOKUP(U78,starting_style[],2,FALSE))","v":""},null,null,{"$f":"IF(X78=\"\",\"\",VLOOKUP(X78,ending_style[],2,FALSE))","v":""},null,null,null,{"$f":"IF(AB78=\"\",\"\",VLOOKUP(AB78,post_condition[],2,FALSE))","v":""},null,{"$f":"IF(AD78=\"\",\"\",VLOOKUP(AD78,post_material[],2,FALSE))","v":""},null,null,{"$f":"IF(AG78=\"\",\"\",VLOOKUP(AG78,extra_length_reason[],2,FALSE))","v":""},null,null,null,{"$f":"IF(AK78=\"\",\"\",VLOOKUP(AK78,side[],2,FALSE))","v":""},null,null,null,null,{"$f":"IF(AP78=\"\",\"\",VLOOKUP(AP78,install_reason[],2,FALSE))","v":""},null,{"$f":"IF(AR78=\"\",\"\",VLOOKUP(AR78,asset_owner[],2,FALSE))","v":""},null,{"$f":"IF(AT78=\"\",\"\",VLOOKUP(AT78,likelihood[],2,FALSE))","v":""},null,{"$f":"IF(AV78=\"\",\"\",VLOOKUP(AV78,consequence[],2,FALSE))","v":""},null,{"$f":"IF(AX78=\"\",\"\",VLOOKUP(AX78,risk[],2,FALSE))","v":""},null,{"$f":"IF(AZ78=\"\",\"\",VLOOKUP(AZ78,rul_reset[],2,FALSE))","v":""},null,{"$f":"IF(BB78=\"\",\"\",VLOOKUP(BB78,use_default[],2,FALSE))","v":""},null,{"$f":"IF(BD78=\"\",\"\",VLOOKUP(BD78,railing_condition[],2,FALSE))","v":""},null,null,{"$f":"IF(BG78=\"\",\"\",VLOOKUP(BG78,organisation[],2,FALSE))","v":""},null,null,null,null,{"$f":"IF(BL78=\"\",\"\",VLOOKUP(BL78,replace_reason[],2,FALSE))","v":""}]
["null","null",null,null,null,null,null,{"$f":"IF(G79=\"\",\"\",VLOOKUP(G79,type[],2,FALSE))","v":""},null,{"$f":"IF(I79=\"\",\"\",VLOOKUP(I79,material[],2,FALSE))","v":""},null,{"$f":"IF(K79=\"\",\"\",VLOOKUP(K79,make[],2,FALSE))","v":""},null,{"$f":"IF(M79=\"\",\"\",VLOOKUP(M79,shape[],2,FALSE))","v":""},null,{"$f":"IF(O79=\"\",\"\",VLOOKUP(O79,colour[],2,FALSE))","v":""},null,{"$f":"IF(Q79=\"\",\"\",VLOOKUP(Q79,attachment[],2,FALSE))","v":""},null,{"$f":"IF(S79=\"\",\"\",VLOOKUP(S79,ground_fix[],2,FALSE))","v":""},null,{"$f":"IF(U79=\"\",\"\",VLOOKUP(U79,starting_style[],2,FALSE))","v":""},null,null,{"$f":"IF(X79=\"\",\"\",VLOOKUP(X79,ending_style[],2,FALSE))","v":""},null,null,null,{"$f":"IF(AB79=\"\",\"\",VLOOKUP(AB79,post_condition[],2,FALSE))","v":""},null,{"$f":"IF(AD79=\"\",\"\",VLOOKUP(AD79,post_material[],2,FALSE))","v":""},null,null,{"$f":"IF(AG79=\"\",\"\",VLOOKUP(AG79,extra_length_reason[],2,FALSE))","v":""},null,null,null,{"$f":"IF(AK79=\"\",\"\",VLOOKUP(AK79,side[],2,FALSE))","v":""},null,null,null,null,{"$f":"IF(AP79=\"\",\"\",VLOOKUP(AP79,install_reason[],2,FALSE))","v":""},null,{"$f":"IF(AR79=\"\",\"\",VLOOKUP(AR79,asset_owner[],2,FALSE))","v":""},null,{"$f":"IF(AT79=\"\",\"\",VLOOKUP(AT79,likelihood[],2,FALSE))","v":""},null,{"$f":"IF(AV79=\"\",\"\",VLOOKUP(AV79,consequence[],2,FALSE))","v":""},null,{"$f":"IF(AX79=\"\",\"\",VLOOKUP(AX79,risk[],2,FALSE))","v":""},null,{"$f":"IF(AZ79=\"\",\"\",VLOOKUP(AZ79,rul_reset[],2,FALSE))","v":""},null,{"$f":"IF(BB79=\"\",\"\",VLOOKUP(BB79,use_default[],2,FALSE))","v":""},null,{"$f":"IF(BD79=\"\",\"\",VLOOKUP(BD79,railing_condition[],2,FALSE))","v":""},null,null,{"$f":"IF(BG79=\"\",\"\",VLOOKUP(BG79,organisation[],2,FALSE))","v":""},null,null,null,null,{"$f":"IF(BL79=\"\",\"\",VLOOKUP(BL79,replace_reason[],2,FALSE))","v":""}]
["null","null",null,null,null,null,null,{"$f":"IF(G80=\"\",\"\",VLOOKUP(G80,type[],2,FALSE))","v":""},null,{"$f":"IF(I80=\"\",\"\",VLOOKUP(I80,material[],2,FALSE))","v":""},null,{"$f":"IF(K80=\"\",\"\",VLOOKUP(K80,make[],2,FALSE))","v":""},null,{"$f":"IF(M80=\"\",\"\",VLOOKUP(M80,shape[],2,FALSE))","v":""},null,{"$f":"IF(O80=\"\",\"\",VLOOKUP(O80,colour[],2,FALSE))","v":""},null,{"$f":"IF(Q80=\"\",\"\",VLOOKUP(Q80,attachment[],2,FALSE))","v":""},null,{"$f":"IF(S80=\"\",\"\",VLOOKUP(S80,ground_fix[],2,FALSE))","v":""},null,{"$f":"IF(U80=\"\",\"\",VLOOKUP(U80,starting_style[],2,FALSE))","v":""},null,null,{"$f":"IF(X80=\"\",\"\",VLOOKUP(X80,ending_style[],2,FALSE))","v":""},null,null,null,{"$f":"IF(AB80=\"\",\"\",VLOOKUP(AB80,post_condition[],2,FALSE))","v":""},null,{"$f":"IF(AD80=\"\",\"\",VLOOKUP(AD80,post_material[],2,FALSE))","v":""},null,null,{"$f":"IF(AG80=\"\",\"\",VLOOKUP(AG80,extra_length_reason[],2,FALSE))","v":""},null,null,null,{"$f":"IF(AK80=\"\",\"\",VLOOKUP(AK80,side[],2,FALSE))","v":""},null,null,null,null,{"$f":"IF(AP80=\"\",\"\",VLOOKUP(AP80,install_reason[],2,FALSE))","v":""},null,{"$f":"IF(AR80=\"\",\"\",VLOOKUP(AR80,asset_owner[],2,FALSE))","v":""},null,{"$f":"IF(AT80=\"\",\"\",VLOOKUP(AT80,likelihood[],2,FALSE))","v":""},null,{"$f":"IF(AV80=\"\",\"\",VLOOKUP(AV80,consequence[],2,FALSE))","v":""},null,{"$f":"IF(AX80=\"\",\"\",VLOOKUP(AX80,risk[],2,FALSE))","v":""},null,{"$f":"IF(AZ80=\"\",\"\",VLOOKUP(AZ80,rul_reset[],2,FALSE))","v":""},null,{"$f":"IF(BB80=\"\",\"\",VLOOKUP(BB80,use_default[],2,FALSE))","v":""},null,{"$f":"IF(BD80=\"\",\"\",VLOOKUP(BD80,railing_condition[],2,FALSE))","v":""},null,null,{"$f":"IF(BG80=\"\",\"\",VLOOKUP(BG80,organisation[],2,FALSE))","v":""},null,null,null,null,{"$f":"IF(BL80=\"\",\"\",VLOOKUP(BL80,replace_reason[],2,FALSE))","v":""}]
["null","null",null,null,null,null,null,{"$f":"IF(G81=\"\",\"\",VLOOKUP(G81,type[],2,FALSE))","v":""},null,{"$f":"IF(I81=\"\",\"\",VLOOKUP(I81,material[],2,FALSE))","v":""},null,{"$f":"IF(K81=\"\",\"\",VLOOKUP(K81,make[],2,FALSE))","v":""},null,{"$f":"IF(M81=\"\",\"\",VLOOKUP(M81,shape[],2,FALSE))","v":""},null,{"$f":"IF(O81=\"\",\"\",VLOOKUP(O81,colour[],2,FALSE))","v":""},null,{"$f":"IF(Q81=\"\",\"\",VLOOKUP(Q81,attachment[],2,FALSE))","v":""},null,{"$f":"IF(S81=\"\",\"\",VLOOKUP(S81,ground_fix[],2,FALSE))","v":""},null,{"$f":"IF(U81=\"\",\"\",VLOOKUP(U81,starting_style[],2,FALSE))","v":""},null,null,{"$f":"IF(X81=\"\",\"\",VLOOKUP(X81,ending_style[],2,FALSE))","v":""},null,null,null,{"$f":"IF(AB81=\"\",\"\",VLOOKUP(AB81,post_condition[],2,FALSE))","v":""},null,{"$f":"IF(AD81=\"\",\"\",VLOOKUP(AD81,post_material[],2,FALSE))","v":""},null,null,{"$f":"IF(AG81=\"\",\"\",VLOOKUP(AG81,extra_length_reason[],2,FALSE))","v":""},null,null,null,{"$f":"IF(AK81=\"\",\"\",VLOOKUP(AK81,side[],2,FALSE))","v":""},null,null,null,null,{"$f":"IF(AP81=\"\",\"\",VLOOKUP(AP81,install_reason[],2,FALSE))","v":""},null,{"$f":"IF(AR81=\"\",\"\",VLOOKUP(AR81,asset_owner[],2,FALSE))","v":""},null,{"$f":"IF(AT81=\"\",\"\",VLOOKUP(AT81,likelihood[],2,FALSE))","v":""},null,{"$f":"IF(AV81=\"\",\"\",VLOOKUP(AV81,consequence[],2,FALSE))","v":""},null,{"$f":"IF(AX81=\"\",\"\",VLOOKUP(AX81,risk[],2,FALSE))","v":""},null,{"$f":"IF(AZ81=\"\",\"\",VLOOKUP(AZ81,rul_reset[],2,FALSE))","v":""},null,{"$f":"IF(BB81=\"\",\"\",VLOOKUP(BB81,use_default[],2,FALSE))","v":""},null,{"$f":"IF(BD81=\"\",\"\",VLOOKUP(BD81,railing_condition[],2,FALSE))","v":""},null,null,{"$f":"IF(BG81=\"\",\"\",VLOOKUP(BG81,organisation[],2,FALSE))","v":""},null,null,null,null,{"$f":"IF(BL81=\"\",\"\",VLOOKUP(BL81,replace_reason[],2,FALSE))","v":""}]
["null","null",null,null,null,null,null,{"$f":"IF(G82=\"\",\"\",VLOOKUP(G82,type[],2,FALSE))","v":""},null,{"$f":"IF(I82=\"\",\"\",VLOOKUP(I82,material[],2,FALSE))","v":""},null,{"$f":"IF(K82=\"\",\"\",VLOOKUP(K82,make[],2,FALSE))","v":""},null,{"$f":"IF(M82=\"\",\"\",VLOOKUP(M82,shape[],2,FALSE))","v":""},null,{"$f":"IF(O82=\"\",\"\",VLOOKUP(O82,colour[],2,FALSE))","v":""},null,{"$f":"IF(Q82=\"\",\"\",VLOOKUP(Q82,attachment[],2,FALSE))","v":""},null,{"$f":"IF(S82=\"\",\"\",VLOOKUP(S82,ground_fix[],2,FALSE))","v":""},null,{"$f":"IF(U82=\"\",\"\",VLOOKUP(U82,starting_style[],2,FALSE))","v":""},null,null,{"$f":"IF(X82=\"\",\"\",VLOOKUP(X82,ending_style[],2,FALSE))","v":""},null,null,null,{"$f":"IF(AB82=\"\",\"\",VLOOKUP(AB82,post_condition[],2,FALSE))","v":""},null,{"$f":"IF(AD82=\"\",\"\",VLOOKUP(AD82,post_material[],2,FALSE))","v":""},null,null,{"$f":"IF(AG82=\"\",\"\",VLOOKUP(AG82,extra_length_reason[],2,FALSE))","v":""},null,null,null,{"$f":"IF(AK82=\"\",\"\",VLOOKUP(AK82,side[],2,FALSE))","v":""},null,null,null,null,{"$f":"IF(AP82=\"\",\"\",VLOOKUP(AP82,install_reason[],2,FALSE))","v":""},null,{"$f":"IF(AR82=\"\",\"\",VLOOKUP(AR82,asset_owner[],2,FALSE))","v":""},null,{"$f":"IF(AT82=\"\",\"\",VLOOKUP(AT82,likelihood[],2,FALSE))","v":""},null,{"$f":"IF(AV82=\"\",\"\",VLOOKUP(AV82,consequence[],2,FALSE))","v":""},null,{"$f":"IF(AX82=\"\",\"\",VLOOKUP(AX82,risk[],2,FALSE))","v":""},null,{"$f":"IF(AZ82=\"\",\"\",VLOOKUP(AZ82,rul_reset[],2,FALSE))","v":""},null,{"$f":"IF(BB82=\"\",\"\",VLOOKUP(BB82,use_default[],2,FALSE))","v":""},null,{"$f":"IF(BD82=\"\",\"\",VLOOKUP(BD82,railing_condition[],2,FALSE))","v":""},null,null,{"$f":"IF(BG82=\"\",\"\",VLOOKUP(BG82,organisation[],2,FALSE))","v":""},null,null,null,null,{"$f":"IF(BL82=\"\",\"\",VLOOKUP(BL82,replace_reason[],2,FALSE))","v":""}]
["null","null",null,null,null,null,null,{"$f":"IF(G83=\"\",\"\",VLOOKUP(G83,type[],2,FALSE))","v":""},null,{"$f":"IF(I83=\"\",\"\",VLOOKUP(I83,material[],2,FALSE))","v":""},null,{"$f":"IF(K83=\"\",\"\",VLOOKUP(K83,make[],2,FALSE))","v":""},null,{"$f":"IF(M83=\"\",\"\",VLOOKUP(M83,shape[],2,FALSE))","v":""},null,{"$f":"IF(O83=\"\",\"\",VLOOKUP(O83,colour[],2,FALSE))","v":""},null,{"$f":"IF(Q83=\"\",\"\",VLOOKUP(Q83,attachment[],2,FALSE))","v":""},null,{"$f":"IF(S83=\"\",\"\",VLOOKUP(S83,ground_fix[],2,FALSE))","v":""},null,{"$f":"IF(U83=\"\",\"\",VLOOKUP(U83,starting_style[],2,FALSE))","v":""},null,null,{"$f":"IF(X83=\"\",\"\",VLOOKUP(X83,ending_style[],2,FALSE))","v":""},null,null,null,{"$f":"IF(AB83=\"\",\"\",VLOOKUP(AB83,post_condition[],2,FALSE))","v":""},null,{"$f":"IF(AD83=\"\",\"\",VLOOKUP(AD83,post_material[],2,FALSE))","v":""},null,null,{"$f":"IF(AG83=\"\",\"\",VLOOKUP(AG83,extra_length_reason[],2,FALSE))","v":""},null,null,null,{"$f":"IF(AK83=\"\",\"\",VLOOKUP(AK83,side[],2,FALSE))","v":""},null,null,null,null,{"$f":"IF(AP83=\"\",\"\",VLOOKUP(AP83,install_reason[],2,FALSE))","v":""},null,{"$f":"IF(AR83=\"\",\"\",VLOOKUP(AR83,asset_owner[],2,FALSE))","v":""},null,{"$f":"IF(AT83=\"\",\"\",VLOOKUP(AT83,likelihood[],2,FALSE))","v":""},null,{"$f":"IF(AV83=\"\",\"\",VLOOKUP(AV83,consequence[],2,FALSE))","v":""},null,{"$f":"IF(AX83=\"\",\"\",VLOOKUP(AX83,risk[],2,FALSE))","v":""},null,{"$f":"IF(AZ83=\"\",\"\",VLOOKUP(AZ83,rul_reset[],2,FALSE))","v":""},null,{"$f":"IF(BB83=\"\",\"\",VLOOKUP(BB83,use_default[],2,FALSE))","v":""},null,{"$f":"IF(BD83=\"\",\"\",VLOOKUP(BD83,railing_condition[],2,FALSE))","v":""},null,null,{"$f":"IF(BG83=\"\",\"\",VLOOKUP(BG83,organisation[],2,FALSE))","v":""},null,null,null,null,{"$f":"IF(BL83=\"\",\"\",VLOOKUP(BL83,replace_reason[],2,FALSE))","v":""}]
["null","null",null,null,null,null,null,{"$f":"IF(G84=\"\",\"\",VLOOKUP(G84,type[],2,FALSE))","v":""},null,{"$f":"IF(I84=\"\",\"\",VLOOKUP(I84,material[],2,FALSE))","v":""},null,{"$f":"IF(K84=\"\",\"\",VLOOKUP(K84,make[],2,FALSE))","v":""},null,{"$f":"IF(M84=\"\",\"\",VLOOKUP(M84,shape[],2,FALSE))","v":""},null,{"$f":"IF(O84=\"\",\"\",VLOOKUP(O84,colour[],2,FALSE))","v":""},null,{"$f":"IF(Q84=\"\",\"\",VLOOKUP(Q84,attachment[],2,FALSE))","v":""},null,{"$f":"IF(S84=\"\",\"\",VLOOKUP(S84,ground_fix[],2,FALSE))","v":""},null,{"$f":"IF(U84=\"\",\"\",VLOOKUP(U84,starting_style[],2,FALSE))","v":""},null,null,{"$f":"IF(X84=\"\",\"\",VLOOKUP(X84,ending_style[],2,FALSE))","v":""},null,null,null,{"$f":"IF(AB84=\"\",\"\",VLOOKUP(AB84,post_condition[],2,FALSE))","v":""},null,{"$f":"IF(AD84=\"\",\"\",VLOOKUP(AD84,post_material[],2,FALSE))","v":""},null,null,{"$f":"IF(AG84=\"\",\"\",VLOOKUP(AG84,extra_length_reason[],2,FALSE))","v":""},null,null,null,{"$f":"IF(AK84=\"\",\"\",VLOOKUP(AK84,side[],2,FALSE))","v":""},null,null,null,null,{"$f":"IF(AP84=\"\",\"\",VLOOKUP(AP84,install_reason[],2,FALSE))","v":""},null,{"$f":"IF(AR84=\"\",\"\",VLOOKUP(AR84,asset_owner[],2,FALSE))","v":""},null,{"$f":"IF(AT84=\"\",\"\",VLOOKUP(AT84,likelihood[],2,FALSE))","v":""},null,{"$f":"IF(AV84=\"\",\"\",VLOOKUP(AV84,consequence[],2,FALSE))","v":""},null,{"$f":"IF(AX84=\"\",\"\",VLOOKUP(AX84,risk[],2,FALSE))","v":""},null,{"$f":"IF(AZ84=\"\",\"\",VLOOKUP(AZ84,rul_reset[],2,FALSE))","v":""},null,{"$f":"IF(BB84=\"\",\"\",VLOOKUP(BB84,use_default[],2,FALSE))","v":""},null,{"$f":"IF(BD84=\"\",\"\",VLOOKUP(BD84,railing_condition[],2,FALSE))","v":""},null,null,{"$f":"IF(BG84=\"\",\"\",VLOOKUP(BG84,organisation[],2,FALSE))","v":""},null,null,null,null,{"$f":"IF(BL84=\"\",\"\",VLOOKUP(BL84,replace_reason[],2,FALSE))","v":""}]
["null","null",null,null,null,null,null,{"$f":"IF(G85=\"\",\"\",VLOOKUP(G85,type[],2,FALSE))","v":""},null,{"$f":"IF(I85=\"\",\"\",VLOOKUP(I85,material[],2,FALSE))","v":""},null,{"$f":"IF(K85=\"\",\"\",VLOOKUP(K85,make[],2,FALSE))","v":""},null,{"$f":"IF(M85=\"\",\"\",VLOOKUP(M85,shape[],2,FALSE))","v":""},null,{"$f":"IF(O85=\"\",\"\",VLOOKUP(O85,colour[],2,FALSE))","v":""},null,{"$f":"IF(Q85=\"\",\"\",VLOOKUP(Q85,attachment[],2,FALSE))","v":""},null,{"$f":"IF(S85=\"\",\"\",VLOOKUP(S85,ground_fix[],2,FALSE))","v":""},null,{"$f":"IF(U85=\"\",\"\",VLOOKUP(U85,starting_style[],2,FALSE))","v":""},null,null,{"$f":"IF(X85=\"\",\"\",VLOOKUP(X85,ending_style[],2,FALSE))","v":""},null,null,null,{"$f":"IF(AB85=\"\",\"\",VLOOKUP(AB85,post_condition[],2,FALSE))","v":""},null,{"$f":"IF(AD85=\"\",\"\",VLOOKUP(AD85,post_material[],2,FALSE))","v":""},null,null,{"$f":"IF(AG85=\"\",\"\",VLOOKUP(AG85,extra_length_reason[],2,FALSE))","v":""},null,null,null,{"$f":"IF(AK85=\"\",\"\",VLOOKUP(AK85,side[],2,FALSE))","v":""},null,null,null,null,{"$f":"IF(AP85=\"\",\"\",VLOOKUP(AP85,install_reason[],2,FALSE))","v":""},null,{"$f":"IF(AR85=\"\",\"\",VLOOKUP(AR85,asset_owner[],2,FALSE))","v":""},null,{"$f":"IF(AT85=\"\",\"\",VLOOKUP(AT85,likelihood[],2,FALSE))","v":""},null,{"$f":"IF(AV85=\"\",\"\",VLOOKUP(AV85,consequence[],2,FALSE))","v":""},null,{"$f":"IF(AX85=\"\",\"\",VLOOKUP(AX85,risk[],2,FALSE))","v":""},null,{"$f":"IF(AZ85=\"\",\"\",VLOOKUP(AZ85,rul_reset[],2,FALSE))","v":""},null,{"$f":"IF(BB85=\"\",\"\",VLOOKUP(BB85,use_default[],2,FALSE))","v":""},null,{"$f":"IF(BD85=\"\",\"\",VLOOKUP(BD85,railing_condition[],2,FALSE))","v":""},null,null,{"$f":"IF(BG85=\"\",\"\",VLOOKUP(BG85,organisation[],2,FALSE))","v":""},null,null,null,null,{"$f":"IF(BL85=\"\",\"\",VLOOKUP(BL85,replace_reason[],2,FALSE))","v":""}]
["null","null",null,null,null,null,null,{"$f":"IF(G86=\"\",\"\",VLOOKUP(G86,type[],2,FALSE))","v":""},null,{"$f":"IF(I86=\"\",\"\",VLOOKUP(I86,material[],2,FALSE))","v":""},null,{"$f":"IF(K86=\"\",\"\",VLOOKUP(K86,make[],2,FALSE))","v":""},null,{"$f":"IF(M86=\"\",\"\",VLOOKUP(M86,shape[],2,FALSE))","v":""},null,{"$f":"IF(O86=\"\",\"\",VLOOKUP(O86,colour[],2,FALSE))","v":""},null,{"$f":"IF(Q86=\"\",\"\",VLOOKUP(Q86,attachment[],2,FALSE))","v":""},null,{"$f":"IF(S86=\"\",\"\",VLOOKUP(S86,ground_fix[],2,FALSE))","v":""},null,{"$f":"IF(U86=\"\",\"\",VLOOKUP(U86,starting_style[],2,FALSE))","v":""},null,null,{"$f":"IF(X86=\"\",\"\",VLOOKUP(X86,ending_style[],2,FALSE))","v":""},null,null,null,{"$f":"IF(AB86=\"\",\"\",VLOOKUP(AB86,post_condition[],2,FALSE))","v":""},null,{"$f":"IF(AD86=\"\",\"\",VLOOKUP(AD86,post_material[],2,FALSE))","v":""},null,null,{"$f":"IF(AG86=\"\",\"\",VLOOKUP(AG86,extra_length_reason[],2,FALSE))","v":""},null,null,null,{"$f":"IF(AK86=\"\",\"\",VLOOKUP(AK86,side[],2,FALSE))","v":""},null,null,null,null,{"$f":"IF(AP86=\"\",\"\",VLOOKUP(AP86,install_reason[],2,FALSE))","v":""},null,{"$f":"IF(AR86=\"\",\"\",VLOOKUP(AR86,asset_owner[],2,FALSE))","v":""},null,{"$f":"IF(AT86=\"\",\"\",VLOOKUP(AT86,likelihood[],2,FALSE))","v":""},null,{"$f":"IF(AV86=\"\",\"\",VLOOKUP(AV86,consequence[],2,FALSE))","v":""},null,{"$f":"IF(AX86=\"\",\"\",VLOOKUP(AX86,risk[],2,FALSE))","v":""},null,{"$f":"IF(AZ86=\"\",\"\",VLOOKUP(AZ86,rul_reset[],2,FALSE))","v":""},null,{"$f":"IF(BB86=\"\",\"\",VLOOKUP(BB86,use_default[],2,FALSE))","v":""},null,{"$f":"IF(BD86=\"\",\"\",VLOOKUP(BD86,railing_condition[],2,FALSE))","v":""},null,null,{"$f":"IF(BG86=\"\",\"\",VLOOKUP(BG86,organisation[],2,FALSE))","v":""},null,null,null,null,{"$f":"IF(BL86=\"\",\"\",VLOOKUP(BL86,replace_reason[],2,FALSE))","v":""}]
["null","null",null,null,null,null,null,{"$f":"IF(G87=\"\",\"\",VLOOKUP(G87,type[],2,FALSE))","v":""},null,{"$f":"IF(I87=\"\",\"\",VLOOKUP(I87,material[],2,FALSE))","v":""},null,{"$f":"IF(K87=\"\",\"\",VLOOKUP(K87,make[],2,FALSE))","v":""},null,{"$f":"IF(M87=\"\",\"\",VLOOKUP(M87,shape[],2,FALSE))","v":""},null,{"$f":"IF(O87=\"\",\"\",VLOOKUP(O87,colour[],2,FALSE))","v":""},null,{"$f":"IF(Q87=\"\",\"\",VLOOKUP(Q87,attachment[],2,FALSE))","v":""},null,{"$f":"IF(S87=\"\",\"\",VLOOKUP(S87,ground_fix[],2,FALSE))","v":""},null,{"$f":"IF(U87=\"\",\"\",VLOOKUP(U87,starting_style[],2,FALSE))","v":""},null,null,{"$f":"IF(X87=\"\",\"\",VLOOKUP(X87,ending_style[],2,FALSE))","v":""},null,null,null,{"$f":"IF(AB87=\"\",\"\",VLOOKUP(AB87,post_condition[],2,FALSE))","v":""},null,{"$f":"IF(AD87=\"\",\"\",VLOOKUP(AD87,post_material[],2,FALSE))","v":""},null,null,{"$f":"IF(AG87=\"\",\"\",VLOOKUP(AG87,extra_length_reason[],2,FALSE))","v":""},null,null,null,{"$f":"IF(AK87=\"\",\"\",VLOOKUP(AK87,side[],2,FALSE))","v":""},null,null,null,null,{"$f":"IF(AP87=\"\",\"\",VLOOKUP(AP87,install_reason[],2,FALSE))","v":""},null,{"$f":"IF(AR87=\"\",\"\",VLOOKUP(AR87,asset_owner[],2,FALSE))","v":""},null,{"$f":"IF(AT87=\"\",\"\",VLOOKUP(AT87,likelihood[],2,FALSE))","v":""},null,{"$f":"IF(AV87=\"\",\"\",VLOOKUP(AV87,consequence[],2,FALSE))","v":""},null,{"$f":"IF(AX87=\"\",\"\",VLOOKUP(AX87,risk[],2,FALSE))","v":""},null,{"$f":"IF(AZ87=\"\",\"\",VLOOKUP(AZ87,rul_reset[],2,FALSE))","v":""},null,{"$f":"IF(BB87=\"\",\"\",VLOOKUP(BB87,use_default[],2,FALSE))","v":""},null,{"$f":"IF(BD87=\"\",\"\",VLOOKUP(BD87,railing_condition[],2,FALSE))","v":""},null,null,{"$f":"IF(BG87=\"\",\"\",VLOOKUP(BG87,organisation[],2,FALSE))","v":""},null,null,null,null,{"$f":"IF(BL87=\"\",\"\",VLOOKUP(BL87,replace_reason[],2,FALSE))","v":""}]
["null","null",null,null,null,null,null,{"$f":"IF(G88=\"\",\"\",VLOOKUP(G88,type[],2,FALSE))","v":""},null,{"$f":"IF(I88=\"\",\"\",VLOOKUP(I88,material[],2,FALSE))","v":""},null,{"$f":"IF(K88=\"\",\"\",VLOOKUP(K88,make[],2,FALSE))","v":""},null,{"$f":"IF(M88=\"\",\"\",VLOOKUP(M88,shape[],2,FALSE))","v":""},null,{"$f":"IF(O88=\"\",\"\",VLOOKUP(O88,colour[],2,FALSE))","v":""},null,{"$f":"IF(Q88=\"\",\"\",VLOOKUP(Q88,attachment[],2,FALSE))","v":""},null,{"$f":"IF(S88=\"\",\"\",VLOOKUP(S88,ground_fix[],2,FALSE))","v":""},null,{"$f":"IF(U88=\"\",\"\",VLOOKUP(U88,starting_style[],2,FALSE))","v":""},null,null,{"$f":"IF(X88=\"\",\"\",VLOOKUP(X88,ending_style[],2,FALSE))","v":""},null,null,null,{"$f":"IF(AB88=\"\",\"\",VLOOKUP(AB88,post_condition[],2,FALSE))","v":""},null,{"$f":"IF(AD88=\"\",\"\",VLOOKUP(AD88,post_material[],2,FALSE))","v":""},null,null,{"$f":"IF(AG88=\"\",\"\",VLOOKUP(AG88,extra_length_reason[],2,FALSE))","v":""},null,null,null,{"$f":"IF(AK88=\"\",\"\",VLOOKUP(AK88,side[],2,FALSE))","v":""},null,null,null,null,{"$f":"IF(AP88=\"\",\"\",VLOOKUP(AP88,install_reason[],2,FALSE))","v":""},null,{"$f":"IF(AR88=\"\",\"\",VLOOKUP(AR88,asset_owner[],2,FALSE))","v":""},null,{"$f":"IF(AT88=\"\",\"\",VLOOKUP(AT88,likelihood[],2,FALSE))","v":""},null,{"$f":"IF(AV88=\"\",\"\",VLOOKUP(AV88,consequence[],2,FALSE))","v":""},null,{"$f":"IF(AX88=\"\",\"\",VLOOKUP(AX88,risk[],2,FALSE))","v":""},null,{"$f":"IF(AZ88=\"\",\"\",VLOOKUP(AZ88,rul_reset[],2,FALSE))","v":""},null,{"$f":"IF(BB88=\"\",\"\",VLOOKUP(BB88,use_default[],2,FALSE))","v":""},null,{"$f":"IF(BD88=\"\",\"\",VLOOKUP(BD88,railing_condition[],2,FALSE))","v":""},null,null,{"$f":"IF(BG88=\"\",\"\",VLOOKUP(BG88,organisation[],2,FALSE))","v":""},null,null,null,null,{"$f":"IF(BL88=\"\",\"\",VLOOKUP(BL88,replace_reason[],2,FALSE))","v":""}]
["null","null",null,null,null,null,null,{"$f":"IF(G89=\"\",\"\",VLOOKUP(G89,type[],2,FALSE))","v":""},null,{"$f":"IF(I89=\"\",\"\",VLOOKUP(I89,material[],2,FALSE))","v":""},null,{"$f":"IF(K89=\"\",\"\",VLOOKUP(K89,make[],2,FALSE))","v":""},null,{"$f":"IF(M89=\"\",\"\",VLOOKUP(M89,shape[],2,FALSE))","v":""},null,{"$f":"IF(O89=\"\",\"\",VLOOKUP(O89,colour[],2,FALSE))","v":""},null,{"$f":"IF(Q89=\"\",\"\",VLOOKUP(Q89,attachment[],2,FALSE))","v":""},null,{"$f":"IF(S89=\"\",\"\",VLOOKUP(S89,ground_fix[],2,FALSE))","v":""},null,{"$f":"IF(U89=\"\",\"\",VLOOKUP(U89,starting_style[],2,FALSE))","v":""},null,null,{"$f":"IF(X89=\"\",\"\",VLOOKUP(X89,ending_style[],2,FALSE))","v":""},null,null,null,{"$f":"IF(AB89=\"\",\"\",VLOOKUP(AB89,post_condition[],2,FALSE))","v":""},null,{"$f":"IF(AD89=\"\",\"\",VLOOKUP(AD89,post_material[],2,FALSE))","v":""},null,null,{"$f":"IF(AG89=\"\",\"\",VLOOKUP(AG89,extra_length_reason[],2,FALSE))","v":""},null,null,null,{"$f":"IF(AK89=\"\",\"\",VLOOKUP(AK89,side[],2,FALSE))","v":""},null,null,null,null,{"$f":"IF(AP89=\"\",\"\",VLOOKUP(AP89,install_reason[],2,FALSE))","v":""},null,{"$f":"IF(AR89=\"\",\"\",VLOOKUP(AR89,asset_owner[],2,FALSE))","v":""},null,{"$f":"IF(AT89=\"\",\"\",VLOOKUP(AT89,likelihood[],2,FALSE))","v":""},null,{"$f":"IF(AV89=\"\",\"\",VLOOKUP(AV89,consequence[],2,FALSE))","v":""},null,{"$f":"IF(AX89=\"\",\"\",VLOOKUP(AX89,risk[],2,FALSE))","v":""},null,{"$f":"IF(AZ89=\"\",\"\",VLOOKUP(AZ89,rul_reset[],2,FALSE))","v":""},null,{"$f":"IF(BB89=\"\",\"\",VLOOKUP(BB89,use_default[],2,FALSE))","v":""},null,{"$f":"IF(BD89=\"\",\"\",VLOOKUP(BD89,railing_condition[],2,FALSE))","v":""},null,null,{"$f":"IF(BG89=\"\",\"\",VLOOKUP(BG89,organisation[],2,FALSE))","v":""},null,null,null,null,{"$f":"IF(BL89=\"\",\"\",VLOOKUP(BL89,replace_reason[],2,FALSE))","v":""}]
["null","null",null,null,null,null,null,{"$f":"IF(G90=\"\",\"\",VLOOKUP(G90,type[],2,FALSE))","v":""},null,{"$f":"IF(I90=\"\",\"\",VLOOKUP(I90,material[],2,FALSE))","v":""},null,{"$f":"IF(K90=\"\",\"\",VLOOKUP(K90,make[],2,FALSE))","v":""},null,{"$f":"IF(M90=\"\",\"\",VLOOKUP(M90,shape[],2,FALSE))","v":""},null,{"$f":"IF(O90=\"\",\"\",VLOOKUP(O90,colour[],2,FALSE))","v":""},null,{"$f":"IF(Q90=\"\",\"\",VLOOKUP(Q90,attachment[],2,FALSE))","v":""},null,{"$f":"IF(S90=\"\",\"\",VLOOKUP(S90,ground_fix[],2,FALSE))","v":""},null,{"$f":"IF(U90=\"\",\"\",VLOOKUP(U90,starting_style[],2,FALSE))","v":""},null,null,{"$f":"IF(X90=\"\",\"\",VLOOKUP(X90,ending_style[],2,FALSE))","v":""},null,null,null,{"$f":"IF(AB90=\"\",\"\",VLOOKUP(AB90,post_condition[],2,FALSE))","v":""},null,{"$f":"IF(AD90=\"\",\"\",VLOOKUP(AD90,post_material[],2,FALSE))","v":""},null,null,{"$f":"IF(AG90=\"\",\"\",VLOOKUP(AG90,extra_length_reason[],2,FALSE))","v":""},null,null,null,{"$f":"IF(AK90=\"\",\"\",VLOOKUP(AK90,side[],2,FALSE))","v":""},null,null,null,null,{"$f":"IF(AP90=\"\",\"\",VLOOKUP(AP90,install_reason[],2,FALSE))","v":""},null,{"$f":"IF(AR90=\"\",\"\",VLOOKUP(AR90,asset_owner[],2,FALSE))","v":""},null,{"$f":"IF(AT90=\"\",\"\",VLOOKUP(AT90,likelihood[],2,FALSE))","v":""},null,{"$f":"IF(AV90=\"\",\"\",VLOOKUP(AV90,consequence[],2,FALSE))","v":""},null,{"$f":"IF(AX90=\"\",\"\",VLOOKUP(AX90,risk[],2,FALSE))","v":""},null,{"$f":"IF(AZ90=\"\",\"\",VLOOKUP(AZ90,rul_reset[],2,FALSE))","v":""},null,{"$f":"IF(BB90=\"\",\"\",VLOOKUP(BB90,use_default[],2,FALSE))","v":""},null,{"$f":"IF(BD90=\"\",\"\",VLOOKUP(BD90,railing_condition[],2,FALSE))","v":""},null,null,{"$f":"IF(BG90=\"\",\"\",VLOOKUP(BG90,organisation[],2,FALSE))","v":""},null,null,null,null,{"$f":"IF(BL90=\"\",\"\",VLOOKUP(BL90,replace_reason[],2,FALSE))","v":""}]
["null","null",null,null,null,null,null,{"$f":"IF(G91=\"\",\"\",VLOOKUP(G91,type[],2,FALSE))","v":""},null,{"$f":"IF(I91=\"\",\"\",VLOOKUP(I91,material[],2,FALSE))","v":""},null,{"$f":"IF(K91=\"\",\"\",VLOOKUP(K91,make[],2,FALSE))","v":""},null,{"$f":"IF(M91=\"\",\"\",VLOOKUP(M91,shape[],2,FALSE))","v":""},null,{"$f":"IF(O91=\"\",\"\",VLOOKUP(O91,colour[],2,FALSE))","v":""},null,{"$f":"IF(Q91=\"\",\"\",VLOOKUP(Q91,attachment[],2,FALSE))","v":""},null,{"$f":"IF(S91=\"\",\"\",VLOOKUP(S91,ground_fix[],2,FALSE))","v":""},null,{"$f":"IF(U91=\"\",\"\",VLOOKUP(U91,starting_style[],2,FALSE))","v":""},null,null,{"$f":"IF(X91=\"\",\"\",VLOOKUP(X91,ending_style[],2,FALSE))","v":""},null,null,null,{"$f":"IF(AB91=\"\",\"\",VLOOKUP(AB91,post_condition[],2,FALSE))","v":""},null,{"$f":"IF(AD91=\"\",\"\",VLOOKUP(AD91,post_material[],2,FALSE))","v":""},null,null,{"$f":"IF(AG91=\"\",\"\",VLOOKUP(AG91,extra_length_reason[],2,FALSE))","v":""},null,null,null,{"$f":"IF(AK91=\"\",\"\",VLOOKUP(AK91,side[],2,FALSE))","v":""},null,null,null,null,{"$f":"IF(AP91=\"\",\"\",VLOOKUP(AP91,install_reason[],2,FALSE))","v":""},null,{"$f":"IF(AR91=\"\",\"\",VLOOKUP(AR91,asset_owner[],2,FALSE))","v":""},null,{"$f":"IF(AT91=\"\",\"\",VLOOKUP(AT91,likelihood[],2,FALSE))","v":""},null,{"$f":"IF(AV91=\"\",\"\",VLOOKUP(AV91,consequence[],2,FALSE))","v":""},null,{"$f":"IF(AX91=\"\",\"\",VLOOKUP(AX91,risk[],2,FALSE))","v":""},null,{"$f":"IF(AZ91=\"\",\"\",VLOOKUP(AZ91,rul_reset[],2,FALSE))","v":""},null,{"$f":"IF(BB91=\"\",\"\",VLOOKUP(BB91,use_default[],2,FALSE))","v":""},null,{"$f":"IF(BD91=\"\",\"\",VLOOKUP(BD91,railing_condition[],2,FALSE))","v":""},null,null,{"$f":"IF(BG91=\"\",\"\",VLOOKUP(BG91,organisation[],2,FALSE))","v":""},null,null,null,null,{"$f":"IF(BL91=\"\",\"\",VLOOKUP(BL91,replace_reason[],2,FALSE))","v":""}]
["null","null",null,null,null,null,null,{"$f":"IF(G92=\"\",\"\",VLOOKUP(G92,type[],2,FALSE))","v":""},null,{"$f":"IF(I92=\"\",\"\",VLOOKUP(I92,material[],2,FALSE))","v":""},null,{"$f":"IF(K92=\"\",\"\",VLOOKUP(K92,make[],2,FALSE))","v":""},null,{"$f":"IF(M92=\"\",\"\",VLOOKUP(M92,shape[],2,FALSE))","v":""},null,{"$f":"IF(O92=\"\",\"\",VLOOKUP(O92,colour[],2,FALSE))","v":""},null,{"$f":"IF(Q92=\"\",\"\",VLOOKUP(Q92,attachment[],2,FALSE))","v":""},null,{"$f":"IF(S92=\"\",\"\",VLOOKUP(S92,ground_fix[],2,FALSE))","v":""},null,{"$f":"IF(U92=\"\",\"\",VLOOKUP(U92,starting_style[],2,FALSE))","v":""},null,null,{"$f":"IF(X92=\"\",\"\",VLOOKUP(X92,ending_style[],2,FALSE))","v":""},null,null,null,{"$f":"IF(AB92=\"\",\"\",VLOOKUP(AB92,post_condition[],2,FALSE))","v":""},null,{"$f":"IF(AD92=\"\",\"\",VLOOKUP(AD92,post_material[],2,FALSE))","v":""},null,null,{"$f":"IF(AG92=\"\",\"\",VLOOKUP(AG92,extra_length_reason[],2,FALSE))","v":""},null,null,null,{"$f":"IF(AK92=\"\",\"\",VLOOKUP(AK92,side[],2,FALSE))","v":""},null,null,null,null,{"$f":"IF(AP92=\"\",\"\",VLOOKUP(AP92,install_reason[],2,FALSE))","v":""},null,{"$f":"IF(AR92=\"\",\"\",VLOOKUP(AR92,asset_owner[],2,FALSE))","v":""},null,{"$f":"IF(AT92=\"\",\"\",VLOOKUP(AT92,likelihood[],2,FALSE))","v":""},null,{"$f":"IF(AV92=\"\",\"\",VLOOKUP(AV92,consequence[],2,FALSE))","v":""},null,{"$f":"IF(AX92=\"\",\"\",VLOOKUP(AX92,risk[],2,FALSE))","v":""},null,{"$f":"IF(AZ92=\"\",\"\",VLOOKUP(AZ92,rul_reset[],2,FALSE))","v":""},null,{"$f":"IF(BB92=\"\",\"\",VLOOKUP(BB92,use_default[],2,FALSE))","v":""},null,{"$f":"IF(BD92=\"\",\"\",VLOOKUP(BD92,railing_condition[],2,FALSE))","v":""},null,null,{"$f":"IF(BG92=\"\",\"\",VLOOKUP(BG92,organisation[],2,FALSE))","v":""},null,null,null,null,{"$f":"IF(BL92=\"\",\"\",VLOOKUP(BL92,replace_reason[],2,FALSE))","v":""}]
["null","null",null,null,null,null,null,{"$f":"IF(G93=\"\",\"\",VLOOKUP(G93,type[],2,FALSE))","v":""},null,{"$f":"IF(I93=\"\",\"\",VLOOKUP(I93,material[],2,FALSE))","v":""},null,{"$f":"IF(K93=\"\",\"\",VLOOKUP(K93,make[],2,FALSE))","v":""},null,{"$f":"IF(M93=\"\",\"\",VLOOKUP(M93,shape[],2,FALSE))","v":""},null,{"$f":"IF(O93=\"\",\"\",VLOOKUP(O93,colour[],2,FALSE))","v":""},null,{"$f":"IF(Q93=\"\",\"\",VLOOKUP(Q93,attachment[],2,FALSE))","v":""},null,{"$f":"IF(S93=\"\",\"\",VLOOKUP(S93,ground_fix[],2,FALSE))","v":""},null,{"$f":"IF(U93=\"\",\"\",VLOOKUP(U93,starting_style[],2,FALSE))","v":""},null,null,{"$f":"IF(X93=\"\",\"\",VLOOKUP(X93,ending_style[],2,FALSE))","v":""},null,null,null,{"$f":"IF(AB93=\"\",\"\",VLOOKUP(AB93,post_condition[],2,FALSE))","v":""},null,{"$f":"IF(AD93=\"\",\"\",VLOOKUP(AD93,post_material[],2,FALSE))","v":""},null,null,{"$f":"IF(AG93=\"\",\"\",VLOOKUP(AG93,extra_length_reason[],2,FALSE))","v":""},null,null,null,{"$f":"IF(AK93=\"\",\"\",VLOOKUP(AK93,side[],2,FALSE))","v":""},null,null,null,null,{"$f":"IF(AP93=\"\",\"\",VLOOKUP(AP93,install_reason[],2,FALSE))","v":""},null,{"$f":"IF(AR93=\"\",\"\",VLOOKUP(AR93,asset_owner[],2,FALSE))","v":""},null,{"$f":"IF(AT93=\"\",\"\",VLOOKUP(AT93,likelihood[],2,FALSE))","v":""},null,{"$f":"IF(AV93=\"\",\"\",VLOOKUP(AV93,consequence[],2,FALSE))","v":""},null,{"$f":"IF(AX93=\"\",\"\",VLOOKUP(AX93,risk[],2,FALSE))","v":""},null,{"$f":"IF(AZ93=\"\",\"\",VLOOKUP(AZ93,rul_reset[],2,FALSE))","v":""},null,{"$f":"IF(BB93=\"\",\"\",VLOOKUP(BB93,use_default[],2,FALSE))","v":""},null,{"$f":"IF(BD93=\"\",\"\",VLOOKUP(BD93,railing_condition[],2,FALSE))","v":""},null,null,{"$f":"IF(BG93=\"\",\"\",VLOOKUP(BG93,organisation[],2,FALSE))","v":""},null,null,null,null,{"$f":"IF(BL93=\"\",\"\",VLOOKUP(BL93,replace_reason[],2,FALSE))","v":""}]
["null","null",null,null,null,null,null,{"$f":"IF(G94=\"\",\"\",VLOOKUP(G94,type[],2,FALSE))","v":""},null,{"$f":"IF(I94=\"\",\"\",VLOOKUP(I94,material[],2,FALSE))","v":""},null,{"$f":"IF(K94=\"\",\"\",VLOOKUP(K94,make[],2,FALSE))","v":""},null,{"$f":"IF(M94=\"\",\"\",VLOOKUP(M94,shape[],2,FALSE))","v":""},null,{"$f":"IF(O94=\"\",\"\",VLOOKUP(O94,colour[],2,FALSE))","v":""},null,{"$f":"IF(Q94=\"\",\"\",VLOOKUP(Q94,attachment[],2,FALSE))","v":""},null,{"$f":"IF(S94=\"\",\"\",VLOOKUP(S94,ground_fix[],2,FALSE))","v":""},null,{"$f":"IF(U94=\"\",\"\",VLOOKUP(U94,starting_style[],2,FALSE))","v":""},null,null,{"$f":"IF(X94=\"\",\"\",VLOOKUP(X94,ending_style[],2,FALSE))","v":""},null,null,null,{"$f":"IF(AB94=\"\",\"\",VLOOKUP(AB94,post_condition[],2,FALSE))","v":""},null,{"$f":"IF(AD94=\"\",\"\",VLOOKUP(AD94,post_material[],2,FALSE))","v":""},null,null,{"$f":"IF(AG94=\"\",\"\",VLOOKUP(AG94,extra_length_reason[],2,FALSE))","v":""},null,null,null,{"$f":"IF(AK94=\"\",\"\",VLOOKUP(AK94,side[],2,FALSE))","v":""},null,null,null,null,{"$f":"IF(AP94=\"\",\"\",VLOOKUP(AP94,install_reason[],2,FALSE))","v":""},null,{"$f":"IF(AR94=\"\",\"\",VLOOKUP(AR94,asset_owner[],2,FALSE))","v":""},null,{"$f":"IF(AT94=\"\",\"\",VLOOKUP(AT94,likelihood[],2,FALSE))","v":""},null,{"$f":"IF(AV94=\"\",\"\",VLOOKUP(AV94,consequence[],2,FALSE))","v":""},null,{"$f":"IF(AX94=\"\",\"\",VLOOKUP(AX94,risk[],2,FALSE))","v":""},null,{"$f":"IF(AZ94=\"\",\"\",VLOOKUP(AZ94,rul_reset[],2,FALSE))","v":""},null,{"$f":"IF(BB94=\"\",\"\",VLOOKUP(BB94,use_default[],2,FALSE))","v":""},null,{"$f":"IF(BD94=\"\",\"\",VLOOKUP(BD94,railing_condition[],2,FALSE))","v":""},null,null,{"$f":"IF(BG94=\"\",\"\",VLOOKUP(BG94,organisation[],2,FALSE))","v":""},null,null,null,null,{"$f":"IF(BL94=\"\",\"\",VLOOKUP(BL94,replace_reason[],2,FALSE))","v":""}]
["null","null",null,null,null,null,null,{"$f":"IF(G95=\"\",\"\",VLOOKUP(G95,type[],2,FALSE))","v":""},null,{"$f":"IF(I95=\"\",\"\",VLOOKUP(I95,material[],2,FALSE))","v":""},null,{"$f":"IF(K95=\"\",\"\",VLOOKUP(K95,make[],2,FALSE))","v":""},null,{"$f":"IF(M95=\"\",\"\",VLOOKUP(M95,shape[],2,FALSE))","v":""},null,{"$f":"IF(O95=\"\",\"\",VLOOKUP(O95,colour[],2,FALSE))","v":""},null,{"$f":"IF(Q95=\"\",\"\",VLOOKUP(Q95,attachment[],2,FALSE))","v":""},null,{"$f":"IF(S95=\"\",\"\",VLOOKUP(S95,ground_fix[],2,FALSE))","v":""},null,{"$f":"IF(U95=\"\",\"\",VLOOKUP(U95,starting_style[],2,FALSE))","v":""},null,null,{"$f":"IF(X95=\"\",\"\",VLOOKUP(X95,ending_style[],2,FALSE))","v":""},null,null,null,{"$f":"IF(AB95=\"\",\"\",VLOOKUP(AB95,post_condition[],2,FALSE))","v":""},null,{"$f":"IF(AD95=\"\",\"\",VLOOKUP(AD95,post_material[],2,FALSE))","v":""},null,null,{"$f":"IF(AG95=\"\",\"\",VLOOKUP(AG95,extra_length_reason[],2,FALSE))","v":""},null,null,null,{"$f":"IF(AK95=\"\",\"\",VLOOKUP(AK95,side[],2,FALSE))","v":""},null,null,null,null,{"$f":"IF(AP95=\"\",\"\",VLOOKUP(AP95,install_reason[],2,FALSE))","v":""},null,{"$f":"IF(AR95=\"\",\"\",VLOOKUP(AR95,asset_owner[],2,FALSE))","v":""},null,{"$f":"IF(AT95=\"\",\"\",VLOOKUP(AT95,likelihood[],2,FALSE))","v":""},null,{"$f":"IF(AV95=\"\",\"\",VLOOKUP(AV95,consequence[],2,FALSE))","v":""},null,{"$f":"IF(AX95=\"\",\"\",VLOOKUP(AX95,risk[],2,FALSE))","v":""},null,{"$f":"IF(AZ95=\"\",\"\",VLOOKUP(AZ95,rul_reset[],2,FALSE))","v":""},null,{"$f":"IF(BB95=\"\",\"\",VLOOKUP(BB95,use_default[],2,FALSE))","v":""},null,{"$f":"IF(BD95=\"\",\"\",VLOOKUP(BD95,railing_condition[],2,FALSE))","v":""},null,null,{"$f":"IF(BG95=\"\",\"\",VLOOKUP(BG95,organisation[],2,FALSE))","v":""},null,null,null,null,{"$f":"IF(BL95=\"\",\"\",VLOOKUP(BL95,replace_reason[],2,FALSE))","v":""}]
["null","null",null,null,null,null,null,{"$f":"IF(G96=\"\",\"\",VLOOKUP(G96,type[],2,FALSE))","v":""},null,{"$f":"IF(I96=\"\",\"\",VLOOKUP(I96,material[],2,FALSE))","v":""},null,{"$f":"IF(K96=\"\",\"\",VLOOKUP(K96,make[],2,FALSE))","v":""},null,{"$f":"IF(M96=\"\",\"\",VLOOKUP(M96,shape[],2,FALSE))","v":""},null,{"$f":"IF(O96=\"\",\"\",VLOOKUP(O96,colour[],2,FALSE))","v":""},null,{"$f":"IF(Q96=\"\",\"\",VLOOKUP(Q96,attachment[],2,FALSE))","v":""},null,{"$f":"IF(S96=\"\",\"\",VLOOKUP(S96,ground_fix[],2,FALSE))","v":""},null,{"$f":"IF(U96=\"\",\"\",VLOOKUP(U96,starting_style[],2,FALSE))","v":""},null,null,{"$f":"IF(X96=\"\",\"\",VLOOKUP(X96,ending_style[],2,FALSE))","v":""},null,null,null,{"$f":"IF(AB96=\"\",\"\",VLOOKUP(AB96,post_condition[],2,FALSE))","v":""},null,{"$f":"IF(AD96=\"\",\"\",VLOOKUP(AD96,post_material[],2,FALSE))","v":""},null,null,{"$f":"IF(AG96=\"\",\"\",VLOOKUP(AG96,extra_length_reason[],2,FALSE))","v":""},null,null,null,{"$f":"IF(AK96=\"\",\"\",VLOOKUP(AK96,side[],2,FALSE))","v":""},null,null,null,null,{"$f":"IF(AP96=\"\",\"\",VLOOKUP(AP96,install_reason[],2,FALSE))","v":""},null,{"$f":"IF(AR96=\"\",\"\",VLOOKUP(AR96,asset_owner[],2,FALSE))","v":""},null,{"$f":"IF(AT96=\"\",\"\",VLOOKUP(AT96,likelihood[],2,FALSE))","v":""},null,{"$f":"IF(AV96=\"\",\"\",VLOOKUP(AV96,consequence[],2,FALSE))","v":""},null,{"$f":"IF(AX96=\"\",\"\",VLOOKUP(AX96,risk[],2,FALSE))","v":""},null,{"$f":"IF(AZ96=\"\",\"\",VLOOKUP(AZ96,rul_reset[],2,FALSE))","v":""},null,{"$f":"IF(BB96=\"\",\"\",VLOOKUP(BB96,use_default[],2,FALSE))","v":""},null,{"$f":"IF(BD96=\"\",\"\",VLOOKUP(BD96,railing_condition[],2,FALSE))","v":""},null,null,{"$f":"IF(BG96=\"\",\"\",VLOOKUP(BG96,organisation[],2,FALSE))","v":""},null,null,null,null,{"$f":"IF(BL96=\"\",\"\",VLOOKUP(BL96,replace_reason[],2,FALSE))","v":""}]
["null","null",null,null,null,null,null,{"$f":"IF(G97=\"\",\"\",VLOOKUP(G97,type[],2,FALSE))","v":""},null,{"$f":"IF(I97=\"\",\"\",VLOOKUP(I97,material[],2,FALSE))","v":""},null,{"$f":"IF(K97=\"\",\"\",VLOOKUP(K97,make[],2,FALSE))","v":""},null,{"$f":"IF(M97=\"\",\"\",VLOOKUP(M97,shape[],2,FALSE))","v":""},null,{"$f":"IF(O97=\"\",\"\",VLOOKUP(O97,colour[],2,FALSE))","v":""},null,{"$f":"IF(Q97=\"\",\"\",VLOOKUP(Q97,attachment[],2,FALSE))","v":""},null,{"$f":"IF(S97=\"\",\"\",VLOOKUP(S97,ground_fix[],2,FALSE))","v":""},null,{"$f":"IF(U97=\"\",\"\",VLOOKUP(U97,starting_style[],2,FALSE))","v":""},null,null,{"$f":"IF(X97=\"\",\"\",VLOOKUP(X97,ending_style[],2,FALSE))","v":""},null,null,null,{"$f":"IF(AB97=\"\",\"\",VLOOKUP(AB97,post_condition[],2,FALSE))","v":""},null,{"$f":"IF(AD97=\"\",\"\",VLOOKUP(AD97,post_material[],2,FALSE))","v":""},null,null,{"$f":"IF(AG97=\"\",\"\",VLOOKUP(AG97,extra_length_reason[],2,FALSE))","v":""},null,null,null,{"$f":"IF(AK97=\"\",\"\",VLOOKUP(AK97,side[],2,FALSE))","v":""},null,null,null,null,{"$f":"IF(AP97=\"\",\"\",VLOOKUP(AP97,install_reason[],2,FALSE))","v":""},null,{"$f":"IF(AR97=\"\",\"\",VLOOKUP(AR97,asset_owner[],2,FALSE))","v":""},null,{"$f":"IF(AT97=\"\",\"\",VLOOKUP(AT97,likelihood[],2,FALSE))","v":""},null,{"$f":"IF(AV97=\"\",\"\",VLOOKUP(AV97,consequence[],2,FALSE))","v":""},null,{"$f":"IF(AX97=\"\",\"\",VLOOKUP(AX97,risk[],2,FALSE))","v":""},null,{"$f":"IF(AZ97=\"\",\"\",VLOOKUP(AZ97,rul_reset[],2,FALSE))","v":""},null,{"$f":"IF(BB97=\"\",\"\",VLOOKUP(BB97,use_default[],2,FALSE))","v":""},null,{"$f":"IF(BD97=\"\",\"\",VLOOKUP(BD97,railing_condition[],2,FALSE))","v":""},null,null,{"$f":"IF(BG97=\"\",\"\",VLOOKUP(BG97,organisation[],2,FALSE))","v":""},null,null,null,null,{"$f":"IF(BL97=\"\",\"\",VLOOKUP(BL97,replace_reason[],2,FALSE))","v":""}]
["null","null",null,null,null,null,null,{"$f":"IF(G98=\"\",\"\",VLOOKUP(G98,type[],2,FALSE))","v":""},null,{"$f":"IF(I98=\"\",\"\",VLOOKUP(I98,material[],2,FALSE))","v":""},null,{"$f":"IF(K98=\"\",\"\",VLOOKUP(K98,make[],2,FALSE))","v":""},null,{"$f":"IF(M98=\"\",\"\",VLOOKUP(M98,shape[],2,FALSE))","v":""},null,{"$f":"IF(O98=\"\",\"\",VLOOKUP(O98,colour[],2,FALSE))","v":""},null,{"$f":"IF(Q98=\"\",\"\",VLOOKUP(Q98,attachment[],2,FALSE))","v":""},null,{"$f":"IF(S98=\"\",\"\",VLOOKUP(S98,ground_fix[],2,FALSE))","v":""},null,{"$f":"IF(U98=\"\",\"\",VLOOKUP(U98,starting_style[],2,FALSE))","v":""},null,null,{"$f":"IF(X98=\"\",\"\",VLOOKUP(X98,ending_style[],2,FALSE))","v":""},null,null,null,{"$f":"IF(AB98=\"\",\"\",VLOOKUP(AB98,post_condition[],2,FALSE))","v":""},null,{"$f":"IF(AD98=\"\",\"\",VLOOKUP(AD98,post_material[],2,FALSE))","v":""},null,null,{"$f":"IF(AG98=\"\",\"\",VLOOKUP(AG98,extra_length_reason[],2,FALSE))","v":""},null,null,null,{"$f":"IF(AK98=\"\",\"\",VLOOKUP(AK98,side[],2,FALSE))","v":""},null,null,null,null,{"$f":"IF(AP98=\"\",\"\",VLOOKUP(AP98,install_reason[],2,FALSE))","v":""},null,{"$f":"IF(AR98=\"\",\"\",VLOOKUP(AR98,asset_owner[],2,FALSE))","v":""},null,{"$f":"IF(AT98=\"\",\"\",VLOOKUP(AT98,likelihood[],2,FALSE))","v":""},null,{"$f":"IF(AV98=\"\",\"\",VLOOKUP(AV98,consequence[],2,FALSE))","v":""},null,{"$f":"IF(AX98=\"\",\"\",VLOOKUP(AX98,risk[],2,FALSE))","v":""},null,{"$f":"IF(AZ98=\"\",\"\",VLOOKUP(AZ98,rul_reset[],2,FALSE))","v":""},null,{"$f":"IF(BB98=\"\",\"\",VLOOKUP(BB98,use_default[],2,FALSE))","v":""},null,{"$f":"IF(BD98=\"\",\"\",VLOOKUP(BD98,railing_condition[],2,FALSE))","v":""},null,null,{"$f":"IF(BG98=\"\",\"\",VLOOKUP(BG98,organisation[],2,FALSE))","v":""},null,null,null,null,{"$f":"IF(BL98=\"\",\"\",VLOOKUP(BL98,replace_reason[],2,FALSE))","v":""}]

{"sheet":"Lookups","index":1,"n_rows":151,"n_cols":68,"rows_kept":151,"cut":false,"hidden":false,"merged":[]}
["railing type description","railing type",null,"railing material description","railing material",null,"railing make description","railing make",null,"shape description","shape",null,"railing colour description","railing colour",null,"railing attachment description","railing attachment",null,"railing ground fix description","railing ground fix",null,"starting style description","starting style",null,"ending style description","ending style",null,"post material description","post material",null,"post condition description","post condition",null,"extra length reason description","extra length reason",null,"side description","side",null,"install reason description","install reason",null,"asset owner description","asset owner",null,"replace reason description","replace reason",null,"likelihood description","likelihood",null,"risk description","risk",null,"consequence description","consequence",null,"rul reset description","rul reset",null,"use default description","use default",null,"railing condition description","railing condition",null,"organisation description","organisation"]
["Cable Barrier","CABLE",null,"ARMCO","ARMCO",null,"Armorflex","ARM",null,"Curved","C",null,"Unpainted","UP",null,"Not Applicable","NA",null,"Brifen Concreted Steel Post","BRIP",null,"Armorwire Terminal End","ATE",null,"Armorwire Terminal End","ATE",null,"ARMCO","ARMCO",null,"Excellent","1",null,"Ends away from the road","AWAY",null,"Centre","C",null,"Asset Renewal - end of life","01",null,"Crown","C",null,"Asset Renewal - end of life","01",null,"Rare","1",null,"Very Low","1",null,"Insignificant","1",null,"Not Reset","N",null,"Default","D",null,"Excellent","1",null,"3M","3M"]
["Continuous Motorcyclist Protection System","CMPR",null,"Steel Composite","COMP",null,"Brifen","BRF",null,"S Bend","S",null,"White","WH",null,"Reflectorised Disks","RD",null,"Ezy-Guard Z-Posts","EZYG",null,"Breakaway Cable Terminal Unit","BCT",null,"Breakaway Cable Terminal Unit","BCT",null,"Steel Composite","COMP",null,"Good","2",null,"Ends beyond Road End","BYOND",null,"End","E",null,"Crash Damage","02",null,"Local Authority","L",null,"Crash Damage","02",null,"Unlikely","2",null,"Low","2",null,"Minor","2",null,"Reset to Zero","R",null,"User","U",null,"Good","2",null,"Automobile Association","AA"]
["Discontinuous Motorcyclist Protection Systems","DMPS",null,"Concrete","CON",null,"CSP Pacific","CSP",null,"Straight","T",null,null,null,null,null,null,null,"Ground Plant","GP",null,"Buried in Back Slope","BIBS",null,"Buried in Back Slope","BIBS",null,"Concrete","CON",null,"Average","3",null,"Common Section","COM",null,"Left","L",null,"Crash reduction study","03",null,"Private","P",null,"Crash reduction study","03",null,"Possible","3",null,"Medium","3",null,"Moderate","3",null,null,null,null,null,null,null,"Average","3",null,"Auckland Council","ACC"]
["F-Type Concrete","FTYPE",null,"Steel Drum","DRUM",null,"Ingal Civil","IGL",null,null,null,null,null,null,null,null,null,null,"Not Applicable","NA",null,"Breakaway Cable Terminal (Bull Nose)","BN",null,"Breakaway Cable Terminal (Bull Nose)","BN",null,"Steel Drum","DRUM",null,"Poor","4",null,"Cul de sac","CUL",null,"Right","R",null,"Non - compliant","04",null,null,null,null,"Non - compliant","04",null,"Likely","4",null,"High","4",null,"Major","4",null,null,null,null,null,null,null,"Poor","4",null,"Alarm Centre Installation Ltd","ACI"]
["Guard Rail","GR",null,"Earth","EARTH",null,"Public Domain","PUB",null,null,null,null,null,null,null,null,null,null,"NUCOR (Steel)","NUC",null,"Bridge Plate/Bridge Connector","BP",null,"Bridge Plate/Bridge Connector","BP",null,"Earth","EARTH",null,"Very poor","5",null,"Dummy of No Length","DUMMY",null,null,null,null,"Projects","05",null,null,null,null,"Projects","05",null,"Almost Certain","5",null,"Extreme","5",null,"Extreme","5",null,null,null,null,null,null,null,"Very poor","5",null,"Agfirst","AGF"]
["Hand Rail","HR",null,"Galvanised Steel","GALV",null,"Safence","SAF",null,null,null,null,null,null,null,null,null,null,"Safence Concreted Steel Post","SAFP",null,"Brifen Terminal","BR",null,"Brifen Terminal","BR",null,"Galvanised Steel","GALV",null,null,null,null,"Starts or Ends at an Intersection","ISECT",null,null,null,null,null,null,null,null,null,null,null,null,null,"Unknown","U",null,"Unknown","U",null,"Unknown","U",null,null,null,null,null,null,null,null,null,null,"Auckland Motorway Alliance","AMA"]
["New Jersey Barrier","NJ",null,"Galvanised Rails/Timber Posts","GT",null,"Steelgal","STEEL",null,null,null,null,null,null,null,null,null,null,"Steel Driven Post","SDM",null,"Cable Safety System - CSP","CASS",null,"Cable Safety System - CSP","CASS",null,"Galvanised Rails/Timber Posts","GT",null,null,null,null,"No adjustments made","NONE",null,null,null,null,null,null,null,null,null,null,null,null,null,null,null,null,null,null,null,null,null,null,null,null,null,null,null,null,null,null,null,"Asset Management Engineers Ltd","AME"]
["Steel Medium Barrier - IBC","SIBC",null,"Steel Wire Mesh","MESH",null,"Tauren Barriers Ltd","TAURN",null,null,null,null,null,null,null,null,null,null,"Steel Plate Mounted","SPM",null,"Cable End","CE",null,"Cable End","CE",null,"Steel Wire Mesh","MESH",null,null,null,null,"Roundabout","RAB",null,null,null,null,null,null,null,null,null,null,null,null,null,null,null,null,null,null,null,null,null,null,null,null,null,null,null,null,null,null,null,"Asset Management Technicians Ltd","AMT"]
["Sight Rail","SR",null,"Plastic","PLAST",null,null,null,null,null,null,null,null,null,null,null,null,null,"Timber Posts 1 Metre Intervals","TP1M",null,"CAT 350 Crash Cushion","CT350",null,"CAT 350 Crash Cushion","CT350",null,"Plastic","PLAST",null,null,null,null,"Widening","WIDEN",null,null,null,null,null,null,null,null,null,null,null,null,null,null,null,null,null,null,null,null,null,null,null,null,null,null,null,null,null,null,null,"Armitage Systems","ARM"]
["Steel Tube and Post Barrier","STP",null,"Plastic/Timber Posts","PT",null,null,null,null,null,null,null,null,null,null,null,null,null,"Timber Posts 2 Metre Intervals","TP2M",null,"Minnesota Eccentric Loader Terminal","ELT",null,"Minnesota Eccentric Loader Terminal","ELT",null,"Plastic/Timber Posts","PT",null,null,null,null,null,null,null,null,null,null,null,null,null,null,null,null,null,null,null,null,null,null,null,null,null,null,null,null,null,null,null,null,null,null,null,null,null,"Aspect Solutions Ltd","ASL"]
["Steel Wire Rope Barrier","SWR",null,"Steel","STEEL",null,null,null,null,null,null,null,null,null,null,null,null,null,"Timber Posts 3 Metre Intervals","TP3M",null,"ET2000","ET",null,"ET2000","ET",null,"Steel","STEEL",null,null,null,null,null,null,null,null,null,null,null,null,null,null,null,null,null,null,null,null,null,null,null,null,null,null,null,null,null,null,null,null,null,null,null,null,null,"Auckland System Management","ASM"]
["THRIE Beam Steel Guard Rail","TBGR",null,"Stone","STONE",null,null,null,null,null,null,null,null,null,null,null,null,null,"Zbar","ZBAR",null,"Fishtail/Butterfly End","FB",null,"Fishtail/Butterfly End","FB",null,"Stone","STONE",null,null,null,null,null,null,null,null,null,null,null,null,null,null,null,null,null,null,null,null,null,null,null,null,null,null,null,null,null,null,null,null,null,null,null,null,null,"Auckland Transport","AT2"]
["Tric Bloc Concrete Barrier","TRIC",null,"Wood","WOOD",null,null,null,null,null,null,null,null,null,null,null,null,null,null,null,null,"Fleat 350","FL350",null,"Fleat 350","FL350",null,"Wood","WOOD",null,null,null,null,null,null,null,null,null,null,null,null,null,null,null,null,null,null,null,null,null,null,null,null,null,null,null,null,null,null,null,null,null,null,null,null,null,"Aspect Technology and Equipment Ltd","ATE"]
["W Section Guard Rail","WGR",null,null,null,null,null,null,null,null,null,null,null,null,null,null,null,null,null,null,null,"Fleat MT","FLMT",null,"Fleat MT","FLMT",null,null,null,null,null,null,null,null,null,null,null,null,null,null,null,null,null,null,null,null,null,null,null,null,null,null,null,null,null,null,null,null,null,null,null,null,null,null,null,null,"ARRB Transport Research Ltd","ATR"]
[null,null,null,null,null,null,null,null,null,null,null,null,null,null,null,null,null,null,null,null,null,"Great System Crash Units","GREAT",null,"Great System Crash Units","GREAT",null,null,null,null,null,null,null,null,null,null,null,null,null,null,null,null,null,null,null,null,null,null,null,null,null,null,null,null,null,null,null,null,null,null,null,null,null,null,null,null,"Auckland University","AUN"]
[null,null,null,null,null,null,null,null,null,null,null,null,null,null,null,null,null,null,null,null,null,"MAX-Tension","MAXT",null,"MAX-Tension","MAXT",null,null,null,null,null,null,null,null,null,null,null,null,null,null,null,null,null,null,null,null,null,null,null,null,null,null,null,null,null,null,null,null,null,null,null,null,null,null,null,null,"Broadspectrum (NZ) Ltd","B(L"]
[null,null,null,null,null,null,null,null,null,null,null,null,null,null,null,null,null,null,null,null,null,"MELT(Similar to BCT)","MELT",null,"MELT(Similar to BCT)","MELT",null,null,null,null,null,null,null,null,null,null,null,null,null,null,null,null,null,null,null,null,null,null,null,null,null,null,null,null,null,null,null,null,null,null,null,null,null,null,null,null,"Bri-Ken and Associates Ltd","BAA"]
[null,null,null,null,null,null,null,null,null,null,null,null,null,null,null,null,null,null,null,null,null,"MASH-SKT","MSKT",null,"MASH-SKT","MSKT",null,null,null,null,null,null,null,null,null,null,null,null,null,null,null,null,null,null,null,null,null,null,null,null,null,null,null,null,null,null,null,null,null,null,null,null,null,null,null,null,"Bartley Consultants Ltd","BAR"]
[null,null,null,null,null,null,null,null,null,null,null,null,null,null,null,null,null,null,null,null,null,"Not Applicable","NA",null,"Not Applicable","NA",null,null,null,null,null,null,null,null,null,null,null,null,null,null,null,null,null,null,null,null,null,null,null,null,null,null,null,null,null,null,null,null,null,null,null,null,null,null,null,null,"Bloxam Burnett & Olliver Ltd","BB&"]
[null,null,null,null,null,null,null,null,null,null,null,null,null,null,null,null,null,null,null,null,null,"Quad Guard Crash Cushion","QG",null,"Quad Guard Crash Cushion","QG",null,null,null,null,null,null,null,null,null,null,null,null,null,null,null,null,null,null,null,null,null,null,null,null,null,null,null,null,null,null,null,null,null,null,null,null,null,null,null,null,"Beca Infrastructure","BCF"]
[null,null,null,null,null,null,null,null,null,null,null,null,null,null,null,null,null,null,null,null,null,"Regent","RE",null,"Regent","RE",null,null,null,null,null,null,null,null,null,null,null,null,null,null,null,null,null,null,null,null,null,null,null,null,null,null,null,null,null,null,null,null,null,null,null,null,null,null,null,null,"Buller District Council","BDC"]
[null,null,null,null,null,null,null,null,null,null,null,null,null,null,null,null,null,null,null,null,null,"Safence Terminal","SAF",null,"Safence Terminal","SAF",null,null,null,null,null,null,null,null,null,null,null,null,null,null,null,null,null,null,null,null,null,null,null,null,null,null,null,null,null,null,null,null,null,null,null,null,null,null,null,null,"Blacktop","BLA"]
[null,null,null,null,null,null,null,null,null,null,null,null,null,null,null,null,null,null,null,null,null,"Steel Drum Crash Cushion","SDCC",null,"Steel Drum Crash Cushion","SDCC",null,null,null,null,null,null,null,null,null,null,null,null,null,null,null,null,null,null,null,null,null,null,null,null,null,null,null,null,null,null,null,null,null,null,null,null,null,null,null,null,"Beca Ltd.","BLT"]
[null,null,null,null,null,null,null,null,null,null,null,null,null,null,null,null,null,null,null,null,null,"SoftStop MASH TL3","SFTST",null,"SoftStop MASH TL3","SFTST",null,null,null,null,null,null,null,null,null,null,null,null,null,null,null,null,null,null,null,null,null,null,null,null,null,null,null,null,null,null,null,null,null,null,null,null,null,null,null,null,"Civil Assist Ltd","CAL"]
[null,null,null,null,null,null,null,null,null,null,null,null,null,null,null,null,null,null,null,null,null,"SKT 350","SK350",null,"SKT 350","SK350",null,null,null,null,null,null,null,null,null,null,null,null,null,null,null,null,null,null,null,null,null,null,null,null,null,null,null,null,null,null,null,null,null,null,null,null,null,null,null,null,"Christchurch City Council","CCC"]
[null,null,null,null,null,null,null,null,null,null,null,null,null,null,null,null,null,null,null,null,null,"Steel Wire Rope End Anchor Block","SWRA",null,"Steel Wire Rope End Anchor Block","SWRA",null,null,null,null,null,null,null,null,null,null,null,null,null,null,null,null,null,null,null,null,null,null,null,null,null,null,null,null,null,null,null,null,null,null,null,null,null,null,null,null,"City Care Ltd","CCL"]
[null,null,null,null,null,null,null,null,null,null,null,null,null,null,null,null,null,null,null,null,null,"TAU II","TAU2",null,"TAU II","TAU2",null,null,null,null,null,null,null,null,null,null,null,null,null,null,null,null,null,null,null,null,null,null,null,null,null,null,null,null,null,null,null,null,null,null,null,null,null,null,null,null,"Currie Electrical Ltd.","CEL"]
[null,null,null,null,null,null,null,null,null,null,null,null,null,null,null,null,null,null,null,null,null,"Trailing End Anchor Units","TEA",null,"Trailing End Anchor Units","TEA",null,null,null,null,null,null,null,null,null,null,null,null,null,null,null,null,null,null,null,null,null,null,null,null,null,null,null,null,null,null,null,null,null,null,null,null,null,null,null,null,"Company-X Ltd.","CL"]
[null,null,null,null,null,null,null,null,null,null,null,null,null,null,null,null,null,null,null,null,null,"Trailing End Terminal","TET",null,"Trailing End Terminal","TET",null,null,null,null,null,null,null,null,null,null,null,null,null,null,null,null,null,null,null,null,null,null,null,null,null,null,null,null,null,null,null,null,null,null,null,null,null,null,null,null,"Critchlow Limited","CL2"]
[null,null,null,null,null,null,null,null,null,null,null,null,null,null,null,null,null,null,null,null,null,"TR Attenuating Crash Cushion","TRACC",null,"TR Attenuating Crash Cushion","TRACC",null,null,null,null,null,null,null,null,null,null,null,null,null,null,null,null,null,null,null,null,null,null,null,null,null,null,null,null,null,null,null,null,null,null,null,null,null,null,null,null,"Coastline Markers Ltd","CML"]
[null,null,null,null,null,null,null,null,null,null,null,null,null,null,null,null,null,null,null,null,null,"Texas Twist","TT",null,"Texas Twist","TT",null,null,null,null,null,null,null,null,null,null,null,null,null,null,null,null,null,null,null,null,null,null,null,null,null,null,null,null,null,null,null,null,null,null,null,null,null,null,null,null,"CoreLogic NZ Ltd.","CNL"]
[null,null,null,null,null,null,null,null,null,null,null,null,null,null,null,null,null,null,null,null,null,"Armorflex X 350","X350",null,"Armorflex X 350","X350",null,null,null,null,null,null,null,null,null,null,null,null,null,null,null,null,null,null,null,null,null,null,null,null,null,null,null,null,null,null,null,null,null,null,null,null,null,null,null,null,"Central Otago District Council","COD"]
[null,null,null,null,null,null,null,null,null,null,null,null,null,null,null,null,null,null,null,null,null,null,null,null,null,null,null,null,null,null,null,null,null,null,null,null,null,null,null,null,null,null,null,null,null,null,null,null,null,null,null,null,null,null,null,null,null,null,null,null,null,null,null,null,null,null,"Other Contractor","CON"]
[null,null,null,null,null,null,null,null,null,null,null,null,null,null,null,null,null,null,null,null,null,null,null,null,null,null,null,null,null,null,null,null,null,null,null,null,null,null,null,null,null,null,null,null,null,null,null,null,null,null,null,null,null,null,null,null,null,null,null,null,null,null,null,null,null,null,"CSL Traffic","CSL"]
[null,null,null,null,null,null,null,null,null,null,null,null,null,null,null,null,null,null,null,null,null,null,null,null,null,null,null,null,null,null,null,null,null,null,null,null,null,null,null,null,null,null,null,null,null,null,null,null,null,null,null,null,null,null,null,null,null,null,null,null,null,null,null,null,null,null,"Connell Wagner Ltd","CWL"]
[null,null,null,null,null,null,null,null,null,null,null,null,null,null,null,null,null,null,null,null,null,null,null,null,null,null,null,null,null,null,null,null,null,null,null,null,null,null,null,null,null,null,null,null,null,null,null,null,null,null,null,null,null,null,null,null,null,null,null,null,null,null,null,null,null,null,"Dunedin City Council","DCC"]
[null,null,null,null,null,null,null,null,null,null,null,null,null,null,null,null,null,null,null,null,null,null,null,null,null,null,null,null,null,null,null,null,null,null,null,null,null,null,null,null,null,null,null,null,null,null,null,null,null,null,null,null,null,null,null,null,null,null,null,null,null,null,null,null,null,null,"D & L Crowe Ltd","DLC"]
[null,null,null,null,null,null,null,null,null,null,null,null,null,null,null,null,null,null,null,null,null,null,null,null,null,null,null,null,null,null,null,null,null,null,null,null,null,null,null,null,null,null,null,null,null,null,null,null,null,null,null,null,null,null,null,null,null,null,null,null,null,null,null,null,null,null,"Spiire NZ Ltd","DWK"]
[null,null,null,null,null,null,null,null,null,null,null,null,null,null,null,null,null,null,null,null,null,null,null,null,null,null,null,null,null,null,null,null,null,null,null,null,null,null,null,null,null,null,null,null,null,null,null,null,null,null,null,null,null,null,null,null,null,null,null,null,null,null,null,null,null,null,"Excell Corporation","ECL"]
[null,null,null,null,null,null,null,null,null,null,null,null,null,null,null,null,null,null,null,null,null,null,null,null,null,null,null,null,null,null,null,null,null,null,null,null,null,null,null,null,null,null,null,null,null,null,null,null,null,null,null,null,null,null,null,null,null,null,null,null,null,null,null,null,null,null,"Ferguson Ind","FGI"]
[null,null,null,null,null,null,null,null,null,null,null,null,null,null,null,null,null,null,null,null,null,null,null,null,null,null,null,null,null,null,null,null,null,null,null,null,null,null,null,null,null,null,null,null,null,null,null,null,null,null,null,null,null,null,null,null,null,null,null,null,null,null,null,null,null,null,"Fulton Hogan (NZ) Ltd.","FUL"]
[null,null,null,null,null,null,null,null,null,null,null,null,null,null,null,null,null,null,null,null,null,null,null,null,null,null,null,null,null,null,null,null,null,null,null,null,null,null,null,null,null,null,null,null,null,null,null,null,null,null,null,null,null,null,null,null,null,null,null,null,null,null,null,null,null,null,"Gisborne District Council","GDC"]
[null,null,null,null,null,null,null,null,null,null,null,null,null,null,null,null,null,null,null,null,null,null,null,null,null,null,null,null,null,null,null,null,null,null,null,null,null,null,null,null,null,null,null,null,null,null,null,null,null,null,null,null,null,null,null,null,null,null,null,null,null,null,null,null,null,null,"Geosolve Ltd","GEO"]
[null,null,null,null,null,null,null,null,null,null,null,null,null,null,null,null,null,null,null,null,null,null,null,null,null,null,null,null,null,null,null,null,null,null,null,null,null,null,null,null,null,null,null,null,null,null,null,null,null,null,null,null,null,null,null,null,null,null,null,null,null,null,null,null,null,null,"GHD Ltd.","GHD"]
[null,null,null,null,null,null,null,null,null,null,null,null,null,null,null,null,null,null,null,null,null,null,null,null,null,null,null,null,null,null,null,null,null,null,null,null,null,null,null,null,null,null,null,null,null,null,null,null,null,null,null,null,null,null,null,null,null,null,null,null,null,null,null,null,null,null,"HEB Construction Ltd","HEB"]
[null,null,null,null,null,null,null,null,null,null,null,null,null,null,null,null,null,null,null,null,null,null,null,null,null,null,null,null,null,null,null,null,null,null,null,null,null,null,null,null,null,null,null,null,null,null,null,null,null,null,null,null,null,null,null,null,null,null,null,null,null,null,null,null,null,null,"Higgins Contractors Ltd.","HIG"]
[null,null,null,null,null,null,null,null,null,null,null,null,null,null,null,null,null,null,null,null,null,null,null,null,null,null,null,null,null,null,null,null,null,null,null,null,null,null,null,null,null,null,null,null,null,null,null,null,null,null,null,null,null,null,null,null,null,null,null,null,null,null,null,null,null,null,"HMI Technologies","HMI"]
[null,null,null,null,null,null,null,null,null,null,null,null,null,null,null,null,null,null,null,null,null,null,null,null,null,null,null,null,null,null,null,null,null,null,null,null,null,null,null,null,null,null,null,null,null,null,null,null,null,null,null,null,null,null,null,null,null,null,null,null,null,null,null,null,null,null,"HERE New Zealand Ltd","HNZ"]
[null,null,null,null,null,null,null,null,null,null,null,null,null,null,null,null,null,null,null,null,null,null,null,null,null,null,null,null,null,null,null,null,null,null,null,null,null,null,null,null,null,null,null,null,null,null,null,null,null,null,null,null,null,null,null,null,null,null,null,null,null,null,null,null,null,null,"HTS Group","HTS"]
[null,null,null,null,null,null,null,null,null,null,null,null,null,null,null,null,null,null,null,null,null,null,null,null,null,null,null,null,null,null,null,null,null,null,null,null,null,null,null,null,null,null,null,null,null,null,null,null,null,null,null,null,null,null,null,null,null,null,null,null,null,null,null,null,null,null,"Inframix Construction Ltd","IMX"]
[null,null,null,null,null,null,null,null,null,null,null,null,null,null,null,null,null,null,null,null,null,null,null,null,null,null,null,null,null,null,null,null,null,null,null,null,null,null,null,null,null,null,null,null,null,null,null,null,null,null,null,null,null,null,null,null,null,null,null,null,null,null,null,null,null,null,"Inzone","INZ"]
[null,null,null,null,null,null,null,null,null,null,null,null,null,null,null,null,null,null,null,null,null,null,null,null,null,null,null,null,null,null,null,null,null,null,null,null,null,null,null,null,null,null,null,null,null,null,null,null,null,null,null,null,null,null,null,null,null,null,null,null,null,null,null,null,null,null,"Isaac Construction","ISC"]
[null,null,null,null,null,null,null,null,null,null,null,null,null,null,null,null,null,null,null,null,null,null,null,null,null,null,null,null,null,null,null,null,null,null,null,null,null,null,null,null,null,null,null,null,null,null,null,null,null,null,null,null,null,null,null,null,null,null,null,null,null,null,null,null,null,null,"Island Asphalts","ISL"]
[null,null,null,null,null,null,null,null,null,null,null,null,null,null,null,null,null,null,null,null,null,null,null,null,null,null,null,null,null,null,null,null,null,null,null,null,null,null,null,null,null,null,null,null,null,null,null,null,null,null,null,null,null,null,null,null,null,null,null,null,null,null,null,null,null,null,"ITS","ITS"]
[null,null,null,null,null,null,null,null,null,null,null,null,null,null,null,null,null,null,null,null,null,null,null,null,null,null,null,null,null,null,null,null,null,null,null,null,null,null,null,null,null,null,null,null,null,null,null,null,null,null,null,null,null,null,null,null,null,null,null,null,null,null,null,null,null,null,"Jacobs New Zealand Ltd","JAC"]
[null,null,null,null,null,null,null,null,null,null,null,null,null,null,null,null,null,null,null,null,null,null,null,null,null,null,null,null,null,null,null,null,null,null,null,null,null,null,null,null,null,null,null,null,null,null,null,null,null,null,null,null,null,null,null,null,null,null,null,null,null,null,null,null,null,null,"JCW Consultant","JC"]
[null,null,null,null,null,null,null,null,null,null,null,null,null,null,null,null,null,null,null,null,null,null,null,null,null,null,null,null,null,null,null,null,null,null,null,null,null,null,null,null,null,null,null,null,null,null,null,null,null,null,null,null,null,null,null,null,null,null,null,null,null,null,null,null,null,null,"JCL Asphalt subcontractor","JCL"]
[null,null,null,null,null,null,null,null,null,null,null,null,null,null,null,null,null,null,null,null,null,null,null,null,null,null,null,null,null,null,null,null,null,null,null,null,null,null,null,null,null,null,null,null,null,null,null,null,null,null,null,null,null,null,null,null,null,null,null,null,null,null,null,null,null,null,"JJ Walters","JJW"]
[null,null,null,null,null,null,null,null,null,null,null,null,null,null,null,null,null,null,null,null,null,null,null,null,null,null,null,null,null,null,null,null,null,null,null,null,null,null,null,null,null,null,null,null,null,null,null,null,null,null,null,null,null,null,null,null,null,null,null,null,null,null,null,null,null,null,"Johnstone & Masters Ltd","JM"]
[null,null,null,null,null,null,null,null,null,null,null,null,null,null,null,null,null,null,null,null,null,null,null,null,null,null,null,null,null,null,null,null,null,null,null,null,null,null,null,null,null,null,null,null,null,null,null,null,null,null,null,null,null,null,null,null,null,null,null,null,null,null,null,null,null,null,"NZTA (JTOC)","JTO"]
[null,null,null,null,null,null,null,null,null,null,null,null,null,null,null,null,null,null,null,null,null,null,null,null,null,null,null,null,null,null,null,null,null,null,null,null,null,null,null,null,null,null,null,null,null,null,null,null,null,null,null,null,null,null,null,null,null,null,null,null,null,null,null,null,null,null,"Juno Services Ltd","JUN"]
[null,null,null,null,null,null,null,null,null,null,null,null,null,null,null,null,null,null,null,null,null,null,null,null,null,null,null,null,null,null,null,null,null,null,null,null,null,null,null,null,null,null,null,null,null,null,null,null,null,null,null,null,null,null,null,null,null,null,null,null,null,null,null,null,null,null,"Kapiti Coast District Council","KCD"]
[null,null,null,null,null,null,null,null,null,null,null,null,null,null,null,null,null,null,null,null,null,null,null,null,null,null,null,null,null,null,null,null,null,null,null,null,null,null,null,null,null,null,null,null,null,null,null,null,null,null,null,null,null,null,null,null,null,null,null,null,null,null,null,null,null,null,"Kampung Consulting Ltd.","KCL"]
[null,null,null,null,null,null,null,null,null,null,null,null,null,null,null,null,null,null,null,null,null,null,null,null,null,null,null,null,null,null,null,null,null,null,null,null,null,null,null,null,null,null,null,null,null,null,null,null,null,null,null,null,null,null,null,null,null,null,null,null,null,null,null,null,null,null,"Kelcroft Engineering","KEL"]
[null,null,null,null,null,null,null,null,null,null,null,null,null,null,null,null,null,null,null,null,null,null,null,null,null,null,null,null,null,null,null,null,null,null,null,null,null,null,null,null,null,null,null,null,null,null,null,null,null,null,null,null,null,null,null,null,null,null,null,null,null,null,null,null,null,null,"Local Authority","LA"]
[null,null,null,null,null,null,null,null,null,null,null,null,null,null,null,null,null,null,null,null,null,null,null,null,null,null,null,null,null,null,null,null,null,null,null,null,null,null,null,null,null,null,null,null,null,null,null,null,null,null,null,null,null,null,null,null,null,null,null,null,null,null,null,null,null,null,"Lonrix Ltd","LL"]
[null,null,null,null,null,null,null,null,null,null,null,null,null,null,null,null,null,null,null,null,null,null,null,null,null,null,null,null,null,null,null,null,null,null,null,null,null,null,null,null,null,null,null,null,null,null,null,null,null,null,null,null,null,null,null,null,null,null,null,null,null,null,null,null,null,null,"McKays Consultants","MCC"]
[null,null,null,null,null,null,null,null,null,null,null,null,null,null,null,null,null,null,null,null,null,null,null,null,null,null,null,null,null,null,null,null,null,null,null,null,null,null,null,null,null,null,null,null,null,null,null,null,null,null,null,null,null,null,null,null,null,null,null,null,null,null,null,null,null,null,"Matamata-Piako District Council","MD2"]
[null,null,null,null,null,null,null,null,null,null,null,null,null,null,null,null,null,null,null,null,null,null,null,null,null,null,null,null,null,null,null,null,null,null,null,null,null,null,null,null,null,null,null,null,null,null,null,null,null,null,null,null,null,null,null,null,null,null,null,null,null,null,null,null,null,null,"Manawatu District Council","MDC"]
[null,null,null,null,null,null,null,null,null,null,null,null,null,null,null,null,null,null,null,null,null,null,null,null,null,null,null,null,null,null,null,null,null,null,null,null,null,null,null,null,null,null,null,null,null,null,null,null,null,null,null,null,null,null,null,null,null,null,null,null,null,null,null,null,null,null,"McKay Electrical Ltd","MEL"]
[null,null,null,null,null,null,null,null,null,null,null,null,null,null,null,null,null,null,null,null,null,null,null,null,null,null,null,null,null,null,null,null,null,null,null,null,null,null,null,null,null,null,null,null,null,null,null,null,null,null,null,null,null,null,null,null,null,null,null,null,null,null,null,null,null,null,"Aecom NZ Ltd","MER"]
[null,null,null,null,null,null,null,null,null,null,null,null,null,null,null,null,null,null,null,null,null,null,null,null,null,null,null,null,null,null,null,null,null,null,null,null,null,null,null,null,null,null,null,null,null,null,null,null,null,null,null,null,null,null,null,null,null,null,null,null,null,null,null,null,null,null,"MetService","MET"]
[null,null,null,null,null,null,null,null,null,null,null,null,null,null,null,null,null,null,null,null,null,null,null,null,null,null,null,null,null,null,null,null,null,null,null,null,null,null,null,null,null,null,null,null,null,null,null,null,null,null,null,null,null,null,null,null,null,null,null,null,null,null,null,null,null,null,"Marlborough NOC JV","MJV"]
[null,null,null,null,null,null,null,null,null,null,null,null,null,null,null,null,null,null,null,null,null,null,null,null,null,null,null,null,null,null,null,null,null,null,null,null,null,null,null,null,null,null,null,null,null,null,null,null,null,null,null,null,null,null,null,null,null,null,null,null,null,null,null,null,null,null,"McKay Ltd.","ML"]
[null,null,null,null,null,null,null,null,null,null,null,null,null,null,null,null,null,null,null,null,null,null,null,null,null,null,null,null,null,null,null,null,null,null,null,null,null,null,null,null,null,null,null,null,null,null,null,null,null,null,null,null,null,null,null,null,null,null,null,null,null,null,null,null,null,null,"Marlborough Roads","MR"]
[null,null,null,null,null,null,null,null,null,null,null,null,null,null,null,null,null,null,null,null,null,null,null,null,null,null,null,null,null,null,null,null,null,null,null,null,null,null,null,null,null,null,null,null,null,null,null,null,null,null,null,null,null,null,null,null,null,null,null,null,null,null,null,null,null,null,"MWH NZ Ltd.","MWH"]
[null,null,null,null,null,null,null,null,null,null,null,null,null,null,null,null,null,null,null,null,null,null,null,null,null,null,null,null,null,null,null,null,null,null,null,null,null,null,null,null,null,null,null,null,null,null,null,null,null,null,null,null,null,null,null,null,null,null,null,null,null,null,null,null,null,null,"Napier City Council","NCC"]
[null,null,null,null,null,null,null,null,null,null,null,null,null,null,null,null,null,null,null,null,null,null,null,null,null,null,null,null,null,null,null,null,null,null,null,null,null,null,null,null,null,null,null,null,null,null,null,null,null,null,null,null,null,null,null,null,null,null,null,null,null,null,null,null,null,null,"NZ Transport Agency - Highway Programme","NTA"]
[null,null,null,null,null,null,null,null,null,null,null,null,null,null,null,null,null,null,null,null,null,null,null,null,null,null,null,null,null,null,null,null,null,null,null,null,null,null,null,null,null,null,null,null,null,null,null,null,null,null,null,null,null,null,null,null,null,null,null,null,null,null,null,null,null,null,"NZ Transport Agency - Funding","NTF"]
[null,null,null,null,null,null,null,null,null,null,null,null,null,null,null,null,null,null,null,null,null,null,null,null,null,null,null,null,null,null,null,null,null,null,null,null,null,null,null,null,null,null,null,null,null,null,null,null,null,null,null,null,null,null,null,null,null,null,null,null,null,null,null,null,null,null,"North Power","NTH"]
[null,null,null,null,null,null,null,null,null,null,null,null,null,null,null,null,null,null,null,null,null,null,null,null,null,null,null,null,null,null,null,null,null,null,null,null,null,null,null,null,null,null,null,null,null,null,null,null,null,null,null,null,null,null,null,null,null,null,null,null,null,null,null,null,null,null,"Nutech Security","NUT"]
[null,null,null,null,null,null,null,null,null,null,null,null,null,null,null,null,null,null,null,null,null,null,null,null,null,null,null,null,null,null,null,null,null,null,null,null,null,null,null,null,null,null,null,null,null,null,null,null,null,null,null,null,null,null,null,null,null,null,null,null,null,null,null,null,null,null,"Odyssey Energy (2009) Ltd.","OE("]
[null,null,null,null,null,null,null,null,null,null,null,null,null,null,null,null,null,null,null,null,null,null,null,null,null,null,null,null,null,null,null,null,null,null,null,null,null,null,null,null,null,null,null,null,null,null,null,null,null,null,null,null,null,null,null,null,null,null,null,null,null,null,null,null,null,null,"Opus International Consultants Ltd (NZ)","OI2"]
[null,null,null,null,null,null,null,null,null,null,null,null,null,null,null,null,null,null,null,null,null,null,null,null,null,null,null,null,null,null,null,null,null,null,null,null,null,null,null,null,null,null,null,null,null,null,null,null,null,null,null,null,null,null,null,null,null,null,null,null,null,null,null,null,null,null,"Opus International Consultants Ltd.","OIC"]
[null,null,null,null,null,null,null,null,null,null,null,null,null,null,null,null,null,null,null,null,null,null,null,null,null,null,null,null,null,null,null,null,null,null,null,null,null,null,null,null,null,null,null,null,null,null,null,null,null,null,null,null,null,null,null,null,null,null,null,null,null,null,null,null,null,null,"Oldfields","OLD"]
[null,null,null,null,null,null,null,null,null,null,null,null,null,null,null,null,null,null,null,null,null,null,null,null,null,null,null,null,null,null,null,null,null,null,null,null,null,null,null,null,null,null,null,null,null,null,null,null,null,null,null,null,null,null,null,null,null,null,null,null,null,null,null,null,null,null,"Porirua City Council","PCC"]
[null,null,null,null,null,null,null,null,null,null,null,null,null,null,null,null,null,null,null,null,null,null,null,null,null,null,null,null,null,null,null,null,null,null,null,null,null,null,null,null,null,null,null,null,null,null,null,null,null,null,null,null,null,null,null,null,null,null,null,null,null,null,null,null,null,null,"Pinnacles Civil Group Ltd.","PCG"]
[null,null,null,null,null,null,null,null,null,null,null,null,null,null,null,null,null,null,null,null,null,null,null,null,null,null,null,null,null,null,null,null,null,null,null,null,null,null,null,null,null,null,null,null,null,null,null,null,null,null,null,null,null,null,null,null,null,null,null,null,null,null,null,null,null,null,"Pope Electrical Ltd","PE2"]
[null,null,null,null,null,null,null,null,null,null,null,null,null,null,null,null,null,null,null,null,null,null,null,null,null,null,null,null,null,null,null,null,null,null,null,null,null,null,null,null,null,null,null,null,null,null,null,null,null,null,null,null,null,null,null,null,null,null,null,null,null,null,null,null,null,null,"Pope Electrical Limited","PEL"]
[null,null,null,null,null,null,null,null,null,null,null,null,null,null,null,null,null,null,null,null,null,null,null,null,null,null,null,null,null,null,null,null,null,null,null,null,null,null,null,null,null,null,null,null,null,null,null,null,null,null,null,null,null,null,null,null,null,null,null,null,null,null,null,null,null,null,"Pavement Management Services","PMS"]
[null,null,null,null,null,null,null,null,null,null,null,null,null,null,null,null,null,null,null,null,null,null,null,null,null,null,null,null,null,null,null,null,null,null,null,null,null,null,null,null,null,null,null,null,null,null,null,null,null,null,null,null,null,null,null,null,null,null,null,null,null,null,null,null,null,null,"Power Solutions Ltd","PSL"]
[null,null,null,null,null,null,null,null,null,null,null,null,null,null,null,null,null,null,null,null,null,null,null,null,null,null,null,null,null,null,null,null,null,null,null,null,null,null,null,null,null,null,null,null,null,null,null,null,null,null,null,null,null,null,null,null,null,null,null,null,null,null,null,null,null,null,"Queenstown-Lakes District Council","QDC"]
[null,null,null,null,null,null,null,null,null,null,null,null,null,null,null,null,null,null,null,null,null,null,null,null,null,null,null,null,null,null,null,null,null,null,null,null,null,null,null,null,null,null,null,null,null,null,null,null,null,null,null,null,null,null,null,null,null,null,null,null,null,null,null,null,null,null,"Quality Roading and Services","QRS"]
[null,null,null,null,null,null,null,null,null,null,null,null,null,null,null,null,null,null,null,null,null,null,null,null,null,null,null,null,null,null,null,null,null,null,null,null,null,null,null,null,null,null,null,null,null,null,null,null,null,null,null,null,null,null,null,null,null,null,null,null,null,null,null,null,null,null,"Read-only access for Tenderers","RAF"]
[null,null,null,null,null,null,null,null,null,null,null,null,null,null,null,null,null,null,null,null,null,null,null,null,null,null,null,null,null,null,null,null,null,null,null,null,null,null,null,null,null,null,null,null,null,null,null,null,null,null,null,null,null,null,null,null,null,null,null,null,null,null,null,null,null,null,"Rangitikei District Council","RDC"]
[null,null,null,null,null,null,null,null,null,null,null,null,null,null,null,null,null,null,null,null,null,null,null,null,null,null,null,null,null,null,null,null,null,null,null,null,null,null,null,null,null,null,null,null,null,null,null,null,null,null,null,null,null,null,null,null,null,null,null,null,null,null,null,null,null,null,"Roadex","RDX"]
[null,null,null,null,null,null,null,null,null,null,null,null,null,null,null,null,null,null,null,null,null,null,null,null,null,null,null,null,null,null,null,null,null,null,null,null,null,null,null,null,null,null,null,null,null,null,null,null,null,null,null,null,null,null,null,null,null,null,null,null,null,null,null,null,null,null,"Roading Logistics Ltd","RLL"]
[null,null,null,null,null,null,null,null,null,null,null,null,null,null,null,null,null,null,null,null,null,null,null,null,null,null,null,null,null,null,null,null,null,null,null,null,null,null,null,null,null,null,null,null,null,null,null,null,null,null,null,null,null,null,null,null,null,null,null,null,null,null,null,null,null,null,"Rationale Ltd","RLT"]
[null,null,null,null,null,null,null,null,null,null,null,null,null,null,null,null,null,null,null,null,null,null,null,null,null,null,null,null,null,null,null,null,null,null,null,null,null,null,null,null,null,null,null,null,null,null,null,null,null,null,null,null,null,null,null,null,null,null,null,null,null,null,null,null,null,null,"Rotorua District Council","ROT"]
[null,null,null,null,null,null,null,null,null,null,null,null,null,null,null,null,null,null,null,null,null,null,null,null,null,null,null,null,null,null,null,null,null,null,null,null,null,null,null,null,null,null,null,null,null,null,null,null,null,null,null,null,null,null,null,null,null,null,null,null,null,null,null,null,null,null,"RAMM Software Limited","RSL"]
[null,null,null,null,null,null,null,null,null,null,null,null,null,null,null,null,null,null,null,null,null,null,null,null,null,null,null,null,null,null,null,null,null,null,null,null,null,null,null,null,null,null,null,null,null,null,null,null,null,null,null,null,null,null,null,null,null,null,null,null,null,null,null,null,null,null,"Road Signs & Traffic Control Equipment Limited","RTL"]
[null,null,null,null,null,null,null,null,null,null,null,null,null,null,null,null,null,null,null,null,null,null,null,null,null,null,null,null,null,null,null,null,null,null,null,null,null,null,null,null,null,null,null,null,null,null,null,null,null,null,null,null,null,null,null,null,null,null,null,null,null,null,null,null,null,null,"Russell Roads","RUS"]
[null,null,null,null,null,null,null,null,null,null,null,null,null,null,null,null,null,null,null,null,null,null,null,null,null,null,null,null,null,null,null,null,null,null,null,null,null,null,null,null,null,null,null,null,null,null,null,null,null,null,null,null,null,null,null,null,null,null,null,null,null,null,null,null,null,null,"Salient Consultants","SAL"]
[null,null,null,null,null,null,null,null,null,null,null,null,null,null,null,null,null,null,null,null,null,null,null,null,null,null,null,null,null,null,null,null,null,null,null,null,null,null,null,null,null,null,null,null,null,null,null,null,null,null,null,null,null,null,null,null,null,null,null,null,null,null,null,null,null,null,"Sealcoat Central Ltd.","SCL"]
[null,null,null,null,null,null,null,null,null,null,null,null,null,null,null,null,null,null,null,null,null,null,null,null,null,null,null,null,null,null,null,null,null,null,null,null,null,null,null,null,null,null,null,null,null,null,null,null,null,null,null,null,null,null,null,null,null,null,null,null,null,null,null,null,null,null,"Shaw's Consulting Services Ltd","SCS"]
[null,null,null,null,null,null,null,null,null,null,null,null,null,null,null,null,null,null,null,null,null,null,null,null,null,null,null,null,null,null,null,null,null,null,null,null,null,null,null,null,null,null,null,null,null,null,null,null,null,null,null,null,null,null,null,null,null,null,null,null,null,null,null,null,null,null,"Southland District Council","SDC"]
[null,null,null,null,null,null,null,null,null,null,null,null,null,null,null,null,null,null,null,null,null,null,null,null,null,null,null,null,null,null,null,null,null,null,null,null,null,null,null,null,null,null,null,null,null,null,null,null,null,null,null,null,null,null,null,null,null,null,null,null,null,null,null,null,null,null,"Signopsys Electronic Signs","SES"]
[null,null,null,null,null,null,null,null,null,null,null,null,null,null,null,null,null,null,null,null,null,null,null,null,null,null,null,null,null,null,null,null,null,null,null,null,null,null,null,null,null,null,null,null,null,null,null,null,null,null,null,null,null,null,null,null,null,null,null,null,null,null,null,null,null,null,"Sicon Ltd.","SL2"]
[null,null,null,null,null,null,null,null,null,null,null,null,null,null,null,null,null,null,null,null,null,null,null,null,null,null,null,null,null,null,null,null,null,null,null,null,null,null,null,null,null,null,null,null,null,null,null,null,null,null,null,null,null,null,null,null,null,null,null,null,null,null,null,null,null,null,"Stantec New Zealand","SN2"]
[null,null,null,null,null,null,null,null,null,null,null,null,null,null,null,null,null,null,null,null,null,null,null,null,null,null,null,null,null,null,null,null,null,null,null,null,null,null,null,null,null,null,null,null,null,null,null,null,null,null,null,null,null,null,null,null,null,null,null,null,null,null,null,null,null,null,"Stantec New Zealand Ltd","SNZ"]
[null,null,null,null,null,null,null,null,null,null,null,null,null,null,null,null,null,null,null,null,null,null,null,null,null,null,null,null,null,null,null,null,null,null,null,null,null,null,null,null,null,null,null,null,null,null,null,null,null,null,null,null,null,null,null,null,null,null,null,null,null,null,null,null,null,null,"SouthRoads Ltd.","SOU"]
[null,null,null,null,null,null,null,null,null,null,null,null,null,null,null,null,null,null,null,null,null,null,null,null,null,null,null,null,null,null,null,null,null,null,null,null,null,null,null,null,null,null,null,null,null,null,null,null,null,null,null,null,null,null,null,null,null,null,null,null,null,null,null,null,null,null,"Safe Roads Alliance","SRA"]
[null,null,null,null,null,null,null,null,null,null,null,null,null,null,null,null,null,null,null,null,null,null,null,null,null,null,null,null,null,null,null,null,null,null,null,null,null,null,null,null,null,null,null,null,null,null,null,null,null,null,null,null,null,null,null,null,null,null,null,null,null,null,null,null,null,null,"Services South East (NZ) Ltd.","SS2"]
[null,null,null,null,null,null,null,null,null,null,null,null,null,null,null,null,null,null,null,null,null,null,null,null,null,null,null,null,null,null,null,null,null,null,null,null,null,null,null,null,null,null,null,null,null,null,null,null,null,null,null,null,null,null,null,null,null,null,null,null,null,null,null,null,null,null,"Services South East Pty Ltd","SSE"]
[null,null,null,null,null,null,null,null,null,null,null,null,null,null,null,null,null,null,null,null,null,null,null,null,null,null,null,null,null,null,null,null,null,null,null,null,null,null,null,null,null,null,null,null,null,null,null,null,null,null,null,null,null,null,null,null,null,null,null,null,null,null,null,null,null,null,"Tonkin & Taylor Ltd","T&T"]
[null,null,null,null,null,null,null,null,null,null,null,null,null,null,null,null,null,null,null,null,null,null,null,null,null,null,null,null,null,null,null,null,null,null,null,null,null,null,null,null,null,null,null,null,null,null,null,null,null,null,null,null,null,null,null,null,null,null,null,null,null,null,null,null,null,null,"Tasman Howey","TAS"]
[null,null,null,null,null,null,null,null,null,null,null,null,null,null,null,null,null,null,null,null,null,null,null,null,null,null,null,null,null,null,null,null,null,null,null,null,null,null,null,null,null,null,null,null,null,null,null,null,null,null,null,null,null,null,null,null,null,null,null,null,null,null,null,null,null,null,"NZTA and WDM","TAW"]
[null,null,null,null,null,null,null,null,null,null,null,null,null,null,null,null,null,null,null,null,null,null,null,null,null,null,null,null,null,null,null,null,null,null,null,null,null,null,null,null,null,null,null,null,null,null,null,null,null,null,null,null,null,null,null,null,null,null,null,null,null,null,null,null,null,null,"Tauranga City Council","TC2"]
[null,null,null,null,null,null,null,null,null,null,null,null,null,null,null,null,null,null,null,null,null,null,null,null,null,null,null,null,null,null,null,null,null,null,null,null,null,null,null,null,null,null,null,null,null,null,null,null,null,null,null,null,null,null,null,null,null,null,null,null,null,null,null,null,null,null,"Taranaki Civil Construction","TCC"]
[null,null,null,null,null,null,null,null,null,null,null,null,null,null,null,null,null,null,null,null,null,null,null,null,null,null,null,null,null,null,null,null,null,null,null,null,null,null,null,null,null,null,null,null,null,null,null,null,null,null,null,null,null,null,null,null,null,null,null,null,null,null,null,null,null,null,"TC Nicholls","TCN"]
[null,null,null,null,null,null,null,null,null,null,null,null,null,null,null,null,null,null,null,null,null,null,null,null,null,null,null,null,null,null,null,null,null,null,null,null,null,null,null,null,null,null,null,null,null,null,null,null,null,null,null,null,null,null,null,null,null,null,null,null,null,null,null,null,null,null,"Traffic Control Systems","TCS"]
[null,null,null,null,null,null,null,null,null,null,null,null,null,null,null,null,null,null,null,null,null,null,null,null,null,null,null,null,null,null,null,null,null,null,null,null,null,null,null,null,null,null,null,null,null,null,null,null,null,null,null,null,null,null,null,null,null,null,null,null,null,null,null,null,null,null,"Taupo District Council","TD2"]
[null,null,null,null,null,null,null,null,null,null,null,null,null,null,null,null,null,null,null,null,null,null,null,null,null,null,null,null,null,null,null,null,null,null,null,null,null,null,null,null,null,null,null,null,null,null,null,null,null,null,null,null,null,null,null,null,null,null,null,null,null,null,null,null,null,null,"Tasman District Council","TDC"]
[null,null,null,null,null,null,null,null,null,null,null,null,null,null,null,null,null,null,null,null,null,null,null,null,null,null,null,null,null,null,null,null,null,null,null,null,null,null,null,null,null,null,null,null,null,null,null,null,null,null,null,null,null,null,null,null,null,null,null,null,null,null,null,null,null,null,"The Datastack Ltd","TDL"]
[null,null,null,null,null,null,null,null,null,null,null,null,null,null,null,null,null,null,null,null,null,null,null,null,null,null,null,null,null,null,null,null,null,null,null,null,null,null,null,null,null,null,null,null,null,null,null,null,null,null,null,null,null,null,null,null,null,null,null,null,null,null,null,null,null,null,"Taupo East Traffic Services Contractor","TET"]
[null,null,null,null,null,null,null,null,null,null,null,null,null,null,null,null,null,null,null,null,null,null,null,null,null,null,null,null,null,null,null,null,null,null,null,null,null,null,null,null,null,null,null,null,null,null,null,null,null,null,null,null,null,null,null,null,null,null,null,null,null,null,null,null,null,null,"Broadspectrum (NZ) Ltd","TFD"]
[null,null,null,null,null,null,null,null,null,null,null,null,null,null,null,null,null,null,null,null,null,null,null,null,null,null,null,null,null,null,null,null,null,null,null,null,null,null,null,null,null,null,null,null,null,null,null,null,null,null,null,null,null,null,null,null,null,null,null,null,null,null,null,null,null,null,"Waka Kotahi NZ Transport Agency","TNZ"]
[null,null,null,null,null,null,null,null,null,null,null,null,null,null,null,null,null,null,null,null,null,null,null,null,null,null,null,null,null,null,null,null,null,null,null,null,null,null,null,null,null,null,null,null,null,null,null,null,null,null,null,null,null,null,null,null,null,null,null,null,null,null,null,null,null,null,"Top Energy","TOP"]
[null,null,null,null,null,null,null,null,null,null,null,null,null,null,null,null,null,null,null,null,null,null,null,null,null,null,null,null,null,null,null,null,null,null,null,null,null,null,null,null,null,null,null,null,null,null,null,null,null,null,null,null,null,null,null,null,null,null,null,null,null,null,null,null,null,null,"The Roading Company","TRC"]
[null,null,null,null,null,null,null,null,null,null,null,null,null,null,null,null,null,null,null,null,null,null,null,null,null,null,null,null,null,null,null,null,null,null,null,null,null,null,null,null,null,null,null,null,null,null,null,null,null,null,null,null,null,null,null,null,null,null,null,null,null,null,null,null,null,null,"Transfield Services (NZ) Ltd","TS("]
[null,null,null,null,null,null,null,null,null,null,null,null,null,null,null,null,null,null,null,null,null,null,null,null,null,null,null,null,null,null,null,null,null,null,null,null,null,null,null,null,null,null,null,null,null,null,null,null,null,null,null,null,null,null,null,null,null,null,null,null,null,null,null,null,null,null,"Tonkin and Taylor Ltd","TT"]
[null,null,null,null,null,null,null,null,null,null,null,null,null,null,null,null,null,null,null,null,null,null,null,null,null,null,null,null,null,null,null,null,null,null,null,null,null,null,null,null,null,null,null,null,null,null,null,null,null,null,null,null,null,null,null,null,null,null,null,null,null,null,null,null,null,null,"Tyco Traffic and Transportation","TYC"]
[null,null,null,null,null,null,null,null,null,null,null,null,null,null,null,null,null,null,null,null,null,null,null,null,null,null,null,null,null,null,null,null,null,null,null,null,null,null,null,null,null,null,null,null,null,null,null,null,null,null,null,null,null,null,null,null,null,null,null,null,null,null,null,null,null,null,"Urban Connection Ltd","UCL"]
[null,null,null,null,null,null,null,null,null,null,null,null,null,null,null,null,null,null,null,null,null,null,null,null,null,null,null,null,null,null,null,null,null,null,null,null,null,null,null,null,null,null,null,null,null,null,null,null,null,null,null,null,null,null,null,null,null,null,null,null,null,null,null,null,null,null,"University of Canterbury","UOC"]
[null,null,null,null,null,null,null,null,null,null,null,null,null,null,null,null,null,null,null,null,null,null,null,null,null,null,null,null,null,null,null,null,null,null,null,null,null,null,null,null,null,null,null,null,null,null,null,null,null,null,null,null,null,null,null,null,null,null,null,null,null,null,null,null,null,null,"Ventia Pty Ltd","VPL"]
[null,null,null,null,null,null,null,null,null,null,null,null,null,null,null,null,null,null,null,null,null,null,null,null,null,null,null,null,null,null,null,null,null,null,null,null,null,null,null,null,null,null,null,null,null,null,null,null,null,null,null,null,null,null,null,null,null,null,null,null,null,null,null,null,null,null,"Western Bay of Plenty District Council","WBO"]
[null,null,null,null,null,null,null,null,null,null,null,null,null,null,null,null,null,null,null,null,null,null,null,null,null,null,null,null,null,null,null,null,null,null,null,null,null,null,null,null,null,null,null,null,null,null,null,null,null,null,null,null,null,null,null,null,null,null,null,null,null,null,null,null,null,null,"Wellington City Council","WCC"]
[null,null,null,null,null,null,null,null,null,null,null,null,null,null,null,null,null,null,null,null,null,null,null,null,null,null,null,null,null,null,null,null,null,null,null,null,null,null,null,null,null,null,null,null,null,null,null,null,null,null,null,null,null,null,null,null,null,null,null,null,null,null,null,null,null,null,"Waimakariri District Council","WD2"]
[null,null,null,null,null,null,null,null,null,null,null,null,null,null,null,null,null,null,null,null,null,null,null,null,null,null,null,null,null,null,null,null,null,null,null,null,null,null,null,null,null,null,null,null,null,null,null,null,null,null,null,null,null,null,null,null,null,null,null,null,null,null,null,null,null,null,"Whakatane District Council","WD3"]
[null,null,null,null,null,null,null,null,null,null,null,null,null,null,null,null,null,null,null,null,null,null,null,null,null,null,null,null,null,null,null,null,null,null,null,null,null,null,null,null,null,null,null,null,null,null,null,null,null,null,null,null,null,null,null,null,null,null,null,null,null,null,null,null,null,null,"Wairoa District Council","WD4"]
[null,null,null,null,null,null,null,null,null,null,null,null,null,null,null,null,null,null,null,null,null,null,null,null,null,null,null,null,null,null,null,null,null,null,null,null,null,null,null,null,null,null,null,null,null,null,null,null,null,null,null,null,null,null,null,null,null,null,null,null,null,null,null,null,null,null,"Waipa District Council","WD5"]
[null,null,null,null,null,null,null,null,null,null,null,null,null,null,null,null,null,null,null,null,null,null,null,null,null,null,null,null,null,null,null,null,null,null,null,null,null,null,null,null,null,null,null,null,null,null,null,null,null,null,null,null,null,null,null,null,null,null,null,null,null,null,null,null,null,null,"Waikato District Council","WD6"]
[null,null,null,null,null,null,null,null,null,null,null,null,null,null,null,null,null,null,null,null,null,null,null,null,null,null,null,null,null,null,null,null,null,null,null,null,null,null,null,null,null,null,null,null,null,null,null,null,null,null,null,null,null,null,null,null,null,null,null,null,null,null,null,null,null,null,"Whangarei District Council","WDC"]
[null,null,null,null,null,null,null,null,null,null,null,null,null,null,null,null,null,null,null,null,null,null,null,null,null,null,null,null,null,null,null,null,null,null,null,null,null,null,null,null,null,null,null,null,null,null,null,null,null,null,null,null,null,null,null,null,null,null,null,null,null,null,null,null,null,null,"WDM","WDM"]
[null,null,null,null,null,null,null,null,null,null,null,null,null,null,null,null,null,null,null,null,null,null,null,null,null,null,null,null,null,null,null,null,null,null,null,null,null,null,null,null,null,null,null,null,null,null,null,null,null,null,null,null,null,null,null,null,null,null,null,null,null,null,null,null,null,null,"WSP-Opus International Consultants Ltd","WIC"]
[null,null,null,null,null,null,null,null,null,null,null,null,null,null,null,null,null,null,null,null,null,null,null,null,null,null,null,null,null,null,null,null,null,null,null,null,null,null,null,null,null,null,null,null,null,null,null,null,null,null,null,null,null,null,null,null,null,null,null,null,null,null,null,null,null,null,"Downer New Zealand Limited","WIL"]
[null,null,null,null,null,null,null,null,null,null,null,null,null,null,null,null,null,null,null,null,null,null,null,null,null,null,null,null,null,null,null,null,null,null,null,null,null,null,null,null,null,null,null,null,null,null,null,null,null,null,null,null,null,null,null,null,null,null,null,null,null,null,null,null,null,null,"W J Ashton Service Ltd","WJA"]
[null,null,null,null,null,null,null,null,null,null,null,null,null,null,null,null,null,null,null,null,null,null,null,null,null,null,null,null,null,null,null,null,null,null,null,null,null,null,null,null,null,null,null,null,null,null,null,null,null,null,null,null,null,null,null,null,null,null,null,null,null,null,null,null,null,null,"Waka Kotahi NZ Transport Agency - Highways","WK2"]
[null,null,null,null,null,null,null,null,null,null,null,null,null,null,null,null,null,null,null,null,null,null,null,null,null,null,null,null,null,null,null,null,null,null,null,null,null,null,null,null,null,null,null,null,null,null,null,null,null,null,null,null,null,null,null,null,null,null,null,null,null,null,null,null,null,null,"Waka Kotahi NZ Transport Agency","WKN"]
[null,null,null,null,null,null,null,null,null,null,null,null,null,null,null,null,null,null,null,null,null,null,null,null,null,null,null,null,null,null,null,null,null,null,null,null,null,null,null,null,null,null,null,null,null,null,null,null,null,null,null,null,null,null,null,null,null,null,null,null,null,null,null,null,null,null,"WSP New Zealand Ltd","WNZ"]